Body Name,Body,Date,Department,Beneficiary,Summary of Purpose (SerCOP),Amount,Merchant Code,Transaction Number,Supplier ID
Sandwell Metropolitan Borough Council,http://www.sandwell.gov.uk/info/200202/performance_and_spending/1079/payments_over_500,01-Jun-2021,Adults Social Care Capital,LIFT & ENGINEERING SERVICES LTD,Adults Social Care Capital,691.66,"CIP - New Construction,Conversion, Enhancement & Reno",2122P03_CR00001,77003962
Sandwell Metropolitan Borough Council,http://www.sandwell.gov.uk/info/200202/performance_and_spending/1079/payments_over_500,28-Jun-2021,Adults Social Care Capital,PR PROPERTY MAINTENANCE,Adults Social Care Capital,1300.79,Deferred Charges/Grant Payments,2122P03_CR00002,33836
Sandwell Metropolitan Borough Council,http://www.sandwell.gov.uk/info/200202/performance_and_spending/1079/payments_over_500,03-Jun-2021,Adults Social Care Capital,DOLPHIN LIFTS MIDLANDS LTD,Adults Social Care Capital,1325.00,Deferred Charges/Grant Payments,2122P03_CR00003,123852
Sandwell Metropolitan Borough Council,http://www.sandwell.gov.uk/info/200202/performance_and_spending/1079/payments_over_500,22-Jun-2021,Adults Social Care Capital,ECLIPSE ACCESS SOLUTIONS LTD,Adults Social Care Capital,2270.00,Deferred Charges/Grant Payments,2122P03_CR00004,131248
Sandwell Metropolitan Borough Council,http://www.sandwell.gov.uk/info/200202/performance_and_spending/1079/payments_over_500,01-Jun-2021,Adults Social Care Capital,DLM BUILDING & MAINTENANCE LTD,Adults Social Care Capital,2436.57,CIP - Infrastructure,2122P03_CR00005,137596
Sandwell Metropolitan Borough Council,http://www.sandwell.gov.uk/info/200202/performance_and_spending/1079/payments_over_500,03-Jun-2021,Adults Social Care Capital," AYSHA RANI,MR MOHAMMED ALI T/A RANI SAREES",Adults Social Care Capital,2667.00,Grant Payments,2122P03_CR00006,143799
Sandwell Metropolitan Borough Council,http://www.sandwell.gov.uk/info/200202/performance_and_spending/1079/payments_over_500,01-Jun-2021,Adults Social Care Capital,DANIEL BELT T/A AUTOMOTIVE SOLUTIONS DIRECT,Adults Social Care Capital,2667.00,Grant Payments,2122P03_CR00007,145449
Sandwell Metropolitan Borough Council,http://www.sandwell.gov.uk/info/200202/performance_and_spending/1079/payments_over_500,04-Jun-2021,Adults Social Care Capital,DONYA TRAVEL,Adults Social Care Capital,2667.00,Grant Payments,2122P03_CR00008,144491
Sandwell Metropolitan Borough Council,http://www.sandwell.gov.uk/info/200202/performance_and_spending/1079/payments_over_500,21-Jun-2021,Adults Social Care Capital,JANICE WESTON AND LORAINE JOHNSON T/A TRES CHARMANTE,Adults Social Care Capital,2667.00,Grant Payments,2122P03_CR00009,144394
Sandwell Metropolitan Borough Council,http://www.sandwell.gov.uk/info/200202/performance_and_spending/1079/payments_over_500,11-Jun-2021,Adults Social Care Capital,L CLINTON T/A BRIDALWEAR,Adults Social Care Capital,2667.00,Grant Payments,2122P03_CR00010,142719
Sandwell Metropolitan Borough Council,http://www.sandwell.gov.uk/info/200202/performance_and_spending/1079/payments_over_500,04-Jun-2021,Adults Social Care Capital,LEANNE EDWARDS T/A SOPHIA`S BABY CLOTHES AND ACCESSORIES,Adults Social Care Capital,2667.00,Grant Payments,2122P03_CR00011,144779
Sandwell Metropolitan Borough Council,http://www.sandwell.gov.uk/info/200202/performance_and_spending/1079/payments_over_500,07-Jun-2021,Adults Social Care Capital,MAMADI JATTA T/A TJ TAILORING,Adults Social Care Capital,2667.00,Grant Payments,2122P03_CR00012,145331
Sandwell Metropolitan Borough Council,http://www.sandwell.gov.uk/info/200202/performance_and_spending/1079/payments_over_500,28-Jun-2021,Adults Social Care Capital,MOBILITY AIDS CENTRE,Adults Social Care Capital,2667.00,Grant Payments,2122P03_CR00013,71429
Sandwell Metropolitan Borough Council,http://www.sandwell.gov.uk/info/200202/performance_and_spending/1079/payments_over_500,23-Jun-2021,Adults Social Care Capital,MR NIZAR AKRAM T/A RASHA HOT HAND CARWASH,Adults Social Care Capital,2667.00,Grant Payments,2122P03_CR00014,146886
Sandwell Metropolitan Borough Council,http://www.sandwell.gov.uk/info/200202/performance_and_spending/1079/payments_over_500,04-Jun-2021,Adults Social Care Capital,MRS EVANDELANE MORRIS T/A GOLDEN KEYS BRIDAL,Adults Social Care Capital,2667.00,Grant Payments,2122P03_CR00015,146202
Sandwell Metropolitan Borough Council,http://www.sandwell.gov.uk/info/200202/performance_and_spending/1079/payments_over_500,03-Jun-2021,Adults Social Care Capital,RAJPOOT DISCOUNT,Adults Social Care Capital,2667.00,Grant Payments,2122P03_CR00016,144257
Sandwell Metropolitan Borough Council,http://www.sandwell.gov.uk/info/200202/performance_and_spending/1079/payments_over_500,04-Jun-2021,Adults Social Care Capital,SCOPE                                                           01,Adults Social Care Capital,2667.00,Grant Payments,2122P03_CR00017,4544
Sandwell Metropolitan Borough Council,http://www.sandwell.gov.uk/info/200202/performance_and_spending/1079/payments_over_500,25-Jun-2021,Adults Social Care Capital,SEGAR HAND CAR WASH,Adults Social Care Capital,2667.00,Grant Payments,2122P03_CR00018,144875
Sandwell Metropolitan Borough Council,http://www.sandwell.gov.uk/info/200202/performance_and_spending/1079/payments_over_500,21-Jun-2021,Adults Social Care Capital,SHAHRAM IBRAHIM T/A BLUE HAND CAR WASH,Adults Social Care Capital,2667.00,Grant Payments,2122P03_CR00019,146085
Sandwell Metropolitan Borough Council,http://www.sandwell.gov.uk/info/200202/performance_and_spending/1079/payments_over_500,02-Jun-2021,Adults Social Care Capital,SPLINTER STUDIOS,Adults Social Care Capital,2667.00,Grant Payments,2122P03_CR00020,141799
Sandwell Metropolitan Borough Council,http://www.sandwell.gov.uk/info/200202/performance_and_spending/1079/payments_over_500,01-Jun-2021,Adults Social Care Capital,THE LEUKAEMIA UNIT APPEAL FUND,Adults Social Care Capital,2667.00,Grant Payments,2122P03_CR00021,145440
Sandwell Metropolitan Borough Council,http://www.sandwell.gov.uk/info/200202/performance_and_spending/1079/payments_over_500,23-Jun-2021,Adults Social Care Capital,BOWJANGLES MIDLANDS LTD,Adults Social Care Capital,2667.00,Grant Payments,2122P03_CR00022,143953
Sandwell Metropolitan Borough Council,http://www.sandwell.gov.uk/info/200202/performance_and_spending/1079/payments_over_500,18-Jun-2021,Adults Social Care Capital,MAXWHIT SERVICES LTD,Adults Social Care Capital,2667.00,Grant Payments,2122P03_CR00023,152437
Sandwell Metropolitan Borough Council,http://www.sandwell.gov.uk/info/200202/performance_and_spending/1079/payments_over_500,21-Jun-2021,Adults Social Care Capital,MOBILE STUFF LIMITED,Adults Social Care Capital,2667.00,Grant Payments,2122P03_CR00024,143265
Sandwell Metropolitan Borough Council,http://www.sandwell.gov.uk/info/200202/performance_and_spending/1079/payments_over_500,23-Jun-2021,Adults Social Care Capital,MOBILE STUFF LIMITED,Adults Social Care Capital,2667.00,Grant Payments,2122P03_CR00025,143265
Sandwell Metropolitan Borough Council,http://www.sandwell.gov.uk/info/200202/performance_and_spending/1079/payments_over_500,28-Jun-2021,Adults Social Care Capital,NEW FLAIR LTD,Adults Social Care Capital,2667.00,Grant Payments,2122P03_CR00026,144392
Sandwell Metropolitan Borough Council,http://www.sandwell.gov.uk/info/200202/performance_and_spending/1079/payments_over_500,23-Jun-2021,Adults Social Care Capital,PALM TRADING GB LTD,Adults Social Care Capital,2667.00,Grant Payments,2122P03_CR00027,143252
Sandwell Metropolitan Borough Council,http://www.sandwell.gov.uk/info/200202/performance_and_spending/1079/payments_over_500,02-Jun-2021,Adults Social Care Capital,PORKY'S CAFE LTD,Adults Social Care Capital,2667.00,Grant Payments,2122P03_CR00028,146916
Sandwell Metropolitan Borough Council,http://www.sandwell.gov.uk/info/200202/performance_and_spending/1079/payments_over_500,03-Jun-2021,Adults Social Care Capital,REDACTED PERSONAL DATA,Adults Social Care Capital,2667.00,Grant Payments,2122P03_CR00029,REDACTED PERSONAL DATA
Sandwell Metropolitan Borough Council,http://www.sandwell.gov.uk/info/200202/performance_and_spending/1079/payments_over_500,08-Jun-2021,Adults Social Care Capital,REDACTED PERSONAL DATA,Adults Social Care Capital,2667.00,Grant Payments,2122P03_CR00030,REDACTED PERSONAL DATA
Sandwell Metropolitan Borough Council,http://www.sandwell.gov.uk/info/200202/performance_and_spending/1079/payments_over_500,08-Jun-2021,Adults Social Care Capital,REDACTED PERSONAL DATA,Adults Social Care Capital,2667.00,Grant Payments,2122P03_CR00031,REDACTED PERSONAL DATA
Sandwell Metropolitan Borough Council,http://www.sandwell.gov.uk/info/200202/performance_and_spending/1079/payments_over_500,15-Jun-2021,Adults Social Care Capital,REDACTED PERSONAL DATA,Adults Social Care Capital,2667.00,Grant Payments,2122P03_CR00032,REDACTED PERSONAL DATA
Sandwell Metropolitan Borough Council,http://www.sandwell.gov.uk/info/200202/performance_and_spending/1079/payments_over_500,01-Jun-2021,Adults Social Care Capital,REDACTED PERSONAL DATA,Adults Social Care Capital,2667.00,Grant Payments,2122P03_CR00033,REDACTED PERSONAL DATA
Sandwell Metropolitan Borough Council,http://www.sandwell.gov.uk/info/200202/performance_and_spending/1079/payments_over_500,25-Jun-2021,Adults Social Care Capital,REDACTED PERSONAL DATA,Adults Social Care Capital,2667.00,Grant Payments,2122P03_CR00034,REDACTED PERSONAL DATA
Sandwell Metropolitan Borough Council,http://www.sandwell.gov.uk/info/200202/performance_and_spending/1079/payments_over_500,21-Jun-2021,Adults Social Care Capital,REDACTED PERSONAL DATA,Adults Social Care Capital,2667.00,Grant Payments,2122P03_CR00035,REDACTED PERSONAL DATA
Sandwell Metropolitan Borough Council,http://www.sandwell.gov.uk/info/200202/performance_and_spending/1079/payments_over_500,03-Jun-2021,Adults Social Care Capital,REDACTED PERSONAL DATA,Adults Social Care Capital,2667.00,Grant Payments,2122P03_CR00036,REDACTED PERSONAL DATA
Sandwell Metropolitan Borough Council,http://www.sandwell.gov.uk/info/200202/performance_and_spending/1079/payments_over_500,28-Jun-2021,Adults Social Care Capital,REDACTED PERSONAL DATA,Adults Social Care Capital,2667.00,Grant Payments,2122P03_CR00037,REDACTED PERSONAL DATA
Sandwell Metropolitan Borough Council,http://www.sandwell.gov.uk/info/200202/performance_and_spending/1079/payments_over_500,01-Jun-2021,Adults Social Care Capital,REDACTED PERSONAL DATA,Adults Social Care Capital,2667.00,Grant Payments,2122P03_CR00038,REDACTED PERSONAL DATA
Sandwell Metropolitan Borough Council,http://www.sandwell.gov.uk/info/200202/performance_and_spending/1079/payments_over_500,01-Jun-2021,Adults Social Care Capital,SHAHEEN EXCHANGE & TRAVELS LTD,Adults Social Care Capital,2667.00,Grant Payments,2122P03_CR00039,147193
Sandwell Metropolitan Borough Council,http://www.sandwell.gov.uk/info/200202/performance_and_spending/1079/payments_over_500,18-Jun-2021,Adults Social Care Capital,SMETHWICK CAR PARTS LTD,Adults Social Care Capital,2667.00,Grant Payments,2122P03_CR00040,151932
Sandwell Metropolitan Borough Council,http://www.sandwell.gov.uk/info/200202/performance_and_spending/1079/payments_over_500,07-Jun-2021,Adults Social Care Capital,STRIKE ANGLING LTD,Adults Social Care Capital,2667.00,Grant Payments,2122P03_CR00041,92894
Sandwell Metropolitan Borough Council,http://www.sandwell.gov.uk/info/200202/performance_and_spending/1079/payments_over_500,25-Jun-2021,Adults Social Care Capital,TECHNGADGET LTD,Adults Social Care Capital,2667.00,Grant Payments,2122P03_CR00042,143929
Sandwell Metropolitan Borough Council,http://www.sandwell.gov.uk/info/200202/performance_and_spending/1079/payments_over_500,11-Jun-2021,Adults Social Care Capital,UK MOBILES LTD,Adults Social Care Capital,2667.00,Grant Payments,2122P03_CR00043,146834
Sandwell Metropolitan Borough Council,http://www.sandwell.gov.uk/info/200202/performance_and_spending/1079/payments_over_500,23-Jun-2021,Adults Social Care Capital,JOHN GILLESPIE CONTRACTORS LTD,Adults Social Care Capital,2838.61,Deferred Charges/Grant Payments,2122P03_CR00044,82566
Sandwell Metropolitan Borough Council,http://www.sandwell.gov.uk/info/200202/performance_and_spending/1079/payments_over_500,03-Jun-2021,Adults Social Care Capital,TELENT TECHNOLOGY SERVICES LIMITED,Adults Social Care Capital,3112.28,Operational Services ,2122P03_CR00045,26331
Sandwell Metropolitan Borough Council,http://www.sandwell.gov.uk/info/200202/performance_and_spending/1079/payments_over_500,23-Jun-2021,Adults Social Care Capital,T.A. SMITH (BUILDERS) LIMITED,Adults Social Care Capital,3538.50,Deferred Charges/Grant Payments,2122P03_CR00046,89846
Sandwell Metropolitan Borough Council,http://www.sandwell.gov.uk/info/200202/performance_and_spending/1079/payments_over_500,01-Jun-2021,Adults Social Care Capital,LIFT & ENGINEERING SERVICES LTD,Adults Social Care Capital,3706.22,"CIP - New Construction,Conversion, Enhancement & Reno",2122P03_CR00047,77003962
Sandwell Metropolitan Borough Council,http://www.sandwell.gov.uk/info/200202/performance_and_spending/1079/payments_over_500,22-Jun-2021,Adults Social Care Capital,PRAKASH TONY SINGH T/A EX-CATALOGUE,Adults Social Care Capital,4000.00,Grant Payments,2122P03_CR00048,143934
Sandwell Metropolitan Borough Council,http://www.sandwell.gov.uk/info/200202/performance_and_spending/1079/payments_over_500,01-Jun-2021,Adults Social Care Capital,ABS CARPETS & BEDS LTD,Adults Social Care Capital,4000.00,Grant Payments,2122P03_CR00049,38237
Sandwell Metropolitan Borough Council,http://www.sandwell.gov.uk/info/200202/performance_and_spending/1079/payments_over_500,04-Jun-2021,Adults Social Care Capital,C. & J. CLARK INTERNATIONAL LIMITED,Adults Social Care Capital,4000.00,Grant Payments,2122P03_CR00050,151571
Sandwell Metropolitan Borough Council,http://www.sandwell.gov.uk/info/200202/performance_and_spending/1079/payments_over_500,25-Jun-2021,Adults Social Care Capital,SIGNET TRADING LTD,Adults Social Care Capital,4000.00,Grant Payments,2122P03_CR00051,100490
Sandwell Metropolitan Borough Council,http://www.sandwell.gov.uk/info/200202/performance_and_spending/1079/payments_over_500,09-Jun-2021,Adults Social Care Capital,TRINITY CARPETS LTD,Adults Social Care Capital,4000.00,Grant Payments,2122P03_CR00052,01783311
Sandwell Metropolitan Borough Council,http://www.sandwell.gov.uk/info/200202/performance_and_spending/1079/payments_over_500,25-Jun-2021,Adults Social Care Capital,RIO SPA BEAUTY LIMITED,Adults Social Care Capital,5333.00,Grant Payments,2122P03_CR00053,145426
Sandwell Metropolitan Borough Council,http://www.sandwell.gov.uk/info/200202/performance_and_spending/1079/payments_over_500,01-Jun-2021,Adults Social Care Capital,RIDGE & PARTNERS LLP,Adults Social Care Capital,6000.00,"CIP - New Construction,Conversion, Enhancement & Reno",2122P03_CR00054,134994
Sandwell Metropolitan Borough Council,http://www.sandwell.gov.uk/info/200202/performance_and_spending/1079/payments_over_500,25-Jun-2021,Adults Social Care Capital,DUNELM SOFT FURNISHING,Adults Social Care Capital,6000.00,Grant Payments,2122P03_CR00055,01517328
Sandwell Metropolitan Borough Council,http://www.sandwell.gov.uk/info/200202/performance_and_spending/1079/payments_over_500,09-Jun-2021,Adults Social Care Capital,MARKS AND SPENCER P.L.C.,Adults Social Care Capital,6000.00,Grant Payments,2122P03_CR00056,151582
Sandwell Metropolitan Borough Council,http://www.sandwell.gov.uk/info/200202/performance_and_spending/1079/payments_over_500,07-Jun-2021,Adults Social Care Capital,BRISTOL ST FIRST INVESTMENTS LTD,Adults Social Care Capital,6000.00,Grant Payments,2122P03_CR00057,152315
Sandwell Metropolitan Borough Council,http://www.sandwell.gov.uk/info/200202/performance_and_spending/1079/payments_over_500,30-Jun-2021,Adults Social Care Capital,GENUS UK LIMITED T/A SELECT RETAIL,Adults Social Care Capital,6000.00,Grant Payments,2122P03_CR00058,142736
Sandwell Metropolitan Borough Council,http://www.sandwell.gov.uk/info/200202/performance_and_spending/1079/payments_over_500,28-Jun-2021,Adults Social Care Capital,MATALAN RETAIL LTD,Adults Social Care Capital,6000.00,Grant Payments,2122P03_CR00059,151629
Sandwell Metropolitan Borough Council,http://www.sandwell.gov.uk/info/200202/performance_and_spending/1079/payments_over_500,28-Jun-2021,Adults Social Care Capital,MATALAN RETAIL LTD,Adults Social Care Capital,6000.00,Grant Payments,2122P03_CR00060,151629
Sandwell Metropolitan Borough Council,http://www.sandwell.gov.uk/info/200202/performance_and_spending/1079/payments_over_500,25-Jun-2021,Adults Social Care Capital,MOTORPOINT LIMITED,Adults Social Care Capital,6000.00,Grant Payments,2122P03_CR00061,150978
Sandwell Metropolitan Borough Council,http://www.sandwell.gov.uk/info/200202/performance_and_spending/1079/payments_over_500,18-Jun-2021,Adults Social Care Capital,NEW LOOK RETAILERS LIMITED,Adults Social Care Capital,6000.00,Grant Payments,2122P03_CR00062,150438
Sandwell Metropolitan Borough Council,http://www.sandwell.gov.uk/info/200202/performance_and_spending/1079/payments_over_500,25-Jun-2021,Adults Social Care Capital,RIVER ISLAND CLOTHING CO. LIMITED,Adults Social Care Capital,6000.00,Grant Payments,2122P03_CR00063,151525
Sandwell Metropolitan Borough Council,http://www.sandwell.gov.uk/info/200202/performance_and_spending/1079/payments_over_500,22-Jun-2021,Adults Social Care Capital,STORE 4 MORE LTD,Adults Social Care Capital,6000.00,Grant Payments,2122P03_CR00064,152497
Sandwell Metropolitan Borough Council,http://www.sandwell.gov.uk/info/200202/performance_and_spending/1079/payments_over_500,25-Jun-2021,Adults Social Care Capital,THE ENTERTAINER (AMERSHAM) LIMITED,Adults Social Care Capital,6000.00,Grant Payments,2122P03_CR00065,151572
Sandwell Metropolitan Borough Council,http://www.sandwell.gov.uk/info/200202/performance_and_spending/1079/payments_over_500,30-Jun-2021,Adults Social Care Capital,THE TRADE CENTRE GROUP PLC,Adults Social Care Capital,6000.00,Grant Payments,2122P03_CR00066,150741
Sandwell Metropolitan Borough Council,http://www.sandwell.gov.uk/info/200202/performance_and_spending/1079/payments_over_500,10-Jun-2021,Adults Social Care Capital,LIFT & ENGINEERING SERVICES LTD,Adults Social Care Capital,6243.43,"CIP - New Construction,Conversion, Enhancement & Reno",2122P03_CR00067,77003962
Sandwell Metropolitan Borough Council,http://www.sandwell.gov.uk/info/200202/performance_and_spending/1079/payments_over_500,01-Jun-2021,Adults Social Care Capital,LIFT & ENGINEERING SERVICES LTD,Adults Social Care Capital,6473.85,"CIP - New Construction,Conversion, Enhancement & Reno",2122P03_CR00068,77003962
Sandwell Metropolitan Borough Council,http://www.sandwell.gov.uk/info/200202/performance_and_spending/1079/payments_over_500,18-Jun-2021,Adults Social Care Capital,BRITISH TELECOMMUNICATIONS PLC,Adults Social Care Capital,6984.46,CIP - Infrastructure,2122P03_CR00069,01070528
Sandwell Metropolitan Borough Council,http://www.sandwell.gov.uk/info/200202/performance_and_spending/1079/payments_over_500,01-Jun-2021,Adults Social Care Capital,ALAN A MOHAMMED T/A TOP STYLIST,Adults Social Care Capital,8000.00,Grant Payments,2122P03_CR00070,144057
Sandwell Metropolitan Borough Council,http://www.sandwell.gov.uk/info/200202/performance_and_spending/1079/payments_over_500,25-Jun-2021,Adults Social Care Capital,AMANDEEP KAUR T/A BEAUTY STOP,Adults Social Care Capital,8000.00,Grant Payments,2122P03_CR00071,142718
Sandwell Metropolitan Borough Council,http://www.sandwell.gov.uk/info/200202/performance_and_spending/1079/payments_over_500,08-Jun-2021,Adults Social Care Capital,HUISTA LAIDFORD T/A HIBSCUS UNISEX SALON,Adults Social Care Capital,8000.00,Grant Payments,2122P03_CR00072,146053
Sandwell Metropolitan Borough Council,http://www.sandwell.gov.uk/info/200202/performance_and_spending/1079/payments_over_500,01-Jun-2021,Adults Social Care Capital,MOHAMED S H K DEEN T/A PICANTES TEX MEX,Adults Social Care Capital,8000.00,Grant Payments,2122P03_CR00073,143298
Sandwell Metropolitan Borough Council,http://www.sandwell.gov.uk/info/200202/performance_and_spending/1079/payments_over_500,23-Jun-2021,Adults Social Care Capital,MR KAPIL DEV NAGI T-A NAGI HAIRDRESSERS,Adults Social Care Capital,8000.00,Grant Payments,2122P03_CR00074,142696
Sandwell Metropolitan Borough Council,http://www.sandwell.gov.uk/info/200202/performance_and_spending/1079/payments_over_500,11-Jun-2021,Adults Social Care Capital,MRS SANDEEP KAUR T/A SANDEEP HAIR AND BEAUTY,Adults Social Care Capital,8000.00,Grant Payments,2122P03_CR00075,144987
Sandwell Metropolitan Borough Council,http://www.sandwell.gov.uk/info/200202/performance_and_spending/1079/payments_over_500,08-Jun-2021,Adults Social Care Capital,NADIA ASHRAF T/A NADS HAIR AND BEAUTY,Adults Social Care Capital,8000.00,Grant Payments,2122P03_CR00076,142973
Sandwell Metropolitan Borough Council,http://www.sandwell.gov.uk/info/200202/performance_and_spending/1079/payments_over_500,02-Jun-2021,Adults Social Care Capital,NICOLE SEDGWICK T/A NICOLES NAILS,Adults Social Care Capital,8000.00,Grant Payments,2122P03_CR00077,142657
Sandwell Metropolitan Borough Council,http://www.sandwell.gov.uk/info/200202/performance_and_spending/1079/payments_over_500,08-Jun-2021,Adults Social Care Capital,WELL LIFE PHYSIOTHERAPY,Adults Social Care Capital,8000.00,Grant Payments,2122P03_CR00078,149594
Sandwell Metropolitan Borough Council,http://www.sandwell.gov.uk/info/200202/performance_and_spending/1079/payments_over_500,21-Jun-2021,Adults Social Care Capital,YORK ROAD SOCIAL AND SPORTS CLUB,Adults Social Care Capital,8000.00,Grant Payments,2122P03_CR00079,139062
Sandwell Metropolitan Borough Council,http://www.sandwell.gov.uk/info/200202/performance_and_spending/1079/payments_over_500,30-Jun-2021,Adults Social Care Capital,GB PUBS (MIDLANDS) LTD,Adults Social Care Capital,8000.00,Grant Payments,2122P03_CR00080,146462
Sandwell Metropolitan Borough Council,http://www.sandwell.gov.uk/info/200202/performance_and_spending/1079/payments_over_500,01-Jun-2021,Adults Social Care Capital,JACKSONS CATERING CO. LIMITED,Adults Social Care Capital,8000.00,Grant Payments,2122P03_CR00081,01681438
Sandwell Metropolitan Borough Council,http://www.sandwell.gov.uk/info/200202/performance_and_spending/1079/payments_over_500,01-Jun-2021,Adults Social Care Capital,KHATKAR LTD,Adults Social Care Capital,8000.00,Grant Payments,2122P03_CR00082,145416
Sandwell Metropolitan Borough Council,http://www.sandwell.gov.uk/info/200202/performance_and_spending/1079/payments_over_500,03-Jun-2021,Adults Social Care Capital,KHATKAR LTD,Adults Social Care Capital,8000.00,Grant Payments,2122P03_CR00083,145416
Sandwell Metropolitan Borough Council,http://www.sandwell.gov.uk/info/200202/performance_and_spending/1079/payments_over_500,23-Jun-2021,Adults Social Care Capital,MERCY FACILITIES MANAGEMENT LTD,Adults Social Care Capital,8000.00,Grant Payments,2122P03_CR00084,152520
Sandwell Metropolitan Borough Council,http://www.sandwell.gov.uk/info/200202/performance_and_spending/1079/payments_over_500,04-Jun-2021,Adults Social Care Capital,N & E (GB) LTD,Adults Social Care Capital,8000.00,Grant Payments,2122P03_CR00085,142249
Sandwell Metropolitan Borough Council,http://www.sandwell.gov.uk/info/200202/performance_and_spending/1079/payments_over_500,30-Jun-2021,Adults Social Care Capital,P.S.B. INVESTMENTS LIMITED,Adults Social Care Capital,8000.00,Grant Payments,2122P03_CR00086,143994
Sandwell Metropolitan Borough Council,http://www.sandwell.gov.uk/info/200202/performance_and_spending/1079/payments_over_500,21-Jun-2021,Adults Social Care Capital,PICKLE & PARATHA LTD,Adults Social Care Capital,8000.00,Grant Payments,2122P03_CR00087,151928
Sandwell Metropolitan Borough Council,http://www.sandwell.gov.uk/info/200202/performance_and_spending/1079/payments_over_500,02-Jun-2021,Adults Social Care Capital,REDACTED PERSONAL DATA,Adults Social Care Capital,8000.00,Grant Payments,2122P03_CR00088,REDACTED PERSONAL DATA
Sandwell Metropolitan Borough Council,http://www.sandwell.gov.uk/info/200202/performance_and_spending/1079/payments_over_500,21-Jun-2021,Adults Social Care Capital,REDACTED PERSONAL DATA,Adults Social Care Capital,8000.00,Grant Payments,2122P03_CR00089,REDACTED PERSONAL DATA
Sandwell Metropolitan Borough Council,http://www.sandwell.gov.uk/info/200202/performance_and_spending/1079/payments_over_500,15-Jun-2021,Adults Social Care Capital,REDACTED PERSONAL DATA,Adults Social Care Capital,8000.00,Grant Payments,2122P03_CR00090,REDACTED PERSONAL DATA
Sandwell Metropolitan Borough Council,http://www.sandwell.gov.uk/info/200202/performance_and_spending/1079/payments_over_500,01-Jun-2021,Adults Social Care Capital,REDACTED PERSONAL DATA,Adults Social Care Capital,8000.00,Grant Payments,2122P03_CR00091,REDACTED PERSONAL DATA
Sandwell Metropolitan Borough Council,http://www.sandwell.gov.uk/info/200202/performance_and_spending/1079/payments_over_500,11-Jun-2021,Adults Social Care Capital,REDACTED PERSONAL DATA,Adults Social Care Capital,8000.00,Grant Payments,2122P03_CR00092,REDACTED PERSONAL DATA
Sandwell Metropolitan Borough Council,http://www.sandwell.gov.uk/info/200202/performance_and_spending/1079/payments_over_500,01-Jun-2021,Adults Social Care Capital,REDACTED PERSONAL DATA,Adults Social Care Capital,8000.00,Grant Payments,2122P03_CR00093,REDACTED PERSONAL DATA
Sandwell Metropolitan Borough Council,http://www.sandwell.gov.uk/info/200202/performance_and_spending/1079/payments_over_500,02-Jun-2021,Adults Social Care Capital,REDACTED PERSONAL DATA,Adults Social Care Capital,8000.00,Grant Payments,2122P03_CR00094,REDACTED PERSONAL DATA
Sandwell Metropolitan Borough Council,http://www.sandwell.gov.uk/info/200202/performance_and_spending/1079/payments_over_500,08-Jun-2021,Adults Social Care Capital,REDACTED PERSONAL DATA,Adults Social Care Capital,8000.00,Grant Payments,2122P03_CR00095,REDACTED PERSONAL DATA
Sandwell Metropolitan Borough Council,http://www.sandwell.gov.uk/info/200202/performance_and_spending/1079/payments_over_500,30-Jun-2021,Adults Social Care Capital,REDACTED PERSONAL DATA,Adults Social Care Capital,8000.00,Grant Payments,2122P03_CR00096,REDACTED PERSONAL DATA
Sandwell Metropolitan Borough Council,http://www.sandwell.gov.uk/info/200202/performance_and_spending/1079/payments_over_500,07-Jun-2021,Adults Social Care Capital,S M M CARPENTRY SERVICES LTD,Adults Social Care Capital,8000.00,Grant Payments,2122P03_CR00097,145354
Sandwell Metropolitan Borough Council,http://www.sandwell.gov.uk/info/200202/performance_and_spending/1079/payments_over_500,01-Jun-2021,Adults Social Care Capital,SHIRELAND INN LIMITED,Adults Social Care Capital,8000.00,Grant Payments,2122P03_CR00098,144643
Sandwell Metropolitan Borough Council,http://www.sandwell.gov.uk/info/200202/performance_and_spending/1079/payments_over_500,04-Jun-2021,Adults Social Care Capital,SMETHWICK LABOUR CLUB AND INSTITUTE LIMITED,Adults Social Care Capital,8000.00,Grant Payments,2122P03_CR00099,152153
Sandwell Metropolitan Borough Council,http://www.sandwell.gov.uk/info/200202/performance_and_spending/1079/payments_over_500,21-Jun-2021,Adults Social Care Capital,SUES UNIQUE SALON LTD,Adults Social Care Capital,8000.00,Grant Payments,2122P03_CR00100,150273
Sandwell Metropolitan Borough Council,http://www.sandwell.gov.uk/info/200202/performance_and_spending/1079/payments_over_500,02-Jun-2021,Adults Social Care Capital,THE JUBILEE PUB LIMITED,Adults Social Care Capital,8000.00,Grant Payments,2122P03_CR00101,145906
Sandwell Metropolitan Borough Council,http://www.sandwell.gov.uk/info/200202/performance_and_spending/1079/payments_over_500,09-Jun-2021,Adults Social Care Capital,WESTBOURNE LEISURE LIMITED,Adults Social Care Capital,8000.00,Grant Payments,2122P03_CR00102,144731
Sandwell Metropolitan Borough Council,http://www.sandwell.gov.uk/info/200202/performance_and_spending/1079/payments_over_500,09-Jun-2021,Adults Social Care Capital,LIFT & ENGINEERING SERVICES LTD,Adults Social Care Capital,8681.30,"CIP - New Construction,Conversion, Enhancement & Reno",2122P03_CR00103,77003962
Sandwell Metropolitan Borough Council,http://www.sandwell.gov.uk/info/200202/performance_and_spending/1079/payments_over_500,03-Jun-2021,Adults Social Care Capital,TERRY GROUP LIMITED,Adults Social Care Capital,8982.00,Deferred Charges/Grant Payments,2122P03_CR00104,77002029
Sandwell Metropolitan Borough Council,http://www.sandwell.gov.uk/info/200202/performance_and_spending/1079/payments_over_500,10-Jun-2021,Adults Social Care Capital,PR PROPERTY MAINTENANCE,Adults Social Care Capital,10353.95,Deferred Charges/Grant Payments,2122P03_CR00105,33836
Sandwell Metropolitan Borough Council,http://www.sandwell.gov.uk/info/200202/performance_and_spending/1079/payments_over_500,18-Jun-2021,Adults Social Care Capital,CHARLEMONT BOWLING CLUB,Adults Social Care Capital,12000.00,Grant Payments,2122P03_CR00106,81304
Sandwell Metropolitan Borough Council,http://www.sandwell.gov.uk/info/200202/performance_and_spending/1079/payments_over_500,09-Jun-2021,Adults Social Care Capital,DARTMOUTH COMMUNITY HUB CIC,Adults Social Care Capital,12000.00,Grant Payments,2122P03_CR00107,144685
Sandwell Metropolitan Borough Council,http://www.sandwell.gov.uk/info/200202/performance_and_spending/1079/payments_over_500,02-Jun-2021,Adults Social Care Capital,LUXURY LEISURE,Adults Social Care Capital,12000.00,Grant Payments,2122P03_CR00108,151312
Sandwell Metropolitan Borough Council,http://www.sandwell.gov.uk/info/200202/performance_and_spending/1079/payments_over_500,15-Jun-2021,Adults Social Care Capital,MR RYAN OTTLEY T/A SION COCKTAIL BAR,Adults Social Care Capital,12000.00,Grant Payments,2122P03_CR00109,143937
Sandwell Metropolitan Borough Council,http://www.sandwell.gov.uk/info/200202/performance_and_spending/1079/payments_over_500,28-Jun-2021,Adults Social Care Capital,"MUHAMMAD YASIR AZIZ, KASHIF REHMAN ANSARI T/A BIG MANS FOOD",Adults Social Care Capital,12000.00,Grant Payments,2122P03_CR00110,145625
Sandwell Metropolitan Borough Council,http://www.sandwell.gov.uk/info/200202/performance_and_spending/1079/payments_over_500,21-Jun-2021,Adults Social Care Capital,WEDNESBURY RUGBY CLUB,Adults Social Care Capital,12000.00,Grant Payments,2122P03_CR00111,76287
Sandwell Metropolitan Borough Council,http://www.sandwell.gov.uk/info/200202/performance_and_spending/1079/payments_over_500,01-Jun-2021,Adults Social Care Capital,YEMENI COMMUNITY ASSOCIATION IN SANDWELL,Adults Social Care Capital,12000.00,Grant Payments,2122P03_CR00112,01711292
Sandwell Metropolitan Borough Council,http://www.sandwell.gov.uk/info/200202/performance_and_spending/1079/payments_over_500,18-Jun-2021,Adults Social Care Capital,YEMENI COMMUNITY ASSOCIATION IN SANDWELL,Adults Social Care Capital,12000.00,Grant Payments,2122P03_CR00113,01711292
Sandwell Metropolitan Borough Council,http://www.sandwell.gov.uk/info/200202/performance_and_spending/1079/payments_over_500,18-Jun-2021,Adults Social Care Capital,YEMENI COMMUNITY ASSOCIATION IN SANDWELL,Adults Social Care Capital,12000.00,Grant Payments,2122P03_CR00114,01711292
Sandwell Metropolitan Borough Council,http://www.sandwell.gov.uk/info/200202/performance_and_spending/1079/payments_over_500,23-Jun-2021,Adults Social Care Capital,DR ASHOK AYURVEDA MEDICAL GROUP LTD,Adults Social Care Capital,12000.00,Grant Payments,2122P03_CR00115,145507
Sandwell Metropolitan Borough Council,http://www.sandwell.gov.uk/info/200202/performance_and_spending/1079/payments_over_500,01-Jun-2021,Adults Social Care Capital,KHATKAR COMPANY ( UK ) LTD,Adults Social Care Capital,12000.00,Grant Payments,2122P03_CR00116,146543
Sandwell Metropolitan Borough Council,http://www.sandwell.gov.uk/info/200202/performance_and_spending/1079/payments_over_500,01-Jun-2021,Adults Social Care Capital,KHATKAR ICE CREAM AND CATERING LTD,Adults Social Care Capital,12000.00,Grant Payments,2122P03_CR00117,144629
Sandwell Metropolitan Borough Council,http://www.sandwell.gov.uk/info/200202/performance_and_spending/1079/payments_over_500,21-Jun-2021,Adults Social Care Capital,REDACTED PERSONAL DATA,Adults Social Care Capital,12000.00,Grant Payments,2122P03_CR00118,REDACTED PERSONAL DATA
Sandwell Metropolitan Borough Council,http://www.sandwell.gov.uk/info/200202/performance_and_spending/1079/payments_over_500,21-Jun-2021,Adults Social Care Capital,S KAUR MATTU  T/A NEW ISLAND INN LTD,Adults Social Care Capital,12000.00,Grant Payments,2122P03_CR00119,144852
Sandwell Metropolitan Borough Council,http://www.sandwell.gov.uk/info/200202/performance_and_spending/1079/payments_over_500,07-Jun-2021,Adults Social Care Capital,VEGGIE FELLAS LTD,Adults Social Care Capital,12000.00,Grant Payments,2122P03_CR00120,145409
Sandwell Metropolitan Borough Council,http://www.sandwell.gov.uk/info/200202/performance_and_spending/1079/payments_over_500,01-Jun-2021,Adults Social Care Capital,LIQUIDLOGIC LIMITED,Adults Social Care Capital,14360.00,ICT ,2122P03_CR00121,83167
Sandwell Metropolitan Borough Council,http://www.sandwell.gov.uk/info/200202/performance_and_spending/1079/payments_over_500,02-Jun-2021,Adults Social Care Capital,JD SPORTS GYMS LIMITED,Adults Social Care Capital,18000.00,Grant Payments,2122P03_CR00122,151313
Sandwell Metropolitan Borough Council,http://www.sandwell.gov.uk/info/200202/performance_and_spending/1079/payments_over_500,18-Jun-2021,Adults Social Care Capital,REDACTED PERSONAL DATA,Adults Social Care Capital,18000.00,Grant Payments,2122P03_CR00123,REDACTED PERSONAL DATA
Sandwell Metropolitan Borough Council,http://www.sandwell.gov.uk/info/200202/performance_and_spending/1079/payments_over_500,24-Jun-2021,Adults Social Care Capital,SPLENDID RESTAURANTS (HARLAND) LIMITED,Adults Social Care Capital,18000.00,Grant Payments,2122P03_CR00124,150237
Sandwell Metropolitan Borough Council,http://www.sandwell.gov.uk/info/200202/performance_and_spending/1079/payments_over_500,18-Jun-2021,Adults Social Care Capital,TRAVELODGE HOTELS LTD,Adults Social Care Capital,18000.00,Grant Payments,2122P03_CR00125,148986
Sandwell Metropolitan Borough Council,http://www.sandwell.gov.uk/info/200202/performance_and_spending/1079/payments_over_500,15-Jun-2021,Adults Social Care Capital,WILLMOTT DIXON CONSTRUCTION LIMITED,Adults Social Care Capital,699956.10,"CIP - New Construction,Conversion, Enhancement & Reno",2122P03_CR00126,34081
Sandwell Metropolitan Borough Council,http://www.sandwell.gov.uk/info/200202/performance_and_spending/1079/payments_over_500,01-Jun-2021,Adults Social Care Capital,EASIBATHE LTD,Adults Social Care Capital,2064.36,Deferred Charges/Grant Payments,2122P03_CR00127,46096
Sandwell Metropolitan Borough Council,http://www.sandwell.gov.uk/info/200202/performance_and_spending/1079/payments_over_500,01-Jun-2021,Adults Social Care Capital,TDF DESIGN LIMITED,Adults Social Care Capital,10000.00,Deferred Charges/Grant Payments,2122P03_CR00128,10320
Sandwell Metropolitan Borough Council,http://www.sandwell.gov.uk/info/200202/performance_and_spending/1079/payments_over_500,09-Jun-2021,Adults Social Care Capital,TDF DESIGN LIMITED,Adults Social Care Capital,12000.00,Deferred Charges/Grant Payments,2122P03_CR00129,10320
Sandwell Metropolitan Borough Council,http://www.sandwell.gov.uk/info/200202/performance_and_spending/1079/payments_over_500,08-Jun-2021,Adults Social Care Capital,TDF DESIGN LIMITED,Adults Social Care Capital,12140.00,Deferred Charges/Grant Payments,2122P03_CR00130,10320
Sandwell Metropolitan Borough Council,http://www.sandwell.gov.uk/info/200202/performance_and_spending/1079/payments_over_500,01-Jun-2021,Adults Social Care Capital,TDF DESIGN LIMITED,Adults Social Care Capital,13500.00,Deferred Charges/Grant Payments,2122P03_CR00131,10320
Sandwell Metropolitan Borough Council,http://www.sandwell.gov.uk/info/200202/performance_and_spending/1079/payments_over_500,01-Jun-2021,Childrens Services,DIRECTION TRAINING & MANAGEMENT,Childrens Services,500.00,Externally Purchased Professional Services ,2122P03_CR00132,01727395
Sandwell Metropolitan Borough Council,http://www.sandwell.gov.uk/info/200202/performance_and_spending/1079/payments_over_500,01-Jun-2021,Childrens Services,DIRECTION TRAINING & MANAGEMENT,Childrens Services,500.00,Externally Purchased Professional Services ,2122P03_CR00133,01727395
Sandwell Metropolitan Borough Council,http://www.sandwell.gov.uk/info/200202/performance_and_spending/1079/payments_over_500,12-Jun-2021,Childrens Services,TOTAL GAS AND POWER LIMITED,Childrens Services,500.90,Electricity,2122P03_CR00134,107605
Sandwell Metropolitan Borough Council,http://www.sandwell.gov.uk/info/200202/performance_and_spending/1079/payments_over_500,01-Jun-2021,Childrens Services,WEST MIDLANDS TRAVEL LIMITED,Childrens Services,511.45,Public Transport,2122P03_CR00135,01736688
Sandwell Metropolitan Borough Council,http://www.sandwell.gov.uk/info/200202/performance_and_spending/1079/payments_over_500,12-Jun-2021,Childrens Services,TOTAL GAS AND POWER LIMITED,Childrens Services,511.99,Electricity,2122P03_CR00136,107605
Sandwell Metropolitan Borough Council,http://www.sandwell.gov.uk/info/200202/performance_and_spending/1079/payments_over_500,09-Jun-2021,Childrens Services,MENZIES DESIGN AND PRINT LTD,Childrens Services,538.00,Advertising & Publicity,2122P03_CR00137,113639
Sandwell Metropolitan Borough Council,http://www.sandwell.gov.uk/info/200202/performance_and_spending/1079/payments_over_500,01-Jun-2021,Childrens Services,SPOTON.NET LIMITED,Childrens Services,540.00,Subscriptions,2122P03_CR00138,128844
Sandwell Metropolitan Borough Council,http://www.sandwell.gov.uk/info/200202/performance_and_spending/1079/payments_over_500,01-Jun-2021,Childrens Services,OCR,Childrens Services,546.50,Externally Purchased Professional Services ,2122P03_CR00139,01620492
Sandwell Metropolitan Borough Council,http://www.sandwell.gov.uk/info/200202/performance_and_spending/1079/payments_over_500,21-Jun-2021,Childrens Services,BRAND FUSION INTERNATIONAL LTD,Childrens Services,560.00,Grants,2122P03_CR00140,152110
Sandwell Metropolitan Borough Council,http://www.sandwell.gov.uk/info/200202/performance_and_spending/1079/payments_over_500,21-Jun-2021,Childrens Services,BRAND FUSION INTERNATIONAL LTD,Childrens Services,560.00,Grants,2122P03_CR00141,152110
Sandwell Metropolitan Borough Council,http://www.sandwell.gov.uk/info/200202/performance_and_spending/1079/payments_over_500,01-Jun-2021,Childrens Services,CONWAY PACKING SERVICES LTD,Childrens Services,560.00,Grants,2122P03_CR00142,151356
Sandwell Metropolitan Borough Council,http://www.sandwell.gov.uk/info/200202/performance_and_spending/1079/payments_over_500,01-Jun-2021,Childrens Services,ROYALE TRAINING LTD,Childrens Services,583.00,Externally Purchased Professional Services ,2122P03_CR00143,133604
Sandwell Metropolitan Borough Council,http://www.sandwell.gov.uk/info/200202/performance_and_spending/1079/payments_over_500,01-Jun-2021,Childrens Services,ROYALE TRAINING LTD,Childrens Services,583.00,Externally Purchased Professional Services ,2122P03_CR00144,133604
Sandwell Metropolitan Borough Council,http://www.sandwell.gov.uk/info/200202/performance_and_spending/1079/payments_over_500,01-Jun-2021,Childrens Services,LOCAL EDUCATION AND DEVELOPMENT,Childrens Services,598.00,Grant Payments,2122P03_CR00145,148259
Sandwell Metropolitan Borough Council,http://www.sandwell.gov.uk/info/200202/performance_and_spending/1079/payments_over_500,11-Jun-2021,Childrens Services,REDACTED PERSONAL DATA,Childrens Services,605.34,External Contract Hire,2122P03_CR00146,REDACTED PERSONAL DATA
Sandwell Metropolitan Borough Council,http://www.sandwell.gov.uk/info/200202/performance_and_spending/1079/payments_over_500,01-Jun-2021,Childrens Services,OPUS EMPLOYER ENGAGEMENT SERVICES LIMITED,Childrens Services,670.00,Externally Purchased Professional Services ,2122P03_CR00147,126506
Sandwell Metropolitan Borough Council,http://www.sandwell.gov.uk/info/200202/performance_and_spending/1079/payments_over_500,01-Jun-2021,Childrens Services,OPUS EMPLOYER ENGAGEMENT SERVICES LIMITED,Childrens Services,670.00,Externally Purchased Professional Services ,2122P03_CR00148,126506
Sandwell Metropolitan Borough Council,http://www.sandwell.gov.uk/info/200202/performance_and_spending/1079/payments_over_500,01-Jun-2021,Childrens Services,OPUS EMPLOYER ENGAGEMENT SERVICES LIMITED,Childrens Services,670.00,Externally Purchased Professional Services ,2122P03_CR00149,126506
Sandwell Metropolitan Borough Council,http://www.sandwell.gov.uk/info/200202/performance_and_spending/1079/payments_over_500,01-Jun-2021,Childrens Services,EURO SHAF TRAINING SERVICES LIMITED,Childrens Services,695.00,Externally Purchased Professional Services ,2122P03_CR00150,76260
Sandwell Metropolitan Borough Council,http://www.sandwell.gov.uk/info/200202/performance_and_spending/1079/payments_over_500,08-Jun-2021,Childrens Services,CORONA ENERGY RETAIL 2 LIMITED,Childrens Services,698.32,Gas,2122P03_CR00151,118395
Sandwell Metropolitan Borough Council,http://www.sandwell.gov.uk/info/200202/performance_and_spending/1079/payments_over_500,12-Jun-2021,Childrens Services,TOTAL GAS AND POWER LIMITED,Childrens Services,701.92,Telephones,2122P03_CR00152,107605
Sandwell Metropolitan Borough Council,http://www.sandwell.gov.uk/info/200202/performance_and_spending/1079/payments_over_500,01-Jun-2021,Childrens Services,TOTAL GAS AND POWER LIMITED,Childrens Services,704.64,Electricity,2122P03_CR00153,107605
Sandwell Metropolitan Borough Council,http://www.sandwell.gov.uk/info/200202/performance_and_spending/1079/payments_over_500,01-Jun-2021,Childrens Services,DRYWALL STEEL SECTIONS LTD,Childrens Services,716.39,Grants,2122P03_CR00154,132994
Sandwell Metropolitan Borough Council,http://www.sandwell.gov.uk/info/200202/performance_and_spending/1079/payments_over_500,01-Jun-2021,Childrens Services,JPC TRAVEL SOLUTION,Childrens Services,720.00,Public Transport,2122P03_CR00155,138533
Sandwell Metropolitan Borough Council,http://www.sandwell.gov.uk/info/200202/performance_and_spending/1079/payments_over_500,01-Jun-2021,Childrens Services,XL DISPLAYS LIMITED,Childrens Services,725.00,Equipment & Furniture ,2122P03_CR00156,128768
Sandwell Metropolitan Borough Council,http://www.sandwell.gov.uk/info/200202/performance_and_spending/1079/payments_over_500,11-Jun-2021,Childrens Services,REDACTED PERSONAL DATA,Childrens Services,745.56,External Contract Hire,2122P03_CR00157,REDACTED PERSONAL DATA
Sandwell Metropolitan Borough Council,http://www.sandwell.gov.uk/info/200202/performance_and_spending/1079/payments_over_500,09-Jun-2021,Childrens Services,SIPS EDUCATION LTD,Childrens Services,789.20,Externally Purchased Professional Services ,2122P03_CR00158,110784
Sandwell Metropolitan Borough Council,http://www.sandwell.gov.uk/info/200202/performance_and_spending/1079/payments_over_500,04-Jun-2021,Childrens Services,GEL DATA SOLUTIONS LIMITED,Childrens Services,828.00,Externally Purchased Professional Services ,2122P03_CR00159,88332
Sandwell Metropolitan Borough Council,http://www.sandwell.gov.uk/info/200202/performance_and_spending/1079/payments_over_500,01-Jun-2021,Childrens Services,REDACTED PERSONAL DATA,Childrens Services,860.00,Childrens Services,2122P03_CR00160,REDACTED PERSONAL DATA
Sandwell Metropolitan Borough Council,http://www.sandwell.gov.uk/info/200202/performance_and_spending/1079/payments_over_500,01-Jun-2021,Childrens Services,HOPE EDUCATION LTD,Childrens Services,880.00,"Printing, Stationery & General Office Expenses",2122P03_CR00161,01777295
Sandwell Metropolitan Borough Council,http://www.sandwell.gov.uk/info/200202/performance_and_spending/1079/payments_over_500,14-Jun-2021,Childrens Services,IDOX SOFTWARE LTD,Childrens Services,900.00,ICT ,2122P03_CR00162,17007
Sandwell Metropolitan Borough Council,http://www.sandwell.gov.uk/info/200202/performance_and_spending/1079/payments_over_500,01-Jun-2021,Childrens Services,121 CARZ,Childrens Services,918.00,Public Transport,2122P03_CR00163,116848
Sandwell Metropolitan Borough Council,http://www.sandwell.gov.uk/info/200202/performance_and_spending/1079/payments_over_500,24-Jun-2021,Childrens Services,CONWAY PACKING SERVICES LTD,Childrens Services,941.16,Grants,2122P03_CR00164,151356
Sandwell Metropolitan Borough Council,http://www.sandwell.gov.uk/info/200202/performance_and_spending/1079/payments_over_500,10-Jun-2021,Childrens Services,TOTAL GAS AND POWER LIMITED,Childrens Services,942.30,Gas,2122P03_CR00165,107605
Sandwell Metropolitan Borough Council,http://www.sandwell.gov.uk/info/200202/performance_and_spending/1079/payments_over_500,01-Jun-2021,Childrens Services,HER MAJESTYS PRISON AND PROBATION SERVICE,Childrens Services,963.00,Other Establishments,2122P03_CR00166,134815
Sandwell Metropolitan Borough Council,http://www.sandwell.gov.uk/info/200202/performance_and_spending/1079/payments_over_500,01-Jun-2021,Childrens Services,WEST MIDLANDS ACCESSIBLE TRANSPORT LTD,Childrens Services,992.55,Public Transport,2122P03_CR00167,01694764
Sandwell Metropolitan Borough Council,http://www.sandwell.gov.uk/info/200202/performance_and_spending/1079/payments_over_500,22-Jun-2021,Childrens Services,WEST MIDLANDS ACCESSIBLE TRANSPORT LTD,Childrens Services,992.55,Public Transport,2122P03_CR00168,01694764
Sandwell Metropolitan Borough Council,http://www.sandwell.gov.uk/info/200202/performance_and_spending/1079/payments_over_500,14-Jun-2021,Childrens Services,MERLIN CATERING & REFRIGERATION LTD,Childrens Services,1004.70,Equipment & Furniture ,2122P03_CR00169,151839
Sandwell Metropolitan Borough Council,http://www.sandwell.gov.uk/info/200202/performance_and_spending/1079/payments_over_500,24-Jun-2021,Childrens Services,DRYWALL STEEL SECTIONS LTD,Childrens Services,1010.75,Grants,2122P03_CR00170,132994
Sandwell Metropolitan Borough Council,http://www.sandwell.gov.uk/info/200202/performance_and_spending/1079/payments_over_500,01-Jun-2021,Childrens Services,TOH TAXIS,Childrens Services,1036.01,Public Transport,2122P03_CR00171,12250
Sandwell Metropolitan Borough Council,http://www.sandwell.gov.uk/info/200202/performance_and_spending/1079/payments_over_500,12-Jun-2021,Childrens Services,TOTAL GAS AND POWER LIMITED,Childrens Services,1085.86,Electricity,2122P03_CR00172,107605
Sandwell Metropolitan Borough Council,http://www.sandwell.gov.uk/info/200202/performance_and_spending/1079/payments_over_500,01-Jun-2021,Childrens Services,OPUS EMPLOYER ENGAGEMENT SERVICES LIMITED,Childrens Services,1121.00,Externally Purchased Professional Services ,2122P03_CR00173,126506
Sandwell Metropolitan Borough Council,http://www.sandwell.gov.uk/info/200202/performance_and_spending/1079/payments_over_500,01-Jun-2021,Childrens Services,OPUS EMPLOYER ENGAGEMENT SERVICES LIMITED,Childrens Services,1121.00,Externally Purchased Professional Services ,2122P03_CR00174,126506
Sandwell Metropolitan Borough Council,http://www.sandwell.gov.uk/info/200202/performance_and_spending/1079/payments_over_500,01-Jun-2021,Childrens Services,OPUS EMPLOYER ENGAGEMENT SERVICES LIMITED,Childrens Services,1121.00,Externally Purchased Professional Services ,2122P03_CR00175,126506
Sandwell Metropolitan Borough Council,http://www.sandwell.gov.uk/info/200202/performance_and_spending/1079/payments_over_500,01-Jun-2021,Childrens Services,WEST MIDLANDS TRAVEL LIMITED,Childrens Services,1157.80,Public Transport,2122P03_CR00176,01736688
Sandwell Metropolitan Borough Council,http://www.sandwell.gov.uk/info/200202/performance_and_spending/1079/payments_over_500,01-Jun-2021,Childrens Services,CORONA ENERGY RETAIL 2 LIMITED,Childrens Services,1181.21,Gas,2122P03_CR00177,118395
Sandwell Metropolitan Borough Council,http://www.sandwell.gov.uk/info/200202/performance_and_spending/1079/payments_over_500,01-Jun-2021,Childrens Services,121 CARZ,Childrens Services,1243.63,Public Transport,2122P03_CR00178,116848
Sandwell Metropolitan Borough Council,http://www.sandwell.gov.uk/info/200202/performance_and_spending/1079/payments_over_500,01-Jun-2021,Childrens Services,STAFF COLLEGE,Childrens Services,1250.00,Subscriptions,2122P03_CR00179,88119
Sandwell Metropolitan Borough Council,http://www.sandwell.gov.uk/info/200202/performance_and_spending/1079/payments_over_500,01-Jun-2021,Childrens Services,WEST MIDLANDS ACCESSIBLE TRANSPORT LTD,Childrens Services,1305.48,Public Transport,2122P03_CR00180,01694764
Sandwell Metropolitan Borough Council,http://www.sandwell.gov.uk/info/200202/performance_and_spending/1079/payments_over_500,01-Jun-2021,Childrens Services,UNITY TRAVEL,Childrens Services,1332.00,Public Transport,2122P03_CR00181,64986
Sandwell Metropolitan Borough Council,http://www.sandwell.gov.uk/info/200202/performance_and_spending/1079/payments_over_500,01-Jun-2021,Childrens Services,ONE 4 YOU SERVICES LTD,Childrens Services,1440.00,Public Transport,2122P03_CR00182,81204
Sandwell Metropolitan Borough Council,http://www.sandwell.gov.uk/info/200202/performance_and_spending/1079/payments_over_500,01-Jun-2021,Childrens Services,TOH TAXIS,Childrens Services,1523.10,Public Transport,2122P03_CR00183,12250
Sandwell Metropolitan Borough Council,http://www.sandwell.gov.uk/info/200202/performance_and_spending/1079/payments_over_500,01-Jun-2021,Childrens Services,TOH TAXIS,Childrens Services,1554.20,Public Transport,2122P03_CR00184,12250
Sandwell Metropolitan Borough Council,http://www.sandwell.gov.uk/info/200202/performance_and_spending/1079/payments_over_500,22-Jun-2021,Childrens Services,GREEN DESTINATIONS LTD,Childrens Services,1626.42,Public Transport,2122P03_CR00185,109275
Sandwell Metropolitan Borough Council,http://www.sandwell.gov.uk/info/200202/performance_and_spending/1079/payments_over_500,01-Jun-2021,Childrens Services,AVANTI GAS LIMITED,Childrens Services,1677.02,Gas,2122P03_CR00186,60069
Sandwell Metropolitan Borough Council,http://www.sandwell.gov.uk/info/200202/performance_and_spending/1079/payments_over_500,17-Jun-2021,Childrens Services,LOCAL EDUCATION AND DEVELOPMENT,Childrens Services,1794.00,Grant Payments,2122P03_CR00187,148259
Sandwell Metropolitan Borough Council,http://www.sandwell.gov.uk/info/200202/performance_and_spending/1079/payments_over_500,01-Jun-2021,Childrens Services,LEARNING INTO EMPLOYMENT ACADEMY LTD,Childrens Services,1800.00,Grant Payments,2122P03_CR00188,147427
Sandwell Metropolitan Borough Council,http://www.sandwell.gov.uk/info/200202/performance_and_spending/1079/payments_over_500,01-Jun-2021,Childrens Services,CREATIVE ACADEMIES LTD,Childrens Services,2000.00,Agency Staff,2122P03_CR00189,116825
Sandwell Metropolitan Borough Council,http://www.sandwell.gov.uk/info/200202/performance_and_spending/1079/payments_over_500,28-Jun-2021,Childrens Services,WEST MIDLANDS ACCESSIBLE TRANSPORT LTD,Childrens Services,2017.56,Public Transport,2122P03_CR00190,01694764
Sandwell Metropolitan Borough Council,http://www.sandwell.gov.uk/info/200202/performance_and_spending/1079/payments_over_500,01-Jun-2021,Childrens Services,WEST MIDLANDS ACCESSIBLE TRANSPORT LTD,Childrens Services,2044.15,Public Transport,2122P03_CR00191,01694764
Sandwell Metropolitan Borough Council,http://www.sandwell.gov.uk/info/200202/performance_and_spending/1079/payments_over_500,21-Jun-2021,Childrens Services,THE PRIORY PRIMARY,Childrens Services,2115.73,Rents,2122P03_CR00192,01746051
Sandwell Metropolitan Borough Council,http://www.sandwell.gov.uk/info/200202/performance_and_spending/1079/payments_over_500,01-Jun-2021,Childrens Services,D J TRAVEL,Childrens Services,2869.38,Public Transport,2122P03_CR00193,96415
Sandwell Metropolitan Borough Council,http://www.sandwell.gov.uk/info/200202/performance_and_spending/1079/payments_over_500,01-Jun-2021,Childrens Services,UNITY TRAVEL,Childrens Services,2899.00,Public Transport,2122P03_CR00194,64986
Sandwell Metropolitan Borough Council,http://www.sandwell.gov.uk/info/200202/performance_and_spending/1079/payments_over_500,22-Jun-2021,Childrens Services,WEST MIDLANDS ACCESSIBLE TRANSPORT LTD,Childrens Services,2987.12,Public Transport,2122P03_CR00195,01694764
Sandwell Metropolitan Borough Council,http://www.sandwell.gov.uk/info/200202/performance_and_spending/1079/payments_over_500,01-Jun-2021,Childrens Services,HER MAJESTYS PRISON AND PROBATION SERVICE,Childrens Services,3531.00,Other Establishments,2122P03_CR00196,134815
Sandwell Metropolitan Borough Council,http://www.sandwell.gov.uk/info/200202/performance_and_spending/1079/payments_over_500,01-Jun-2021,Childrens Services,WATER PLUS SELECT LIMITED,Childrens Services,3726.86,Water Services,2122P03_CR00197,129644
Sandwell Metropolitan Borough Council,http://www.sandwell.gov.uk/info/200202/performance_and_spending/1079/payments_over_500,01-Jun-2021,Childrens Services,PROSPECTS SERVICES LIMITED,Childrens Services,4089.92,Grant Payments,2122P03_CR00198,01721288
Sandwell Metropolitan Borough Council,http://www.sandwell.gov.uk/info/200202/performance_and_spending/1079/payments_over_500,05-Jun-2021,Childrens Services,BUTT TAXI,Childrens Services,4119.37,Public Transport,2122P03_CR00199,109306
Sandwell Metropolitan Borough Council,http://www.sandwell.gov.uk/info/200202/performance_and_spending/1079/payments_over_500,01-Jun-2021,Childrens Services,HER MAJESTYS PRISON AND PROBATION SERVICE,Childrens Services,6099.00,Other Establishments,2122P03_CR00200,134815
Sandwell Metropolitan Borough Council,http://www.sandwell.gov.uk/info/200202/performance_and_spending/1079/payments_over_500,01-Jun-2021,Childrens Services,HER MAJESTYS PRISON AND PROBATION SERVICE,Childrens Services,7062.00,Other Establishments,2122P03_CR00201,134815
Sandwell Metropolitan Borough Council,http://www.sandwell.gov.uk/info/200202/performance_and_spending/1079/payments_over_500,01-Jun-2021,Childrens Services,GWYNEDD COUNCIL,Childrens Services,8961.25,Business Rates,2122P03_CR00202,01513572
Sandwell Metropolitan Borough Council,http://www.sandwell.gov.uk/info/200202/performance_and_spending/1079/payments_over_500,01-Jun-2021,Childrens Services,HER MAJESTYS PRISON AND PROBATION SERVICE,Childrens Services,8988.00,Other Establishments,2122P03_CR00203,134815
Sandwell Metropolitan Borough Council,http://www.sandwell.gov.uk/info/200202/performance_and_spending/1079/payments_over_500,01-Jun-2021,Childrens Services,HER MAJESTYS PRISON AND PROBATION SERVICE,Childrens Services,8988.00,Other Establishments,2122P03_CR00204,134815
Sandwell Metropolitan Borough Council,http://www.sandwell.gov.uk/info/200202/performance_and_spending/1079/payments_over_500,01-Jun-2021,Childrens Services,HER MAJESTYS PRISON AND PROBATION SERVICE,Childrens Services,8988.00,Other Establishments,2122P03_CR00205,134815
Sandwell Metropolitan Borough Council,http://www.sandwell.gov.uk/info/200202/performance_and_spending/1079/payments_over_500,01-Jun-2021,Childrens Services,HER MAJESTYS PRISON AND PROBATION SERVICE,Childrens Services,8988.00,Other Establishments,2122P03_CR00206,134815
Sandwell Metropolitan Borough Council,http://www.sandwell.gov.uk/info/200202/performance_and_spending/1079/payments_over_500,01-Jun-2021,Childrens Services,HER MAJESTYS PRISON AND PROBATION SERVICE,Childrens Services,8988.00,Other Establishments,2122P03_CR00207,134815
Sandwell Metropolitan Borough Council,http://www.sandwell.gov.uk/info/200202/performance_and_spending/1079/payments_over_500,01-Jun-2021,Childrens Services,HER MAJESTYS PRISON AND PROBATION SERVICE,Childrens Services,9951.00,Other Establishments,2122P03_CR00208,134815
Sandwell Metropolitan Borough Council,http://www.sandwell.gov.uk/info/200202/performance_and_spending/1079/payments_over_500,01-Jun-2021,Childrens Services,HER MAJESTYS PRISON AND PROBATION SERVICE,Childrens Services,9951.00,Other Establishments,2122P03_CR00209,134815
Sandwell Metropolitan Borough Council,http://www.sandwell.gov.uk/info/200202/performance_and_spending/1079/payments_over_500,28-Jun-2021,Childrens Services,SANDWELL ACADEMY TRUST LTD,Childrens Services,10550.70,Public Transport,2122P03_CR00210,62330
Sandwell Metropolitan Borough Council,http://www.sandwell.gov.uk/info/200202/performance_and_spending/1079/payments_over_500,01-Jun-2021,Childrens Services,LR'S TAXIS LIMITED,Childrens Services,12302.21,Public Transport,2122P03_CR00211,59047
Sandwell Metropolitan Borough Council,http://www.sandwell.gov.uk/info/200202/performance_and_spending/1079/payments_over_500,01-Jun-2021,Childrens Services,HER MAJESTYS PRISON AND PROBATION SERVICE,Childrens Services,12684.00,Other Establishments,2122P03_CR00212,134815
Sandwell Metropolitan Borough Council,http://www.sandwell.gov.uk/info/200202/performance_and_spending/1079/payments_over_500,01-Jun-2021,Childrens Services,HER MAJESTYS PRISON AND PROBATION SERVICE,Childrens Services,14043.00,Other Establishments,2122P03_CR00213,134815
Sandwell Metropolitan Borough Council,http://www.sandwell.gov.uk/info/200202/performance_and_spending/1079/payments_over_500,01-Jun-2021,Childrens Services,STAFFORD BOROUGH COUNCIL,Childrens Services,16342.25,Business Rates,2122P03_CR00214,01571536
Sandwell Metropolitan Borough Council,http://www.sandwell.gov.uk/info/200202/performance_and_spending/1079/payments_over_500,05-Jun-2021,Childrens Services,YELLOW CARS,Childrens Services,18619.82,Public Transport,2122P03_CR00215,116819
Sandwell Metropolitan Borough Council,http://www.sandwell.gov.uk/info/200202/performance_and_spending/1079/payments_over_500,17-Jun-2021,Childrens Services,DROACH TRAVEL LTD,Childrens Services,20124.50,Public Transport,2122P03_CR00216,06002707
Sandwell Metropolitan Borough Council,http://www.sandwell.gov.uk/info/200202/performance_and_spending/1079/payments_over_500,01-Jun-2021,Childrens Services,WYRE FOREST DISTRICT COUNCIL,Childrens Services,23577.75,Business Rates,2122P03_CR00217,5163
Sandwell Metropolitan Borough Council,http://www.sandwell.gov.uk/info/200202/performance_and_spending/1079/payments_over_500,28-Jun-2021,Childrens Services,SANDWELL ACADEMY TRUST LTD,Childrens Services,27372.60,Public Transport,2122P03_CR00218,62330
Sandwell Metropolitan Borough Council,http://www.sandwell.gov.uk/info/200202/performance_and_spending/1079/payments_over_500,01-Jun-2021,Childrens Services,REDACTED PERSONAL DATA,Childrens Services,30950.96,Public Transport,2122P03_CR00219,REDACTED PERSONAL DATA
Sandwell Metropolitan Borough Council,http://www.sandwell.gov.uk/info/200202/performance_and_spending/1079/payments_over_500,01-Jun-2021,Childrens Services,COUNTY CARS (2003) LIMITED,Childrens Services,34027.27,Public Transport,2122P03_CR00220,06002387
Sandwell Metropolitan Borough Council,http://www.sandwell.gov.uk/info/200202/performance_and_spending/1079/payments_over_500,01-Jun-2021,Childrens Services,COUNTY CARS (2003) LIMITED,Childrens Services,34027.27,Public Transport,2122P03_CR00221,06002387
Sandwell Metropolitan Borough Council,http://www.sandwell.gov.uk/info/200202/performance_and_spending/1079/payments_over_500,17-Jun-2021,Childrens Services,JPC TRAVEL SOLUTION,Childrens Services,48271.11,Public Transport,2122P03_CR00222,138533
Sandwell Metropolitan Borough Council,http://www.sandwell.gov.uk/info/200202/performance_and_spending/1079/payments_over_500,17-Jun-2021,Childrens Services,SIPS EDUCATION LTD,Childrens Services,50000.00,Contract Payments,2122P03_CR00223,110784
Sandwell Metropolitan Borough Council,http://www.sandwell.gov.uk/info/200202/performance_and_spending/1079/payments_over_500,01-Jun-2021,Childrens Services,CLASSIC CARS 1997,Childrens Services,52475.22,Public Transport,2122P03_CR00224,06005093
Sandwell Metropolitan Borough Council,http://www.sandwell.gov.uk/info/200202/performance_and_spending/1079/payments_over_500,01-Jun-2021,Childrens Services,ONE 4 YOU SERVICES LTD,Childrens Services,56170.27,Public Transport,2122P03_CR00225,81204
Sandwell Metropolitan Borough Council,http://www.sandwell.gov.uk/info/200202/performance_and_spending/1079/payments_over_500,01-Jun-2021,Childrens Services,FIVE STAR TAXIS (DUDLEY) LTD,Childrens Services,75251.04,Public Transport,2122P03_CR00226,133542
Sandwell Metropolitan Borough Council,http://www.sandwell.gov.uk/info/200202/performance_and_spending/1079/payments_over_500,01-Jun-2021,Childrens Services,COUNTY CARS (2003) LIMITED,Childrens Services,81262.30,Public Transport,2122P03_CR00227,06002387
Sandwell Metropolitan Borough Council,http://www.sandwell.gov.uk/info/200202/performance_and_spending/1079/payments_over_500,01-Jun-2021,Childrens Services,COUNTY CARS (2003) LIMITED,Childrens Services,81262.30,Public Transport,2122P03_CR00228,06002387
Sandwell Metropolitan Borough Council,http://www.sandwell.gov.uk/info/200202/performance_and_spending/1079/payments_over_500,01-Jun-2021,Childrens Services,GREEN DESTINATIONS LTD,Childrens Services,90178.95,Public Transport,2122P03_CR00229,109275
Sandwell Metropolitan Borough Council,http://www.sandwell.gov.uk/info/200202/performance_and_spending/1079/payments_over_500,01-Jun-2021,Childrens Services,GREEN DESTINATIONS LTD,Childrens Services,90704.26,Public Transport,2122P03_CR00230,109275
Sandwell Metropolitan Borough Council,http://www.sandwell.gov.uk/info/200202/performance_and_spending/1079/payments_over_500,01-Jun-2021,Childrens Services,MURRAY HALL COMMUNITY TRUST,Childrens Services,151965.45,Contract Payments,2122P03_CR00231,01627284
Sandwell Metropolitan Borough Council,http://www.sandwell.gov.uk/info/200202/performance_and_spending/1079/payments_over_500,01-Jun-2021,Childrens Services,ACTION FOR CHILDREN SERVICES LIMITED,Childrens Services,317919.45,Contract Payments,2122P03_CR00232,111189
Sandwell Metropolitan Borough Council,http://www.sandwell.gov.uk/info/200202/performance_and_spending/1079/payments_over_500,01-Jun-2021,Childrens Services,ACTION FOR CHILDREN SERVICES LIMITED,Childrens Services,403951.87,Contract Payments,2122P03_CR00233,111189
Sandwell Metropolitan Borough Council,http://www.sandwell.gov.uk/info/200202/performance_and_spending/1079/payments_over_500,17-Jun-2021,Childrens Services,SANDWELL CHILDREN'S TRUST,Childrens Services,5232939.38,Other Establishments,2122P03_CR00234,133302
Sandwell Metropolitan Borough Council,http://www.sandwell.gov.uk/info/200202/performance_and_spending/1079/payments_over_500,10-Jun-2021,Childrens Services,REDACTED PERSONAL DATA,Childrens Services,545.45,External Contract Hire,2122P03_CR00235,REDACTED PERSONAL DATA
Sandwell Metropolitan Borough Council,http://www.sandwell.gov.uk/info/200202/performance_and_spending/1079/payments_over_500,10-Jun-2021,Childrens Services,REDACTED PERSONAL DATA,Childrens Services,545.45,External Contract Hire,2122P03_CR00236,REDACTED PERSONAL DATA
Sandwell Metropolitan Borough Council,http://www.sandwell.gov.uk/info/200202/performance_and_spending/1079/payments_over_500,10-Jun-2021,Childrens Services,REDACTED PERSONAL DATA,Childrens Services,545.45,External Contract Hire,2122P03_CR00237,REDACTED PERSONAL DATA
Sandwell Metropolitan Borough Council,http://www.sandwell.gov.uk/info/200202/performance_and_spending/1079/payments_over_500,10-Jun-2021,Childrens Services,REDACTED PERSONAL DATA,Childrens Services,545.45,External Contract Hire,2122P03_CR00238,REDACTED PERSONAL DATA
Sandwell Metropolitan Borough Council,http://www.sandwell.gov.uk/info/200202/performance_and_spending/1079/payments_over_500,10-Jun-2021,Childrens Services,REDACTED PERSONAL DATA,Childrens Services,545.45,External Contract Hire,2122P03_CR00239,REDACTED PERSONAL DATA
Sandwell Metropolitan Borough Council,http://www.sandwell.gov.uk/info/200202/performance_and_spending/1079/payments_over_500,10-Jun-2021,Childrens Services,REDACTED PERSONAL DATA,Childrens Services,545.45,External Contract Hire,2122P03_CR00240,REDACTED PERSONAL DATA
Sandwell Metropolitan Borough Council,http://www.sandwell.gov.uk/info/200202/performance_and_spending/1079/payments_over_500,10-Jun-2021,Childrens Services,REDACTED PERSONAL DATA,Childrens Services,545.45,External Contract Hire,2122P03_CR00241,REDACTED PERSONAL DATA
Sandwell Metropolitan Borough Council,http://www.sandwell.gov.uk/info/200202/performance_and_spending/1079/payments_over_500,10-Jun-2021,Childrens Services,REDACTED PERSONAL DATA,Childrens Services,545.45,External Contract Hire,2122P03_CR00242,REDACTED PERSONAL DATA
Sandwell Metropolitan Borough Council,http://www.sandwell.gov.uk/info/200202/performance_and_spending/1079/payments_over_500,10-Jun-2021,Childrens Services,REDACTED PERSONAL DATA,Childrens Services,545.45,External Contract Hire,2122P03_CR00243,REDACTED PERSONAL DATA
Sandwell Metropolitan Borough Council,http://www.sandwell.gov.uk/info/200202/performance_and_spending/1079/payments_over_500,10-Jun-2021,Childrens Services,REDACTED PERSONAL DATA,Childrens Services,545.45,External Contract Hire,2122P03_CR00244,REDACTED PERSONAL DATA
Sandwell Metropolitan Borough Council,http://www.sandwell.gov.uk/info/200202/performance_and_spending/1079/payments_over_500,10-Jun-2021,Childrens Services,REDACTED PERSONAL DATA,Childrens Services,545.45,External Contract Hire,2122P03_CR00245,REDACTED PERSONAL DATA
Sandwell Metropolitan Borough Council,http://www.sandwell.gov.uk/info/200202/performance_and_spending/1079/payments_over_500,10-Jun-2021,Childrens Services,REDACTED PERSONAL DATA,Childrens Services,545.45,External Contract Hire,2122P03_CR00246,REDACTED PERSONAL DATA
Sandwell Metropolitan Borough Council,http://www.sandwell.gov.uk/info/200202/performance_and_spending/1079/payments_over_500,10-Jun-2021,Childrens Services,REDACTED PERSONAL DATA,Childrens Services,545.45,External Contract Hire,2122P03_CR00247,REDACTED PERSONAL DATA
Sandwell Metropolitan Borough Council,http://www.sandwell.gov.uk/info/200202/performance_and_spending/1079/payments_over_500,10-Jun-2021,Childrens Services,REDACTED PERSONAL DATA,Childrens Services,545.45,External Contract Hire,2122P03_CR00248,REDACTED PERSONAL DATA
Sandwell Metropolitan Borough Council,http://www.sandwell.gov.uk/info/200202/performance_and_spending/1079/payments_over_500,10-Jun-2021,Childrens Services,REDACTED PERSONAL DATA,Childrens Services,545.45,External Contract Hire,2122P03_CR00249,REDACTED PERSONAL DATA
Sandwell Metropolitan Borough Council,http://www.sandwell.gov.uk/info/200202/performance_and_spending/1079/payments_over_500,10-Jun-2021,Childrens Services,REDACTED PERSONAL DATA,Childrens Services,545.45,External Contract Hire,2122P03_CR00250,REDACTED PERSONAL DATA
Sandwell Metropolitan Borough Council,http://www.sandwell.gov.uk/info/200202/performance_and_spending/1079/payments_over_500,10-Jun-2021,Childrens Services,REDACTED PERSONAL DATA,Childrens Services,545.45,External Contract Hire,2122P03_CR00251,REDACTED PERSONAL DATA
Sandwell Metropolitan Borough Council,http://www.sandwell.gov.uk/info/200202/performance_and_spending/1079/payments_over_500,10-Jun-2021,Childrens Services,REDACTED PERSONAL DATA,Childrens Services,545.45,External Contract Hire,2122P03_CR00252,REDACTED PERSONAL DATA
Sandwell Metropolitan Borough Council,http://www.sandwell.gov.uk/info/200202/performance_and_spending/1079/payments_over_500,10-Jun-2021,Childrens Services,REDACTED PERSONAL DATA,Childrens Services,545.45,External Contract Hire,2122P03_CR00253,REDACTED PERSONAL DATA
Sandwell Metropolitan Borough Council,http://www.sandwell.gov.uk/info/200202/performance_and_spending/1079/payments_over_500,10-Jun-2021,Childrens Services,REDACTED PERSONAL DATA,Childrens Services,545.45,External Contract Hire,2122P03_CR00254,REDACTED PERSONAL DATA
Sandwell Metropolitan Borough Council,http://www.sandwell.gov.uk/info/200202/performance_and_spending/1079/payments_over_500,10-Jun-2021,Childrens Services,REDACTED PERSONAL DATA,Childrens Services,545.45,External Contract Hire,2122P03_CR00255,REDACTED PERSONAL DATA
Sandwell Metropolitan Borough Council,http://www.sandwell.gov.uk/info/200202/performance_and_spending/1079/payments_over_500,10-Jun-2021,Childrens Services,REDACTED PERSONAL DATA,Childrens Services,545.46,External Contract Hire,2122P03_CR00256,REDACTED PERSONAL DATA
Sandwell Metropolitan Borough Council,http://www.sandwell.gov.uk/info/200202/performance_and_spending/1079/payments_over_500,10-Jun-2021,Childrens Services,REDACTED PERSONAL DATA,Childrens Services,727.27,External Contract Hire,2122P03_CR00257,REDACTED PERSONAL DATA
Sandwell Metropolitan Borough Council,http://www.sandwell.gov.uk/info/200202/performance_and_spending/1079/payments_over_500,10-Jun-2021,Childrens Services,REDACTED PERSONAL DATA,Childrens Services,727.27,External Contract Hire,2122P03_CR00258,REDACTED PERSONAL DATA
Sandwell Metropolitan Borough Council,http://www.sandwell.gov.uk/info/200202/performance_and_spending/1079/payments_over_500,10-Jun-2021,Childrens Services,REDACTED PERSONAL DATA,Childrens Services,727.27,External Contract Hire,2122P03_CR00259,REDACTED PERSONAL DATA
Sandwell Metropolitan Borough Council,http://www.sandwell.gov.uk/info/200202/performance_and_spending/1079/payments_over_500,10-Jun-2021,Childrens Services,REDACTED PERSONAL DATA,Childrens Services,727.27,External Contract Hire,2122P03_CR00260,REDACTED PERSONAL DATA
Sandwell Metropolitan Borough Council,http://www.sandwell.gov.uk/info/200202/performance_and_spending/1079/payments_over_500,10-Jun-2021,Childrens Services,REDACTED PERSONAL DATA,Childrens Services,727.27,External Contract Hire,2122P03_CR00261,REDACTED PERSONAL DATA
Sandwell Metropolitan Borough Council,http://www.sandwell.gov.uk/info/200202/performance_and_spending/1079/payments_over_500,10-Jun-2021,Childrens Services,REDACTED PERSONAL DATA,Childrens Services,727.27,External Contract Hire,2122P03_CR00262,REDACTED PERSONAL DATA
Sandwell Metropolitan Borough Council,http://www.sandwell.gov.uk/info/200202/performance_and_spending/1079/payments_over_500,10-Jun-2021,Childrens Services,REDACTED PERSONAL DATA,Childrens Services,727.27,External Contract Hire,2122P03_CR00263,REDACTED PERSONAL DATA
Sandwell Metropolitan Borough Council,http://www.sandwell.gov.uk/info/200202/performance_and_spending/1079/payments_over_500,10-Jun-2021,Childrens Services,REDACTED PERSONAL DATA,Childrens Services,727.27,External Contract Hire,2122P03_CR00264,REDACTED PERSONAL DATA
Sandwell Metropolitan Borough Council,http://www.sandwell.gov.uk/info/200202/performance_and_spending/1079/payments_over_500,10-Jun-2021,Childrens Services,REDACTED PERSONAL DATA,Childrens Services,727.27,External Contract Hire,2122P03_CR00265,REDACTED PERSONAL DATA
Sandwell Metropolitan Borough Council,http://www.sandwell.gov.uk/info/200202/performance_and_spending/1079/payments_over_500,10-Jun-2021,Childrens Services,REDACTED PERSONAL DATA,Childrens Services,727.27,External Contract Hire,2122P03_CR00266,REDACTED PERSONAL DATA
Sandwell Metropolitan Borough Council,http://www.sandwell.gov.uk/info/200202/performance_and_spending/1079/payments_over_500,10-Jun-2021,Childrens Services,REDACTED PERSONAL DATA,Childrens Services,727.27,External Contract Hire,2122P03_CR00267,REDACTED PERSONAL DATA
Sandwell Metropolitan Borough Council,http://www.sandwell.gov.uk/info/200202/performance_and_spending/1079/payments_over_500,10-Jun-2021,Childrens Services,REDACTED PERSONAL DATA,Childrens Services,727.27,External Contract Hire,2122P03_CR00268,REDACTED PERSONAL DATA
Sandwell Metropolitan Borough Council,http://www.sandwell.gov.uk/info/200202/performance_and_spending/1079/payments_over_500,10-Jun-2021,Childrens Services,REDACTED PERSONAL DATA,Childrens Services,727.27,External Contract Hire,2122P03_CR00269,REDACTED PERSONAL DATA
Sandwell Metropolitan Borough Council,http://www.sandwell.gov.uk/info/200202/performance_and_spending/1079/payments_over_500,10-Jun-2021,Childrens Services,REDACTED PERSONAL DATA,Childrens Services,727.27,External Contract Hire,2122P03_CR00270,REDACTED PERSONAL DATA
Sandwell Metropolitan Borough Council,http://www.sandwell.gov.uk/info/200202/performance_and_spending/1079/payments_over_500,10-Jun-2021,Childrens Services,REDACTED PERSONAL DATA,Childrens Services,727.27,External Contract Hire,2122P03_CR00271,REDACTED PERSONAL DATA
Sandwell Metropolitan Borough Council,http://www.sandwell.gov.uk/info/200202/performance_and_spending/1079/payments_over_500,10-Jun-2021,Childrens Services,REDACTED PERSONAL DATA,Childrens Services,727.27,External Contract Hire,2122P03_CR00272,REDACTED PERSONAL DATA
Sandwell Metropolitan Borough Council,http://www.sandwell.gov.uk/info/200202/performance_and_spending/1079/payments_over_500,10-Jun-2021,Childrens Services,REDACTED PERSONAL DATA,Childrens Services,727.28,External Contract Hire,2122P03_CR00273,REDACTED PERSONAL DATA
Sandwell Metropolitan Borough Council,http://www.sandwell.gov.uk/info/200202/performance_and_spending/1079/payments_over_500,10-Jun-2021,Childrens Services,REDACTED PERSONAL DATA,Childrens Services,727.28,External Contract Hire,2122P03_CR00274,REDACTED PERSONAL DATA
Sandwell Metropolitan Borough Council,http://www.sandwell.gov.uk/info/200202/performance_and_spending/1079/payments_over_500,10-Jun-2021,Childrens Services,REDACTED PERSONAL DATA,Childrens Services,727.28,External Contract Hire,2122P03_CR00275,REDACTED PERSONAL DATA
Sandwell Metropolitan Borough Council,http://www.sandwell.gov.uk/info/200202/performance_and_spending/1079/payments_over_500,10-Jun-2021,Childrens Services,REDACTED PERSONAL DATA,Childrens Services,727.28,External Contract Hire,2122P03_CR00276,REDACTED PERSONAL DATA
Sandwell Metropolitan Borough Council,http://www.sandwell.gov.uk/info/200202/performance_and_spending/1079/payments_over_500,10-Jun-2021,Childrens Services,REDACTED PERSONAL DATA,Childrens Services,800.00,External Contract Hire,2122P03_CR00277,REDACTED PERSONAL DATA
Sandwell Metropolitan Borough Council,http://www.sandwell.gov.uk/info/200202/performance_and_spending/1079/payments_over_500,10-Jun-2021,Childrens Services,REDACTED PERSONAL DATA,Childrens Services,909.09,External Contract Hire,2122P03_CR00278,REDACTED PERSONAL DATA
Sandwell Metropolitan Borough Council,http://www.sandwell.gov.uk/info/200202/performance_and_spending/1079/payments_over_500,10-Jun-2021,Childrens Services,REDACTED PERSONAL DATA,Childrens Services,1090.90,External Contract Hire,2122P03_CR00279,REDACTED PERSONAL DATA
Sandwell Metropolitan Borough Council,http://www.sandwell.gov.uk/info/200202/performance_and_spending/1079/payments_over_500,03-Jun-2021,Childrens Services Capital,MIDLAND FORESTRY LIMITED,Childrens Services Capital,760.00,CIP - Infrastructure,2122P03_CR00280,45812
Sandwell Metropolitan Borough Council,http://www.sandwell.gov.uk/info/200202/performance_and_spending/1079/payments_over_500,03-Jun-2021,Childrens Services Capital,M & H SURVEY SERVICES LIMITED,Childrens Services Capital,1350.00,Consultancy,2122P03_CR00281,114657
Sandwell Metropolitan Borough Council,http://www.sandwell.gov.uk/info/200202/performance_and_spending/1079/payments_over_500,01-Jun-2021,Childrens Services Capital,PROBRAND LIMITED,Childrens Services Capital,1759.12,"CIP - New Construction,Conversion, Enhancement & Reno",2122P03_CR00282,98852
Sandwell Metropolitan Borough Council,http://www.sandwell.gov.uk/info/200202/performance_and_spending/1079/payments_over_500,01-Jun-2021,Childrens Services Capital,PROBRAND LIMITED,Childrens Services Capital,2435.72,"CIP - New Construction,Conversion, Enhancement & Reno",2122P03_CR00283,98852
Sandwell Metropolitan Borough Council,http://www.sandwell.gov.uk/info/200202/performance_and_spending/1079/payments_over_500,01-Jun-2021,Childrens Services Capital,PROBRAND LIMITED,Childrens Services Capital,3600.00,"CIP - New Construction,Conversion, Enhancement & Reno",2122P03_CR00284,98852
Sandwell Metropolitan Borough Council,http://www.sandwell.gov.uk/info/200202/performance_and_spending/1079/payments_over_500,01-Jun-2021,Childrens Services Capital,PROBRAND LIMITED,Childrens Services Capital,4025.00,"CIP - New Construction,Conversion, Enhancement & Reno",2122P03_CR00285,98852
Sandwell Metropolitan Borough Council,http://www.sandwell.gov.uk/info/200202/performance_and_spending/1079/payments_over_500,09-Jun-2021,Childrens Services Capital,PELL FRISCHMANN CONSULTANTS LIMITED,Childrens Services Capital,6000.00,"CIP - New Construction,Conversion, Enhancement & Reno",2122P03_CR00286,42350
Sandwell Metropolitan Borough Council,http://www.sandwell.gov.uk/info/200202/performance_and_spending/1079/payments_over_500,01-Jun-2021,Childrens Services Capital,PROBRAND LIMITED,Childrens Services Capital,6100.00,"CIP - New Construction,Conversion, Enhancement & Reno",2122P03_CR00287,98852
Sandwell Metropolitan Borough Council,http://www.sandwell.gov.uk/info/200202/performance_and_spending/1079/payments_over_500,01-Jun-2021,Childrens Services Capital,PROBRAND LIMITED,Childrens Services Capital,9465.44,"CIP - New Construction,Conversion, Enhancement & Reno",2122P03_CR00288,98852
Sandwell Metropolitan Borough Council,http://www.sandwell.gov.uk/info/200202/performance_and_spending/1079/payments_over_500,17-Jun-2021,Childrens Services Capital,WSM ENGINEERING FACILITIES LTD,Childrens Services Capital,12251.78,"CIP - New Construction,Conversion, Enhancement & Reno",2122P03_CR00289,151265
Sandwell Metropolitan Borough Council,http://www.sandwell.gov.uk/info/200202/performance_and_spending/1079/payments_over_500,01-Jun-2021,Childrens Services Capital,PROBRAND LIMITED,Childrens Services Capital,13015.04,"CIP - New Construction,Conversion, Enhancement & Reno",2122P03_CR00290,98852
Sandwell Metropolitan Borough Council,http://www.sandwell.gov.uk/info/200202/performance_and_spending/1079/payments_over_500,01-Jun-2021,Childrens Services Capital,PROBRAND LIMITED,Childrens Services Capital,24080.00,"CIP - New Construction,Conversion, Enhancement & Reno",2122P03_CR00291,98852
Sandwell Metropolitan Borough Council,http://www.sandwell.gov.uk/info/200202/performance_and_spending/1079/payments_over_500,01-Jun-2021,Childrens Services Capital,HOME FARM NURSERIES (PINVIN) LIMITED,Childrens Services Capital,24100.84,"CIP - New Construction,Conversion, Enhancement & Reno",2122P03_CR00292,77003445
Sandwell Metropolitan Borough Council,http://www.sandwell.gov.uk/info/200202/performance_and_spending/1079/payments_over_500,01-Jun-2021,Childrens Services Capital,PROBRAND LIMITED,Childrens Services Capital,43010.00,"CIP - New Construction,Conversion, Enhancement & Reno",2122P03_CR00293,98852
Sandwell Metropolitan Borough Council,http://www.sandwell.gov.uk/info/200202/performance_and_spending/1079/payments_over_500,16-Jun-2021,Childrens Services Capital,WSM ENGINEERING FACILITIES LTD,Childrens Services Capital,65609.80,"CIP - New Construction,Conversion, Enhancement & Reno",2122P03_CR00294,151265
Sandwell Metropolitan Borough Council,http://www.sandwell.gov.uk/info/200202/performance_and_spending/1079/payments_over_500,10-Jun-2021,Childrens Services Capital,WILLMOTT DIXON CONSTRUCTION LIMITED,Childrens Services Capital,427245.72,"CIP - New Construction,Conversion, Enhancement & Reno",2122P03_CR00295,34081
Sandwell Metropolitan Borough Council,http://www.sandwell.gov.uk/info/200202/performance_and_spending/1079/payments_over_500,01-Jun-2021,Childrens Services Capital,WILLMOTT DIXON CONSTRUCTION LIMITED,Childrens Services Capital,520360.33,"CIP - New Construction,Conversion, Enhancement & Reno",2122P03_CR00296,34081
Sandwell Metropolitan Borough Council,http://www.sandwell.gov.uk/info/200202/performance_and_spending/1079/payments_over_500,01-Jun-2021,Childrens Services Capital,WILLMOTT DIXON CONSTRUCTION LIMITED,Childrens Services Capital,642358.34,"CIP - New Construction,Conversion, Enhancement & Reno",2122P03_CR00297,34081
Sandwell Metropolitan Borough Council,http://www.sandwell.gov.uk/info/200202/performance_and_spending/1079/payments_over_500,14-Jun-2021,Housing & Communities,SIMON TULLETT MACHINERY COMPANY LIMITED,Neighbourhoods,503.62,Repairs & Maintenance,2122P03_CR00298,109117
Sandwell Metropolitan Borough Council,http://www.sandwell.gov.uk/info/200202/performance_and_spending/1079/payments_over_500,01-Jun-2021,Housing & Communities,NORTHGATE VEHICLE HIRE (WEST MIDLANDS) LTD,Neighbourhoods,513.90,Vehicle Hiring Charges,2122P03_CR00299,01057676
Sandwell Metropolitan Borough Council,http://www.sandwell.gov.uk/info/200202/performance_and_spending/1079/payments_over_500,19-Jun-2021,Housing & Communities,JAMES LISTER & SONS LTD,Neighbourhoods,515.24,Fire Service Workshops,2122P03_CR00300,01021821
Sandwell Metropolitan Borough Council,http://www.sandwell.gov.uk/info/200202/performance_and_spending/1079/payments_over_500,01-Jun-2021,Housing & Communities,DAYS RENTAL,Neighbourhoods,518.94,Vehicle Hiring Charges,2122P03_CR00301,128169
Sandwell Metropolitan Borough Council,http://www.sandwell.gov.uk/info/200202/performance_and_spending/1079/payments_over_500,01-Jun-2021,Housing & Communities,DAYS RENTAL,Neighbourhoods,518.94,Vehicle Hiring Charges,2122P03_CR00302,128169
Sandwell Metropolitan Borough Council,http://www.sandwell.gov.uk/info/200202/performance_and_spending/1079/payments_over_500,01-Jun-2021,Housing & Communities,JAMES LISTER & SONS LTD,Neighbourhoods,520.00,Fire Service Workshops,2122P03_CR00303,01021821
Sandwell Metropolitan Borough Council,http://www.sandwell.gov.uk/info/200202/performance_and_spending/1079/payments_over_500,07-Jun-2021,Housing & Communities,SCARAB SWEEPERS LTD,Neighbourhoods,520.00,Fire Service Workshops,2122P03_CR00304,01710482
Sandwell Metropolitan Borough Council,http://www.sandwell.gov.uk/info/200202/performance_and_spending/1079/payments_over_500,01-Jun-2021,Housing & Communities,DAWSONGROUP VANS,Neighbourhoods,528.55,Vehicle Hiring Charges,2122P03_CR00305,151498
Sandwell Metropolitan Borough Council,http://www.sandwell.gov.uk/info/200202/performance_and_spending/1079/payments_over_500,01-Jun-2021,Housing & Communities,DAWSONGROUP VANS,Neighbourhoods,528.55,Vehicle Hiring Charges,2122P03_CR00306,151498
Sandwell Metropolitan Borough Council,http://www.sandwell.gov.uk/info/200202/performance_and_spending/1079/payments_over_500,01-Jun-2021,Housing & Communities,JAMES LISTER & SONS LTD,Neighbourhoods,541.60,Fire Service Workshops,2122P03_CR00307,01021821
Sandwell Metropolitan Borough Council,http://www.sandwell.gov.uk/info/200202/performance_and_spending/1079/payments_over_500,01-Jun-2021,Housing & Communities,TH WHITE LIMITED,Neighbourhoods,542.73,Fire Service Workshops,2122P03_CR00308,01774713
Sandwell Metropolitan Borough Council,http://www.sandwell.gov.uk/info/200202/performance_and_spending/1079/payments_over_500,17-Jun-2021,Housing & Communities,TERBERG MATEC UK LTD,Neighbourhoods,546.57,Fire Service Workshops,2122P03_CR00309,21235
Sandwell Metropolitan Borough Council,http://www.sandwell.gov.uk/info/200202/performance_and_spending/1079/payments_over_500,15-Jun-2021,Housing & Communities,TH WHITE LIMITED,Neighbourhoods,548.04,Repairs & Maintenance,2122P03_CR00310,01774713
Sandwell Metropolitan Borough Council,http://www.sandwell.gov.uk/info/200202/performance_and_spending/1079/payments_over_500,09-Jun-2021,Housing & Communities,RYGOR COMMERCIALS LTD,Neighbourhoods,552.00,Fire Service Workshops,2122P03_CR00311,3345
Sandwell Metropolitan Borough Council,http://www.sandwell.gov.uk/info/200202/performance_and_spending/1079/payments_over_500,03-Jun-2021,Housing & Communities,DENNIS EAGLE LTD,Neighbourhoods,560.22,Fire Service Workshops,2122P03_CR00312,01004865
Sandwell Metropolitan Borough Council,http://www.sandwell.gov.uk/info/200202/performance_and_spending/1079/payments_over_500,22-Jun-2021,Housing & Communities,HARTSHORNE MOTOR SERVICES LTD                                   01,Neighbourhoods,563.81,Fire Service Workshops,2122P03_CR00313,01508668
Sandwell Metropolitan Borough Council,http://www.sandwell.gov.uk/info/200202/performance_and_spending/1079/payments_over_500,03-Jun-2021,Housing & Communities,GEESINK NORBA LTD,Neighbourhoods,577.43,Fire Service Workshops,2122P03_CR00314,102799
Sandwell Metropolitan Borough Council,http://www.sandwell.gov.uk/info/200202/performance_and_spending/1079/payments_over_500,01-Jun-2021,Housing & Communities,RVW PUGH LTD,Neighbourhoods,580.63,Repairs & Maintenance,2122P03_CR00315,5902
Sandwell Metropolitan Borough Council,http://www.sandwell.gov.uk/info/200202/performance_and_spending/1079/payments_over_500,16-Jun-2021,Housing & Communities,ACCESSHIRE NATIONWIDE,Neighbourhoods,590.00,Vehicle Hiring Charges,2122P03_CR00316,123955
Sandwell Metropolitan Borough Council,http://www.sandwell.gov.uk/info/200202/performance_and_spending/1079/payments_over_500,10-Jun-2021,Housing & Communities,DENNIS EAGLE LTD,Neighbourhoods,591.00,Fire Service Workshops,2122P03_CR00317,01004865
Sandwell Metropolitan Borough Council,http://www.sandwell.gov.uk/info/200202/performance_and_spending/1079/payments_over_500,01-Jun-2021,Housing & Communities,GUEST MOTORS LTD                                           01,Neighbourhoods,592.58,Fire Service Workshops,2122P03_CR00318,73654
Sandwell Metropolitan Borough Council,http://www.sandwell.gov.uk/info/200202/performance_and_spending/1079/payments_over_500,24-Jun-2021,Housing & Communities,DENNIS EAGLE LTD,Neighbourhoods,593.67,Fire Service Workshops,2122P03_CR00319,01004865
Sandwell Metropolitan Borough Council,http://www.sandwell.gov.uk/info/200202/performance_and_spending/1079/payments_over_500,09-Jun-2021,Housing & Communities,DIRECT TYRE MANAGEMENT LTD,Neighbourhoods,597.28,Tyres,2122P03_CR00320,134146
Sandwell Metropolitan Borough Council,http://www.sandwell.gov.uk/info/200202/performance_and_spending/1079/payments_over_500,07-Jun-2021,Housing & Communities,PUGH'S PLANT HIRE,Neighbourhoods,600.00,Vehicle Hiring Charges,2122P03_CR00321,147204
Sandwell Metropolitan Borough Council,http://www.sandwell.gov.uk/info/200202/performance_and_spending/1079/payments_over_500,14-Jun-2021,Housing & Communities,DENNIS EAGLE LTD,Neighbourhoods,624.41,Fire Service Workshops,2122P03_CR00322,01004865
Sandwell Metropolitan Borough Council,http://www.sandwell.gov.uk/info/200202/performance_and_spending/1079/payments_over_500,01-Jun-2021,Housing & Communities,JAMES LISTER & SONS LTD,Neighbourhoods,633.78,Fire Service Workshops,2122P03_CR00323,01021821
Sandwell Metropolitan Borough Council,http://www.sandwell.gov.uk/info/200202/performance_and_spending/1079/payments_over_500,07-Jun-2021,Housing & Communities,BRIGGS EQUIPMENT UK LIMITED,Neighbourhoods,645.00,Equipment & Furniture ,2122P03_CR00324,01356521
Sandwell Metropolitan Borough Council,http://www.sandwell.gov.uk/info/200202/performance_and_spending/1079/payments_over_500,07-Jun-2021,Housing & Communities,TRUCK & TRAILER EQUIPMENT LIMITED,Neighbourhoods,649.80,Fire Service Workshops,2122P03_CR00325,126296
Sandwell Metropolitan Borough Council,http://www.sandwell.gov.uk/info/200202/performance_and_spending/1079/payments_over_500,01-Jun-2021,Housing & Communities,SCARAB SWEEPERS LTD,Neighbourhoods,667.96,Fire Service Workshops,2122P03_CR00326,01710482
Sandwell Metropolitan Borough Council,http://www.sandwell.gov.uk/info/200202/performance_and_spending/1079/payments_over_500,11-Jun-2021,Housing & Communities,TERBERG MATEC UK LTD,Neighbourhoods,683.11,Fire Service Workshops,2122P03_CR00327,21235
Sandwell Metropolitan Borough Council,http://www.sandwell.gov.uk/info/200202/performance_and_spending/1079/payments_over_500,01-Jun-2021,Housing & Communities,RYGOR COMMERCIALS LTD,Neighbourhoods,687.12,Fire Service Workshops,2122P03_CR00328,3345
Sandwell Metropolitan Borough Council,http://www.sandwell.gov.uk/info/200202/performance_and_spending/1079/payments_over_500,22-Jun-2021,Housing & Communities,TAYLOR ENGINEERING & FABRICATIONS LTD,Neighbourhoods,695.97,Fire Service Workshops,2122P03_CR00329,87793
Sandwell Metropolitan Borough Council,http://www.sandwell.gov.uk/info/200202/performance_and_spending/1079/payments_over_500,01-Jun-2021,Housing & Communities,JAMES LISTER & SONS LTD,Neighbourhoods,711.80,Fire Service Workshops,2122P03_CR00330,01021821
Sandwell Metropolitan Borough Council,http://www.sandwell.gov.uk/info/200202/performance_and_spending/1079/payments_over_500,21-Jun-2021,Housing & Communities,ROBINS & DAY PARTS WEST MIDLANDS,Neighbourhoods,723.46,Fire Service Workshops,2122P03_CR00331,118812
Sandwell Metropolitan Borough Council,http://www.sandwell.gov.uk/info/200202/performance_and_spending/1079/payments_over_500,17-Jun-2021,Housing & Communities,NATIONWIDE WINDSCREEN SERVICES LTD,Neighbourhoods,750.48,Fire Service Workshops,2122P03_CR00332,129689
Sandwell Metropolitan Borough Council,http://www.sandwell.gov.uk/info/200202/performance_and_spending/1079/payments_over_500,01-Jun-2021,Housing & Communities,MIDLAND GARAGE EQUIPMENT,Neighbourhoods,770.05,Equipment & Furniture ,2122P03_CR00333,134241
Sandwell Metropolitan Borough Council,http://www.sandwell.gov.uk/info/200202/performance_and_spending/1079/payments_over_500,23-Jun-2021,Housing & Communities,MIDLAND TRUCK & VAN LTD,Neighbourhoods,781.00,Fire Service Workshops,2122P03_CR00334,128784
Sandwell Metropolitan Borough Council,http://www.sandwell.gov.uk/info/200202/performance_and_spending/1079/payments_over_500,01-Jun-2021,Housing & Communities,MURLEY AGRICULTURAL SUPPLIES LTD,Neighbourhoods,798.73,Fire Service Workshops,2122P03_CR00335,21076
Sandwell Metropolitan Borough Council,http://www.sandwell.gov.uk/info/200202/performance_and_spending/1079/payments_over_500,25-Jun-2021,Housing & Communities,PARTSPLUS,Neighbourhoods,811.09,Fire Service Workshops,2122P03_CR00336,01087922
Sandwell Metropolitan Borough Council,http://www.sandwell.gov.uk/info/200202/performance_and_spending/1079/payments_over_500,01-Jun-2021,Housing & Communities,DENNIS EAGLE LTD,Neighbourhoods,821.10,Fire Service Workshops,2122P03_CR00337,01004865
Sandwell Metropolitan Borough Council,http://www.sandwell.gov.uk/info/200202/performance_and_spending/1079/payments_over_500,19-Jun-2021,Housing & Communities,ROBINS & DAY PARTS WEST MIDLANDS,Neighbourhoods,824.48,Fire Service Workshops,2122P03_CR00338,118812
Sandwell Metropolitan Borough Council,http://www.sandwell.gov.uk/info/200202/performance_and_spending/1079/payments_over_500,01-Jun-2021,Housing & Communities,DENNIS EAGLE LTD,Neighbourhoods,836.38,Fire Service Workshops,2122P03_CR00339,01004865
Sandwell Metropolitan Borough Council,http://www.sandwell.gov.uk/info/200202/performance_and_spending/1079/payments_over_500,04-Jun-2021,Housing & Communities,TERBERG MATEC UK LTD,Neighbourhoods,843.53,Fire Service Workshops,2122P03_CR00340,21235
Sandwell Metropolitan Borough Council,http://www.sandwell.gov.uk/info/200202/performance_and_spending/1079/payments_over_500,16-Jun-2021,Housing & Communities,FAROL LIMITED,Neighbourhoods,851.00,Equipment & Furniture ,2122P03_CR00341,99987
Sandwell Metropolitan Borough Council,http://www.sandwell.gov.uk/info/200202/performance_and_spending/1079/payments_over_500,25-Jun-2021,Housing & Communities,TRUCK & TRAILER EQUIPMENT LIMITED,Neighbourhoods,865.40,Fire Service Workshops,2122P03_CR00342,126296
Sandwell Metropolitan Borough Council,http://www.sandwell.gov.uk/info/200202/performance_and_spending/1079/payments_over_500,01-Jun-2021,Housing & Communities,MIDLAND TRUCK & VAN LTD,Neighbourhoods,866.00,Fire Service Workshops,2122P03_CR00343,128784
Sandwell Metropolitan Borough Council,http://www.sandwell.gov.uk/info/200202/performance_and_spending/1079/payments_over_500,01-Jun-2021,Housing & Communities,DAYS RENTAL,Neighbourhoods,890.94,Vehicle Hiring Charges,2122P03_CR00344,128169
Sandwell Metropolitan Borough Council,http://www.sandwell.gov.uk/info/200202/performance_and_spending/1079/payments_over_500,01-Jun-2021,Housing & Communities,DAYS RENTAL,Neighbourhoods,890.94,Vehicle Hiring Charges,2122P03_CR00345,128169
Sandwell Metropolitan Borough Council,http://www.sandwell.gov.uk/info/200202/performance_and_spending/1079/payments_over_500,01-Jun-2021,Housing & Communities,DAYS RENTAL,Neighbourhoods,890.94,Vehicle Hiring Charges,2122P03_CR00346,128169
Sandwell Metropolitan Borough Council,http://www.sandwell.gov.uk/info/200202/performance_and_spending/1079/payments_over_500,22-Jun-2021,Housing & Communities,H L SMITH (TRANSMISSIONS) LTD,Neighbourhoods,915.00,Fire Service Workshops,2122P03_CR00347,01032886
Sandwell Metropolitan Borough Council,http://www.sandwell.gov.uk/info/200202/performance_and_spending/1079/payments_over_500,01-Jun-2021,Housing & Communities,RYGOR COMMERCIALS LTD,Neighbourhoods,930.50,Tyres,2122P03_CR00348,3345
Sandwell Metropolitan Borough Council,http://www.sandwell.gov.uk/info/200202/performance_and_spending/1079/payments_over_500,01-Jun-2021,Housing & Communities,DENNIS EAGLE LTD,Neighbourhoods,936.73,Fire Service Workshops,2122P03_CR00349,01004865
Sandwell Metropolitan Borough Council,http://www.sandwell.gov.uk/info/200202/performance_and_spending/1079/payments_over_500,01-Jun-2021,Housing & Communities,BUTLER REYNOLDS LTD,Neighbourhoods,990.70,Repairs & Maintenance,2122P03_CR00350,147157
Sandwell Metropolitan Borough Council,http://www.sandwell.gov.uk/info/200202/performance_and_spending/1079/payments_over_500,01-Jun-2021,Housing & Communities,FR SHARROCK LTD,Neighbourhoods,1060.50,Fire Service Workshops,2122P03_CR00351,01496028
Sandwell Metropolitan Borough Council,http://www.sandwell.gov.uk/info/200202/performance_and_spending/1079/payments_over_500,01-Jun-2021,Housing & Communities,DENNIS EAGLE LTD,Neighbourhoods,1096.99,Fire Service Workshops,2122P03_CR00352,01004865
Sandwell Metropolitan Borough Council,http://www.sandwell.gov.uk/info/200202/performance_and_spending/1079/payments_over_500,01-Jun-2021,Housing & Communities,ACCESSHIRE NATIONWIDE,Neighbourhoods,1121.00,Vehicle Hiring Charges,2122P03_CR00353,123955
Sandwell Metropolitan Borough Council,http://www.sandwell.gov.uk/info/200202/performance_and_spending/1079/payments_over_500,01-Jun-2021,Housing & Communities,DENNIS EAGLE LTD,Neighbourhoods,1142.58,Fire Service Workshops,2122P03_CR00354,01004865
Sandwell Metropolitan Borough Council,http://www.sandwell.gov.uk/info/200202/performance_and_spending/1079/payments_over_500,10-Jun-2021,Housing & Communities,SPENCER SIGNS UK LTD,Neighbourhoods,1149.80,Fire Service Workshops,2122P03_CR00355,124882
Sandwell Metropolitan Borough Council,http://www.sandwell.gov.uk/info/200202/performance_and_spending/1079/payments_over_500,01-Jun-2021,Housing & Communities,PHS BESAFE,Neighbourhoods,1248.15,Protective Clothing & Uniforms,2122P03_CR00356,124613
Sandwell Metropolitan Borough Council,http://www.sandwell.gov.uk/info/200202/performance_and_spending/1079/payments_over_500,01-Jun-2021,Housing & Communities,MIDLAND GARAGE EQUIPMENT,Neighbourhoods,1329.54,Equipment & Furniture ,2122P03_CR00357,134241
Sandwell Metropolitan Borough Council,http://www.sandwell.gov.uk/info/200202/performance_and_spending/1079/payments_over_500,02-Jun-2021,Housing & Communities,TERBERG MATEC UK LTD,Neighbourhoods,1342.82,Fire Service Workshops,2122P03_CR00358,21235
Sandwell Metropolitan Borough Council,http://www.sandwell.gov.uk/info/200202/performance_and_spending/1079/payments_over_500,01-Jun-2021,Housing & Communities,JAMES LISTER & SONS LTD,Neighbourhoods,1393.11,Fire Service Workshops,2122P03_CR00359,01021821
Sandwell Metropolitan Borough Council,http://www.sandwell.gov.uk/info/200202/performance_and_spending/1079/payments_over_500,03-Jun-2021,Housing & Communities,AUTOWASH ENGINEERING LIMITED,Neighbourhoods,1420.05,Equipment & Furniture ,2122P03_CR00360,99641
Sandwell Metropolitan Borough Council,http://www.sandwell.gov.uk/info/200202/performance_and_spending/1079/payments_over_500,08-Jun-2021,Housing & Communities,BUCHER MUNICIPAL LTD,Neighbourhoods,1486.34,Fire Service Workshops,2122P03_CR00361,01053625
Sandwell Metropolitan Borough Council,http://www.sandwell.gov.uk/info/200202/performance_and_spending/1079/payments_over_500,14-Jun-2021,Housing & Communities,DENNIS EAGLE LTD,Neighbourhoods,1503.89,Fire Service Workshops,2122P03_CR00362,01004865
Sandwell Metropolitan Borough Council,http://www.sandwell.gov.uk/info/200202/performance_and_spending/1079/payments_over_500,11-Jun-2021,Housing & Communities,TERBERG MATEC UK LTD,Neighbourhoods,1648.93,Fire Service Workshops,2122P03_CR00363,21235
Sandwell Metropolitan Borough Council,http://www.sandwell.gov.uk/info/200202/performance_and_spending/1079/payments_over_500,01-Jun-2021,Housing & Communities,DENNIS EAGLE LTD,Neighbourhoods,1819.17,Fire Service Workshops,2122P03_CR00364,01004865
Sandwell Metropolitan Borough Council,http://www.sandwell.gov.uk/info/200202/performance_and_spending/1079/payments_over_500,04-Jun-2021,Housing & Communities,BUCHER MUNICIPAL LTD,Neighbourhoods,1861.04,Fire Service Workshops,2122P03_CR00365,01053625
Sandwell Metropolitan Borough Council,http://www.sandwell.gov.uk/info/200202/performance_and_spending/1079/payments_over_500,01-Jun-2021,Housing & Communities,VOITH TURBO LTD,Neighbourhoods,1961.64,Fire Service Workshops,2122P03_CR00366,152200
Sandwell Metropolitan Borough Council,http://www.sandwell.gov.uk/info/200202/performance_and_spending/1079/payments_over_500,01-Jun-2021,Housing & Communities,BUCHER MUNICIPAL LTD,Neighbourhoods,1968.92,Fire Service Workshops,2122P03_CR00367,01053625
Sandwell Metropolitan Borough Council,http://www.sandwell.gov.uk/info/200202/performance_and_spending/1079/payments_over_500,01-Jun-2021,Housing & Communities,BUCHER MUNICIPAL LTD,Neighbourhoods,1985.10,Fire Service Workshops,2122P03_CR00368,01053625
Sandwell Metropolitan Borough Council,http://www.sandwell.gov.uk/info/200202/performance_and_spending/1079/payments_over_500,01-Jun-2021,Housing & Communities,TRUCKSTOP-HAWKES,Neighbourhoods,2055.00,Equipment & Furniture ,2122P03_CR00369,109408
Sandwell Metropolitan Borough Council,http://www.sandwell.gov.uk/info/200202/performance_and_spending/1079/payments_over_500,15-Jun-2021,Housing & Communities,GEESINK NORBA LTD,Neighbourhoods,2255.65,Fire Service Workshops,2122P03_CR00370,102799
Sandwell Metropolitan Borough Council,http://www.sandwell.gov.uk/info/200202/performance_and_spending/1079/payments_over_500,16-Jun-2021,Housing & Communities,TEL SERVICES,Neighbourhoods,2605.77,Fire Service Workshops,2122P03_CR00371,84262
Sandwell Metropolitan Borough Council,http://www.sandwell.gov.uk/info/200202/performance_and_spending/1079/payments_over_500,25-Jun-2021,Housing & Communities,FUCHS LUBRICANTS (UK) LTD,Neighbourhoods,5650.00,Fire Service Workshops,2122P03_CR00372,130133
Sandwell Metropolitan Borough Council,http://www.sandwell.gov.uk/info/200202/performance_and_spending/1079/payments_over_500,01-Jun-2021,Housing & Communities,CHEVIN COMPUTER SYSTEMS LIMITED,Neighbourhoods,13816.51,Subscriptions,2122P03_CR00373,111362
Sandwell Metropolitan Borough Council,http://www.sandwell.gov.uk/info/200202/performance_and_spending/1079/payments_over_500,01-Jun-2021,Housing & Communities,BRIGGS EQUIPMENT UK LIMITED,Neighbourhoods,15317.50,Equipment & Furniture ,2122P03_CR00374,01356521
Sandwell Metropolitan Borough Council,http://www.sandwell.gov.uk/info/200202/performance_and_spending/1079/payments_over_500,17-Jun-2021,Housing & Communities,MARSHALL PEUGEOT PETERBOROUGH,Neighbourhoods,24403.50,Licences & Test Fees,2122P03_CR00375,147845
Sandwell Metropolitan Borough Council,http://www.sandwell.gov.uk/info/200202/performance_and_spending/1079/payments_over_500,01-Jun-2021,Housing & Communities,S & B COMMERCIALS LTD,Neighbourhoods,96474.08,Licences & Test Fees,2122P03_CR00376,135769
Sandwell Metropolitan Borough Council,http://www.sandwell.gov.uk/info/200202/performance_and_spending/1079/payments_over_500,01-Jun-2021,Housing & Communities,BEECHWOOD TREES & LANDSCAPE LTD,Neighbourhoods,502.50,Externally Purchased Professional Services ,2122P03_CR00377,93287
Sandwell Metropolitan Borough Council,http://www.sandwell.gov.uk/info/200202/performance_and_spending/1079/payments_over_500,08-Jun-2021,Housing & Communities,BEECHWOOD TREES & LANDSCAPE LTD,Neighbourhoods,505.50,Externally Purchased Professional Services ,2122P03_CR00378,93287
Sandwell Metropolitan Borough Council,http://www.sandwell.gov.uk/info/200202/performance_and_spending/1079/payments_over_500,10-Jun-2021,Housing & Communities,MIDLAND FORESTRY LIMITED,Neighbourhoods,506.00,Externally Purchased Professional Services ,2122P03_CR00379,45812
Sandwell Metropolitan Borough Council,http://www.sandwell.gov.uk/info/200202/performance_and_spending/1079/payments_over_500,03-Jun-2021,Housing & Communities,WF HOWES LTD,Neighbourhoods,508.00,Materials & Consumables,2122P03_CR00380,01679819
Sandwell Metropolitan Borough Council,http://www.sandwell.gov.uk/info/200202/performance_and_spending/1079/payments_over_500,03-Jun-2021,Housing & Communities,WF HOWES LTD,Neighbourhoods,516.80,Materials & Consumables,2122P03_CR00381,01679819
Sandwell Metropolitan Borough Council,http://www.sandwell.gov.uk/info/200202/performance_and_spending/1079/payments_over_500,03-Jun-2021,Housing & Communities,WF HOWES LTD,Neighbourhoods,518.40,Materials & Consumables,2122P03_CR00382,01679819
Sandwell Metropolitan Borough Council,http://www.sandwell.gov.uk/info/200202/performance_and_spending/1079/payments_over_500,03-Jun-2021,Housing & Communities,WF HOWES LTD,Neighbourhoods,520.00,Materials & Consumables,2122P03_CR00383,01679819
Sandwell Metropolitan Borough Council,http://www.sandwell.gov.uk/info/200202/performance_and_spending/1079/payments_over_500,23-Jun-2021,Housing & Communities,WF HOWES LTD,Neighbourhoods,524.00,Materials & Consumables,2122P03_CR00384,01679819
Sandwell Metropolitan Borough Council,http://www.sandwell.gov.uk/info/200202/performance_and_spending/1079/payments_over_500,03-Jun-2021,Housing & Communities,WF HOWES LTD,Neighbourhoods,525.60,Materials & Consumables,2122P03_CR00385,01679819
Sandwell Metropolitan Borough Council,http://www.sandwell.gov.uk/info/200202/performance_and_spending/1079/payments_over_500,03-Jun-2021,Housing & Communities,WF HOWES LTD,Neighbourhoods,525.60,Materials & Consumables,2122P03_CR00386,01679819
Sandwell Metropolitan Borough Council,http://www.sandwell.gov.uk/info/200202/performance_and_spending/1079/payments_over_500,01-Jun-2021,Housing & Communities,Q TECHNICAL SERVICES UK LTD,Neighbourhoods,526.00,Building Maintenance & Improvements,2122P03_CR00387,135645
Sandwell Metropolitan Borough Council,http://www.sandwell.gov.uk/info/200202/performance_and_spending/1079/payments_over_500,01-Jun-2021,Housing & Communities,BCH PROPERTY LIMITED,Neighbourhoods,533.44,Rents,2122P03_CR00388,01011861
Sandwell Metropolitan Borough Council,http://www.sandwell.gov.uk/info/200202/performance_and_spending/1079/payments_over_500,16-Jun-2021,Housing & Communities,Q TECHNICAL SERVICES UK LTD,Neighbourhoods,535.00,Building Maintenance & Improvements,2122P03_CR00389,135645
Sandwell Metropolitan Borough Council,http://www.sandwell.gov.uk/info/200202/performance_and_spending/1079/payments_over_500,01-Jun-2021,Housing & Communities,CONTRACT LETTINGS LTD,Neighbourhoods,541.80,Rents,2122P03_CR00390,76625
Sandwell Metropolitan Borough Council,http://www.sandwell.gov.uk/info/200202/performance_and_spending/1079/payments_over_500,01-Jun-2021,Housing & Communities,CONTRACT LETTINGS LTD,Neighbourhoods,541.80,Rents,2122P03_CR00391,76625
Sandwell Metropolitan Borough Council,http://www.sandwell.gov.uk/info/200202/performance_and_spending/1079/payments_over_500,25-Jun-2021,Housing & Communities,DATA POWER LTD,Neighbourhoods,550.00,Externally Purchased Professional Services ,2122P03_CR00392,78780
Sandwell Metropolitan Borough Council,http://www.sandwell.gov.uk/info/200202/performance_and_spending/1079/payments_over_500,01-Jun-2021,Housing & Communities,CONTRACT LETTINGS LTD,Neighbourhoods,559.86,Rents,2122P03_CR00393,76625
Sandwell Metropolitan Borough Council,http://www.sandwell.gov.uk/info/200202/performance_and_spending/1079/payments_over_500,01-Jun-2021,Housing & Communities,CONTRACT LETTINGS LTD,Neighbourhoods,559.86,Rents,2122P03_CR00394,76625
Sandwell Metropolitan Borough Council,http://www.sandwell.gov.uk/info/200202/performance_and_spending/1079/payments_over_500,01-Jun-2021,Housing & Communities,BCH PROPERTY LIMITED,Neighbourhoods,560.00,Rents,2122P03_CR00395,01011861
Sandwell Metropolitan Borough Council,http://www.sandwell.gov.uk/info/200202/performance_and_spending/1079/payments_over_500,01-Jun-2021,Housing & Communities,RENAISSANCE CREATIVE DESIGN & PRINT LTD,Neighbourhoods,573.00,Waste Disposal Charges,2122P03_CR00396,97376
Sandwell Metropolitan Borough Council,http://www.sandwell.gov.uk/info/200202/performance_and_spending/1079/payments_over_500,01-Jun-2021,Housing & Communities,BEECHWOOD TREES & LANDSCAPE LTD,Neighbourhoods,575.00,Externally Purchased Professional Services ,2122P03_CR00397,93287
Sandwell Metropolitan Borough Council,http://www.sandwell.gov.uk/info/200202/performance_and_spending/1079/payments_over_500,01-Jun-2021,Housing & Communities,REDACTED PERSONAL DATA,Neighbourhoods,600.00,Externally Purchased Professional Services ,2122P03_CR00398,REDACTED PERSONAL DATA
Sandwell Metropolitan Borough Council,http://www.sandwell.gov.uk/info/200202/performance_and_spending/1079/payments_over_500,01-Jun-2021,Housing & Communities,TENNALS PEST CONTROL LTD,Neighbourhoods,600.00,Externally Purchased Professional Services ,2122P03_CR00399,138145
Sandwell Metropolitan Borough Council,http://www.sandwell.gov.uk/info/200202/performance_and_spending/1079/payments_over_500,07-Jun-2021,Housing & Communities,ESSEX AVENUE COMMUNITY ASSOCIATION,Neighbourhoods,600.00,Tenants Expenses,2122P03_CR00400,113690
Sandwell Metropolitan Borough Council,http://www.sandwell.gov.uk/info/200202/performance_and_spending/1079/payments_over_500,09-Jun-2021,Housing & Communities,BLACK MOUNTAIN REINDEERS,Neighbourhoods,610.00,Externally Purchased Professional Services ,2122P03_CR00401,141279
Sandwell Metropolitan Borough Council,http://www.sandwell.gov.uk/info/200202/performance_and_spending/1079/payments_over_500,01-Jun-2021,Housing & Communities,CONTRACT LETTINGS LTD,Neighbourhoods,610.74,Rents,2122P03_CR00402,76625
Sandwell Metropolitan Borough Council,http://www.sandwell.gov.uk/info/200202/performance_and_spending/1079/payments_over_500,01-Jun-2021,Housing & Communities,BEEHIVE BITS LIMITED,Neighbourhoods,619.20,Materials & Consumables,2122P03_CR00403,130628
Sandwell Metropolitan Borough Council,http://www.sandwell.gov.uk/info/200202/performance_and_spending/1079/payments_over_500,01-Jun-2021,Housing & Communities,GILANI ENTERPRISES LIMITED,Neighbourhoods,666.67,Rents,2122P03_CR00404,2696
Sandwell Metropolitan Borough Council,http://www.sandwell.gov.uk/info/200202/performance_and_spending/1079/payments_over_500,06-Jun-2021,Housing & Communities,CONTRACT LETTINGS LTD,Neighbourhoods,672.30,Rents,2122P03_CR00405,76625
Sandwell Metropolitan Borough Council,http://www.sandwell.gov.uk/info/200202/performance_and_spending/1079/payments_over_500,01-Jun-2021,Housing & Communities,CONTRACT LETTINGS LTD,Neighbourhoods,678.60,Rents,2122P03_CR00406,76625
Sandwell Metropolitan Borough Council,http://www.sandwell.gov.uk/info/200202/performance_and_spending/1079/payments_over_500,01-Jun-2021,Housing & Communities,CONTRACT LETTINGS LTD,Neighbourhoods,678.60,Rents,2122P03_CR00407,76625
Sandwell Metropolitan Borough Council,http://www.sandwell.gov.uk/info/200202/performance_and_spending/1079/payments_over_500,01-Jun-2021,Housing & Communities,CONTRACT LETTINGS LTD,Neighbourhoods,678.60,Rents,2122P03_CR00408,76625
Sandwell Metropolitan Borough Council,http://www.sandwell.gov.uk/info/200202/performance_and_spending/1079/payments_over_500,01-Jun-2021,Housing & Communities,CONTRACT LETTINGS LTD,Neighbourhoods,678.60,Rents,2122P03_CR00409,76625
Sandwell Metropolitan Borough Council,http://www.sandwell.gov.uk/info/200202/performance_and_spending/1079/payments_over_500,01-Jun-2021,Housing & Communities,CONTRACT LETTINGS LTD,Neighbourhoods,678.60,Rents,2122P03_CR00410,76625
Sandwell Metropolitan Borough Council,http://www.sandwell.gov.uk/info/200202/performance_and_spending/1079/payments_over_500,01-Jun-2021,Housing & Communities,CONTRACT LETTINGS LTD,Neighbourhoods,678.60,Rents,2122P03_CR00411,76625
Sandwell Metropolitan Borough Council,http://www.sandwell.gov.uk/info/200202/performance_and_spending/1079/payments_over_500,01-Jun-2021,Housing & Communities,GILANI ENTERPRISES LIMITED,Neighbourhoods,685.71,Rents,2122P03_CR00412,2696
Sandwell Metropolitan Borough Council,http://www.sandwell.gov.uk/info/200202/performance_and_spending/1079/payments_over_500,18-Jun-2021,Housing & Communities,RIGBY TAYLOR LTD,Neighbourhoods,686.80,Materials & Consumables,2122P03_CR00413,01076172
Sandwell Metropolitan Borough Council,http://www.sandwell.gov.uk/info/200202/performance_and_spending/1079/payments_over_500,01-Jun-2021,Housing & Communities,CONTRACT LETTINGS LTD,Neighbourhoods,701.22,Rents,2122P03_CR00414,76625
Sandwell Metropolitan Borough Council,http://www.sandwell.gov.uk/info/200202/performance_and_spending/1079/payments_over_500,01-Jun-2021,Housing & Communities,CONTRACT LETTINGS LTD,Neighbourhoods,701.22,Rents,2122P03_CR00415,76625
Sandwell Metropolitan Borough Council,http://www.sandwell.gov.uk/info/200202/performance_and_spending/1079/payments_over_500,01-Jun-2021,Housing & Communities,CONTRACT LETTINGS LTD,Neighbourhoods,701.22,Rents,2122P03_CR00416,76625
Sandwell Metropolitan Borough Council,http://www.sandwell.gov.uk/info/200202/performance_and_spending/1079/payments_over_500,01-Jun-2021,Housing & Communities,CONTRACT LETTINGS LTD,Neighbourhoods,701.22,Rents,2122P03_CR00417,76625
Sandwell Metropolitan Borough Council,http://www.sandwell.gov.uk/info/200202/performance_and_spending/1079/payments_over_500,01-Jun-2021,Housing & Communities,CONTRACT LETTINGS LTD,Neighbourhoods,701.22,Rents,2122P03_CR00418,76625
Sandwell Metropolitan Borough Council,http://www.sandwell.gov.uk/info/200202/performance_and_spending/1079/payments_over_500,01-Jun-2021,Housing & Communities,CONTRACT LETTINGS LTD,Neighbourhoods,701.22,Rents,2122P03_CR00419,76625
Sandwell Metropolitan Borough Council,http://www.sandwell.gov.uk/info/200202/performance_and_spending/1079/payments_over_500,01-Jun-2021,Housing & Communities,CONTRACT LETTINGS LTD,Neighbourhoods,701.22,Rents,2122P03_CR00420,76625
Sandwell Metropolitan Borough Council,http://www.sandwell.gov.uk/info/200202/performance_and_spending/1079/payments_over_500,01-Jun-2021,Housing & Communities,CERTAS ENERGY LIMITED,Neighbourhoods,723.97,Oil,2122P03_CR00421,80421
Sandwell Metropolitan Borough Council,http://www.sandwell.gov.uk/info/200202/performance_and_spending/1079/payments_over_500,01-Jun-2021,Housing & Communities,SERCO LIMITED,Neighbourhoods,725.28,Waste Disposal Charges,2122P03_CR00422,53771
Sandwell Metropolitan Borough Council,http://www.sandwell.gov.uk/info/200202/performance_and_spending/1079/payments_over_500,01-Jun-2021,Housing & Communities,BEECHWOOD TREES & LANDSCAPE LTD,Neighbourhoods,735.00,Externally Purchased Professional Services ,2122P03_CR00423,93287
Sandwell Metropolitan Borough Council,http://www.sandwell.gov.uk/info/200202/performance_and_spending/1079/payments_over_500,16-Jun-2021,Housing & Communities,WYNNSTAY (AGRICULTURAL SUPPLIES) LIMITED,Neighbourhoods,737.05,Materials & Consumables,2122P03_CR00424,121165
Sandwell Metropolitan Borough Council,http://www.sandwell.gov.uk/info/200202/performance_and_spending/1079/payments_over_500,01-Jun-2021,Housing & Communities,CONTRACT LETTINGS LTD,Neighbourhoods,738.60,Rents,2122P03_CR00425,76625
Sandwell Metropolitan Borough Council,http://www.sandwell.gov.uk/info/200202/performance_and_spending/1079/payments_over_500,01-Jun-2021,Housing & Communities,CONTRACT LETTINGS LTD,Neighbourhoods,738.60,Rents,2122P03_CR00426,76625
Sandwell Metropolitan Borough Council,http://www.sandwell.gov.uk/info/200202/performance_and_spending/1079/payments_over_500,01-Jun-2021,Housing & Communities,CONTRACT LETTINGS LTD,Neighbourhoods,738.60,Rents,2122P03_CR00427,76625
Sandwell Metropolitan Borough Council,http://www.sandwell.gov.uk/info/200202/performance_and_spending/1079/payments_over_500,01-Jun-2021,Housing & Communities,WATER PLUS SELECT LIMITED,Neighbourhoods,742.46,Water Services,2122P03_CR00428,129644
Sandwell Metropolitan Borough Council,http://www.sandwell.gov.uk/info/200202/performance_and_spending/1079/payments_over_500,01-Jun-2021,Housing & Communities,CONTRACT LETTINGS LTD,Neighbourhoods,747.00,Rents,2122P03_CR00429,76625
Sandwell Metropolitan Borough Council,http://www.sandwell.gov.uk/info/200202/performance_and_spending/1079/payments_over_500,03-Jun-2021,Housing & Communities,NATIONWIDE REMOVALS & STORAGE LTD T/A REMOVALS.CO.UK,Neighbourhoods,762.00,Waste Disposal Charges,2122P03_CR00430,123785
Sandwell Metropolitan Borough Council,http://www.sandwell.gov.uk/info/200202/performance_and_spending/1079/payments_over_500,01-Jun-2021,Housing & Communities,CONTRACT LETTINGS LTD,Neighbourhoods,763.22,Rents,2122P03_CR00431,76625
Sandwell Metropolitan Borough Council,http://www.sandwell.gov.uk/info/200202/performance_and_spending/1079/payments_over_500,01-Jun-2021,Housing & Communities,CONTRACT LETTINGS LTD,Neighbourhoods,763.22,Rents,2122P03_CR00432,76625
Sandwell Metropolitan Borough Council,http://www.sandwell.gov.uk/info/200202/performance_and_spending/1079/payments_over_500,01-Jun-2021,Housing & Communities,CONTRACT LETTINGS LTD,Neighbourhoods,763.22,Rents,2122P03_CR00433,76625
Sandwell Metropolitan Borough Council,http://www.sandwell.gov.uk/info/200202/performance_and_spending/1079/payments_over_500,01-Jun-2021,Housing & Communities,CONTRACT LETTINGS LTD,Neighbourhoods,768.60,Rents,2122P03_CR00434,76625
Sandwell Metropolitan Borough Council,http://www.sandwell.gov.uk/info/200202/performance_and_spending/1079/payments_over_500,01-Jun-2021,Housing & Communities,CONTRACT LETTINGS LTD,Neighbourhoods,771.90,Rents,2122P03_CR00435,76625
Sandwell Metropolitan Borough Council,http://www.sandwell.gov.uk/info/200202/performance_and_spending/1079/payments_over_500,01-Jun-2021,Housing & Communities,CONTRACT LETTINGS LTD,Neighbourhoods,771.90,Rents,2122P03_CR00436,76625
Sandwell Metropolitan Borough Council,http://www.sandwell.gov.uk/info/200202/performance_and_spending/1079/payments_over_500,01-Jun-2021,Housing & Communities,CONTRACT LETTINGS LTD,Neighbourhoods,771.90,Rents,2122P03_CR00437,76625
Sandwell Metropolitan Borough Council,http://www.sandwell.gov.uk/info/200202/performance_and_spending/1079/payments_over_500,04-Jun-2021,Housing & Communities,MIDLAND FORESTRY LIMITED,Neighbourhoods,783.00,Externally Purchased Professional Services ,2122P03_CR00438,45812
Sandwell Metropolitan Borough Council,http://www.sandwell.gov.uk/info/200202/performance_and_spending/1079/payments_over_500,21-Jun-2021,Housing & Communities,WABCO UK T/A INGENIA,Neighbourhoods,786.00,Equipment & Furniture ,2122P03_CR00439,87055
Sandwell Metropolitan Borough Council,http://www.sandwell.gov.uk/info/200202/performance_and_spending/1079/payments_over_500,01-Jun-2021,Housing & Communities,CONTRACT LETTINGS LTD,Neighbourhoods,794.22,Rents,2122P03_CR00440,76625
Sandwell Metropolitan Borough Council,http://www.sandwell.gov.uk/info/200202/performance_and_spending/1079/payments_over_500,01-Jun-2021,Housing & Communities,CONTRACT LETTINGS LTD,Neighbourhoods,794.22,Rents,2122P03_CR00441,76625
Sandwell Metropolitan Borough Council,http://www.sandwell.gov.uk/info/200202/performance_and_spending/1079/payments_over_500,10-Jun-2021,Housing & Communities,BEECHWOOD TREES & LANDSCAPE LTD,Neighbourhoods,804.00,Externally Purchased Professional Services ,2122P03_CR00442,93287
Sandwell Metropolitan Borough Council,http://www.sandwell.gov.uk/info/200202/performance_and_spending/1079/payments_over_500,01-Jun-2021,Housing & Communities,PROFILE SECURITY SERVICES LTD,Neighbourhoods,814.80,Security,2122P03_CR00443,131253
Sandwell Metropolitan Borough Council,http://www.sandwell.gov.uk/info/200202/performance_and_spending/1079/payments_over_500,01-Jun-2021,Housing & Communities,PROFILE SECURITY SERVICES LTD,Neighbourhoods,814.80,Security,2122P03_CR00444,131253
Sandwell Metropolitan Borough Council,http://www.sandwell.gov.uk/info/200202/performance_and_spending/1079/payments_over_500,24-Jun-2021,Housing & Communities,SHERRIFFS FOODS LIMITED T/A FOSTERS,Neighbourhoods,824.88,Materials & Consumables,2122P03_CR00445,139776
Sandwell Metropolitan Borough Council,http://www.sandwell.gov.uk/info/200202/performance_and_spending/1079/payments_over_500,08-Jun-2021,Housing & Communities,G & B KENDALL & SONS,Neighbourhoods,825.00,Externally Purchased Professional Services ,2122P03_CR00446,01422772
Sandwell Metropolitan Borough Council,http://www.sandwell.gov.uk/info/200202/performance_and_spending/1079/payments_over_500,01-Jun-2021,Housing & Communities,BEECHWOOD TREES & LANDSCAPE LTD,Neighbourhoods,900.00,Externally Purchased Professional Services ,2122P03_CR00447,93287
Sandwell Metropolitan Borough Council,http://www.sandwell.gov.uk/info/200202/performance_and_spending/1079/payments_over_500,01-Jun-2021,Housing & Communities,GILANI ENTERPRISES LIMITED,Neighbourhoods,914.29,Rents,2122P03_CR00448,2696
Sandwell Metropolitan Borough Council,http://www.sandwell.gov.uk/info/200202/performance_and_spending/1079/payments_over_500,01-Jun-2021,Housing & Communities,XMA LTD,Neighbourhoods,926.32,ICT ,2122P03_CR00449,01135462
Sandwell Metropolitan Borough Council,http://www.sandwell.gov.uk/info/200202/performance_and_spending/1079/payments_over_500,10-Jun-2021,Housing & Communities,MIDLAND FORESTRY LIMITED,Neighbourhoods,950.00,Externally Purchased Professional Services ,2122P03_CR00450,45812
Sandwell Metropolitan Borough Council,http://www.sandwell.gov.uk/info/200202/performance_and_spending/1079/payments_over_500,01-Jun-2021,Housing & Communities,PROFILE SECURITY SERVICES LTD,Neighbourhoods,974.37,Security,2122P03_CR00451,131253
Sandwell Metropolitan Borough Council,http://www.sandwell.gov.uk/info/200202/performance_and_spending/1079/payments_over_500,01-Jun-2021,Housing & Communities,S.C.V.O.,Neighbourhoods,1000.00,Grant Payments,2122P03_CR00452,109813
Sandwell Metropolitan Borough Council,http://www.sandwell.gov.uk/info/200202/performance_and_spending/1079/payments_over_500,07-Jun-2021,Housing & Communities,CBS MIDLANDS LTD,Neighbourhoods,1020.76,Operational Services ,2122P03_CR00453,01020138
Sandwell Metropolitan Borough Council,http://www.sandwell.gov.uk/info/200202/performance_and_spending/1079/payments_over_500,01-Jun-2021,Housing & Communities,SPECTRUM PLASTICS LTD,Neighbourhoods,1024.00,"Printing, Stationery & General Office Expenses",2122P03_CR00454,2017
Sandwell Metropolitan Borough Council,http://www.sandwell.gov.uk/info/200202/performance_and_spending/1079/payments_over_500,01-Jun-2021,Housing & Communities,BEECHWOOD TREES & LANDSCAPE LTD,Neighbourhoods,1026.50,Externally Purchased Professional Services ,2122P03_CR00455,93287
Sandwell Metropolitan Borough Council,http://www.sandwell.gov.uk/info/200202/performance_and_spending/1079/payments_over_500,01-Jun-2021,Housing & Communities,PROFILE SECURITY SERVICES LTD,Neighbourhoods,1037.40,Security,2122P03_CR00456,131253
Sandwell Metropolitan Borough Council,http://www.sandwell.gov.uk/info/200202/performance_and_spending/1079/payments_over_500,15-Jun-2021,Housing & Communities,CORROY PRODUCTS LTD,Neighbourhoods,1088.99,Equipment & Furniture ,2122P03_CR00457,4518
Sandwell Metropolitan Borough Council,http://www.sandwell.gov.uk/info/200202/performance_and_spending/1079/payments_over_500,01-Jun-2021,Housing & Communities,DORMY HOTEL,Neighbourhoods,1133.33,Rents,2122P03_CR00458,01737052
Sandwell Metropolitan Borough Council,http://www.sandwell.gov.uk/info/200202/performance_and_spending/1079/payments_over_500,01-Jun-2021,Housing & Communities,GILANI ENTERPRISES LIMITED,Neighbourhoods,1142.86,Rents,2122P03_CR00459,2696
Sandwell Metropolitan Borough Council,http://www.sandwell.gov.uk/info/200202/performance_and_spending/1079/payments_over_500,24-Jun-2021,Housing & Communities,ALERT CASCADE LTD,Neighbourhoods,1150.00,Subscriptions,2122P03_CR00460,134819
Sandwell Metropolitan Borough Council,http://www.sandwell.gov.uk/info/200202/performance_and_spending/1079/payments_over_500,01-Jun-2021,Housing & Communities,TRISCAN SYSTEMS LIMITED,Neighbourhoods,1166.99,ICT ,2122P03_CR00461,01437851
Sandwell Metropolitan Borough Council,http://www.sandwell.gov.uk/info/200202/performance_and_spending/1079/payments_over_500,01-Jun-2021,Housing & Communities,BEECHWOOD TREES & LANDSCAPE LTD,Neighbourhoods,1175.00,Externally Purchased Professional Services ,2122P03_CR00462,93287
Sandwell Metropolitan Borough Council,http://www.sandwell.gov.uk/info/200202/performance_and_spending/1079/payments_over_500,09-Jun-2021,Housing & Communities,CHILD POVERTY ACTION GROUP,Neighbourhoods,1217.92,Licences,2122P03_CR00463,01610718
Sandwell Metropolitan Borough Council,http://www.sandwell.gov.uk/info/200202/performance_and_spending/1079/payments_over_500,01-Jun-2021,Housing & Communities,PROFILE SECURITY SERVICES LTD,Neighbourhoods,1223.60,Security,2122P03_CR00464,131253
Sandwell Metropolitan Borough Council,http://www.sandwell.gov.uk/info/200202/performance_and_spending/1079/payments_over_500,01-Jun-2021,Housing & Communities,HARWELL TECHNICAL SERVICES LTD,Neighbourhoods,1230.00,Contract Cleaning,2122P03_CR00465,9025
Sandwell Metropolitan Borough Council,http://www.sandwell.gov.uk/info/200202/performance_and_spending/1079/payments_over_500,01-Jun-2021,Housing & Communities,SUEZ RECYLING AND RECOVERY HOLDINGS UK LTD,Neighbourhoods,1268.43,Waste Disposal Charges,2122P03_CR00466,129939
Sandwell Metropolitan Borough Council,http://www.sandwell.gov.uk/info/200202/performance_and_spending/1079/payments_over_500,23-Jun-2021,Housing & Communities,RIGBY TAYLOR LTD,Neighbourhoods,1271.93,Materials & Consumables,2122P03_CR00467,01076172
Sandwell Metropolitan Borough Council,http://www.sandwell.gov.uk/info/200202/performance_and_spending/1079/payments_over_500,11-Jun-2021,Housing & Communities,NATIONWIDE REMOVALS & STORAGE LTD T/A REMOVALS.CO.UK,Housing & Communities,1284.00,Waste Disposal Charges,2122P03_CR00468,123785
Sandwell Metropolitan Borough Council,http://www.sandwell.gov.uk/info/200202/performance_and_spending/1079/payments_over_500,04-Jun-2021,Housing & Communities,MIDLAND FORESTRY LIMITED,Neighbourhoods,1305.00,Externally Purchased Professional Services ,2122P03_CR00469,45812
Sandwell Metropolitan Borough Council,http://www.sandwell.gov.uk/info/200202/performance_and_spending/1079/payments_over_500,09-Jun-2021,Housing & Communities,RIGBY TAYLOR LTD,Neighbourhoods,1316.70,Materials & Consumables,2122P03_CR00470,01076172
Sandwell Metropolitan Borough Council,http://www.sandwell.gov.uk/info/200202/performance_and_spending/1079/payments_over_500,09-Jun-2021,Housing & Communities,RIGBY TAYLOR LTD,Neighbourhoods,1321.98,Materials & Consumables,2122P03_CR00471,01076172
Sandwell Metropolitan Borough Council,http://www.sandwell.gov.uk/info/200202/performance_and_spending/1079/payments_over_500,01-Jun-2021,Housing & Communities,GILANI ENTERPRISES LIMITED,Neighbourhoods,1371.43,Rents,2122P03_CR00472,2696
Sandwell Metropolitan Borough Council,http://www.sandwell.gov.uk/info/200202/performance_and_spending/1079/payments_over_500,01-Jun-2021,Housing & Communities,UNITE FIRE & SECURITY COMPANY LTD,Neighbourhoods,1416.00,Security,2122P03_CR00473,148200
Sandwell Metropolitan Borough Council,http://www.sandwell.gov.uk/info/200202/performance_and_spending/1079/payments_over_500,01-Jun-2021,Housing & Communities,PHOENIX SOFTWARE LTD,Neighbourhoods,1430.66,ICT ,2122P03_CR00474,01504689
Sandwell Metropolitan Borough Council,http://www.sandwell.gov.uk/info/200202/performance_and_spending/1079/payments_over_500,01-Jun-2021,Housing & Communities,POTOK INVESTMENTS LLP,Neighbourhoods,1568.76,Tenants Expenses,2122P03_CR00475,152261
Sandwell Metropolitan Borough Council,http://www.sandwell.gov.uk/info/200202/performance_and_spending/1079/payments_over_500,10-Jun-2021,Housing & Communities,CERTAS ENERGY LIMITED,Neighbourhoods,1656.65,Fuel ,2122P03_CR00476,80421
Sandwell Metropolitan Borough Council,http://www.sandwell.gov.uk/info/200202/performance_and_spending/1079/payments_over_500,11-Jun-2021,Housing & Communities,CERTAS ENERGY LIMITED,Neighbourhoods,1657.20,Fuel ,2122P03_CR00477,80421
Sandwell Metropolitan Borough Council,http://www.sandwell.gov.uk/info/200202/performance_and_spending/1079/payments_over_500,01-Jun-2021,Housing & Communities,GILANI ENTERPRISES LIMITED,Neighbourhoods,1666.67,Rents,2122P03_CR00478,2696
Sandwell Metropolitan Borough Council,http://www.sandwell.gov.uk/info/200202/performance_and_spending/1079/payments_over_500,01-Jun-2021,Housing & Communities,GILANI ENTERPRISES LIMITED,Neighbourhoods,1666.67,Rents,2122P03_CR00479,2696
Sandwell Metropolitan Borough Council,http://www.sandwell.gov.uk/info/200202/performance_and_spending/1079/payments_over_500,01-Jun-2021,Housing & Communities,BCH PROPERTY LIMITED,Neighbourhoods,1667.00,Rents,2122P03_CR00480,01011861
Sandwell Metropolitan Borough Council,http://www.sandwell.gov.uk/info/200202/performance_and_spending/1079/payments_over_500,01-Jun-2021,Housing & Communities,MKG (FOOD PRODUCTS) LIMITED,Neighbourhoods,1695.00,Catering Provisions,2122P03_CR00481,142083
Sandwell Metropolitan Borough Council,http://www.sandwell.gov.uk/info/200202/performance_and_spending/1079/payments_over_500,01-Jun-2021,Housing & Communities,SANDWELL LIFT PROJECT COMPANY (NO 3) LIMITED,Neighbourhoods,1717.15,Water Services,2122P03_CR00482,113986
Sandwell Metropolitan Borough Council,http://www.sandwell.gov.uk/info/200202/performance_and_spending/1079/payments_over_500,01-Jun-2021,Housing & Communities,UNITE FIRE & SECURITY COMPANY LTD,Neighbourhoods,1746.00,Security,2122P03_CR00483,148200
Sandwell Metropolitan Borough Council,http://www.sandwell.gov.uk/info/200202/performance_and_spending/1079/payments_over_500,01-Jun-2021,Housing & Communities,DATA POWER LTD,Housing & Communities,1799.40,CIP - Fixtures & Fittings,2122P03_CR00484,78780
Sandwell Metropolitan Borough Council,http://www.sandwell.gov.uk/info/200202/performance_and_spending/1079/payments_over_500,01-Jun-2021,Housing & Communities,PROFILE SECURITY SERVICES LTD,Neighbourhoods,1955.52,Security,2122P03_CR00485,131253
Sandwell Metropolitan Borough Council,http://www.sandwell.gov.uk/info/200202/performance_and_spending/1079/payments_over_500,24-Jun-2021,Housing & Communities,NOMIX ENVIRO LTD,Neighbourhoods,2165.00,Materials & Consumables,2122P03_CR00486,37313
Sandwell Metropolitan Borough Council,http://www.sandwell.gov.uk/info/200202/performance_and_spending/1079/payments_over_500,01-Jun-2021,Housing & Communities,GILANI ENTERPRISES LIMITED,Neighbourhoods,2285.71,Rents,2122P03_CR00487,2696
Sandwell Metropolitan Borough Council,http://www.sandwell.gov.uk/info/200202/performance_and_spending/1079/payments_over_500,01-Jun-2021,Housing & Communities,RENAISSANCE CREATIVE DESIGN & PRINT LTD,Neighbourhoods,2295.00,"Printing, Stationery & General Office Expenses",2122P03_CR00488,97376
Sandwell Metropolitan Borough Council,http://www.sandwell.gov.uk/info/200202/performance_and_spending/1079/payments_over_500,01-Jun-2021,Housing & Communities,XMA LTD,Neighbourhoods,2359.88,ICT ,2122P03_CR00489,01135462
Sandwell Metropolitan Borough Council,http://www.sandwell.gov.uk/info/200202/performance_and_spending/1079/payments_over_500,01-Jun-2021,Housing & Communities,TIBBINGTON TENANTS & RESIDENTS ASSOCIATION,Neighbourhoods,2381.88,Tenants Expenses,2122P03_CR00490,89706
Sandwell Metropolitan Borough Council,http://www.sandwell.gov.uk/info/200202/performance_and_spending/1079/payments_over_500,01-Jun-2021,Housing & Communities,MKG (FOOD PRODUCTS) LIMITED,Neighbourhoods,2452.00,Catering Provisions,2122P03_CR00491,142083
Sandwell Metropolitan Borough Council,http://www.sandwell.gov.uk/info/200202/performance_and_spending/1079/payments_over_500,01-Jun-2021,Housing & Communities,CHUBB FIRE & SECURITY LIMITED t/a CHUBB ELECTRONIC SECURITY,Neighbourhoods,2567.49,Security,2122P03_CR00492,81343
Sandwell Metropolitan Borough Council,http://www.sandwell.gov.uk/info/200202/performance_and_spending/1079/payments_over_500,01-Jun-2021,Housing & Communities,TENNALS PEST CONTROL LTD,Neighbourhoods,2600.00,Pest Control,2122P03_CR00493,138145
Sandwell Metropolitan Borough Council,http://www.sandwell.gov.uk/info/200202/performance_and_spending/1079/payments_over_500,01-Jun-2021,Housing & Communities,XMA LTD,Neighbourhoods,2652.66,ICT ,2122P03_CR00494,01135462
Sandwell Metropolitan Borough Council,http://www.sandwell.gov.uk/info/200202/performance_and_spending/1079/payments_over_500,01-Jun-2021,Housing & Communities,PROFILE SECURITY SERVICES LTD,Neighbourhoods,2688.00,Security,2122P03_CR00495,131253
Sandwell Metropolitan Borough Council,http://www.sandwell.gov.uk/info/200202/performance_and_spending/1079/payments_over_500,18-Jun-2021,Housing & Communities,RIGBY TAYLOR LTD,Neighbourhoods,2707.08,Materials & Consumables,2122P03_CR00496,01076172
Sandwell Metropolitan Borough Council,http://www.sandwell.gov.uk/info/200202/performance_and_spending/1079/payments_over_500,01-Jun-2021,Housing & Communities,GILANI ENTERPRISES LIMITED,Neighbourhoods,2742.86,Rents,2122P03_CR00497,2696
Sandwell Metropolitan Borough Council,http://www.sandwell.gov.uk/info/200202/performance_and_spending/1079/payments_over_500,01-Jun-2021,Housing & Communities,ACCORD HOUSING ASSOCIATION LTD                                                    02,Neighbourhoods,2891.40,Externally Purchased Professional Services ,2122P03_CR00498,65002859
Sandwell Metropolitan Borough Council,http://www.sandwell.gov.uk/info/200202/performance_and_spending/1079/payments_over_500,01-Jun-2021,Housing & Communities,ACCORD HOUSING ASSOCIATION LTD                                                    02,Neighbourhoods,2891.40,Externally Purchased Professional Services ,2122P03_CR00499,65002859
Sandwell Metropolitan Borough Council,http://www.sandwell.gov.uk/info/200202/performance_and_spending/1079/payments_over_500,01-Jun-2021,Housing & Communities,ACCORD HOUSING ASSOCIATION LTD                                                    02,Neighbourhoods,2891.40,Externally Purchased Professional Services ,2122P03_CR00500,65002859
Sandwell Metropolitan Borough Council,http://www.sandwell.gov.uk/info/200202/performance_and_spending/1079/payments_over_500,01-Jun-2021,Housing & Communities,ACCORD HOUSING ASSOCIATION LTD                                                    02,Neighbourhoods,2891.40,Externally Purchased Professional Services ,2122P03_CR00501,65002859
Sandwell Metropolitan Borough Council,http://www.sandwell.gov.uk/info/200202/performance_and_spending/1079/payments_over_500,01-Jun-2021,Housing & Communities,ACCORD HOUSING ASSOCIATION LTD                                                    02,Neighbourhoods,2891.40,Externally Purchased Professional Services ,2122P03_CR00502,65002859
Sandwell Metropolitan Borough Council,http://www.sandwell.gov.uk/info/200202/performance_and_spending/1079/payments_over_500,01-Jun-2021,Housing & Communities,ALLSTAR BUSINESS SOLUTIONS LIMITED,Neighbourhoods,2931.08,Fuel ,2122P03_CR00503,104057
Sandwell Metropolitan Borough Council,http://www.sandwell.gov.uk/info/200202/performance_and_spending/1079/payments_over_500,01-Jun-2021,Housing & Communities,INTREPID SECURITY LTD,Neighbourhoods,2970.00,Security,2122P03_CR00504,91430
Sandwell Metropolitan Borough Council,http://www.sandwell.gov.uk/info/200202/performance_and_spending/1079/payments_over_500,01-Jun-2021,Housing & Communities,HOME FARM NURSERIES (PINVIN) LIMITED,Neighbourhoods,2996.78,Operational Services ,2122P03_CR00505,77003445
Sandwell Metropolitan Borough Council,http://www.sandwell.gov.uk/info/200202/performance_and_spending/1079/payments_over_500,17-Jun-2021,Housing & Communities,MKG (FOOD PRODUCTS) LIMITED,Neighbourhoods,3080.00,Catering Provisions,2122P03_CR00506,142083
Sandwell Metropolitan Borough Council,http://www.sandwell.gov.uk/info/200202/performance_and_spending/1079/payments_over_500,23-Jun-2021,Housing & Communities,ASKEWS AND HOLTS LIBRARY SERVICES LTD.,Neighbourhoods,3100.00,Materials & Consumables,2122P03_CR00507,111865
Sandwell Metropolitan Borough Council,http://www.sandwell.gov.uk/info/200202/performance_and_spending/1079/payments_over_500,01-Jun-2021,Housing & Communities,ADT FIRE & SECURITY PLC,Neighbourhoods,3398.82,Security,2122P03_CR00508,01115015
Sandwell Metropolitan Borough Council,http://www.sandwell.gov.uk/info/200202/performance_and_spending/1079/payments_over_500,17-Jun-2021,Housing & Communities,HILL TOP COMMUNITY DEVELOPMENT ASSOCIATION,Neighbourhoods,3500.00,Rents,2122P03_CR00509,97197
Sandwell Metropolitan Borough Council,http://www.sandwell.gov.uk/info/200202/performance_and_spending/1079/payments_over_500,22-Jun-2021,Housing & Communities,RCS PLANTS LTD,Neighbourhoods,3536.00,Materials & Consumables,2122P03_CR00510,130748
Sandwell Metropolitan Borough Council,http://www.sandwell.gov.uk/info/200202/performance_and_spending/1079/payments_over_500,15-Jun-2021,Housing & Communities,ALLSTAR BUSINESS SOLUTIONS LIMITED,Neighbourhoods,3859.67,Fuel ,2122P03_CR00511,104057
Sandwell Metropolitan Borough Council,http://www.sandwell.gov.uk/info/200202/performance_and_spending/1079/payments_over_500,03-Jun-2021,Housing & Communities,HOME FARM NURSERIES (PINVIN) LIMITED,Neighbourhoods,4195.79,Operational Services ,2122P03_CR00512,77003445
Sandwell Metropolitan Borough Council,http://www.sandwell.gov.uk/info/200202/performance_and_spending/1079/payments_over_500,01-Jun-2021,Housing & Communities,SHARP,Neighbourhoods,4402.44,Rents,2122P03_CR00513,08280972
Sandwell Metropolitan Borough Council,http://www.sandwell.gov.uk/info/200202/performance_and_spending/1079/payments_over_500,01-Jun-2021,Housing & Communities,SHARP,Neighbourhoods,4402.44,Rents,2122P03_CR00514,08280972
Sandwell Metropolitan Borough Council,http://www.sandwell.gov.uk/info/200202/performance_and_spending/1079/payments_over_500,01-Jun-2021,Housing & Communities,SHARP,Neighbourhoods,4402.44,Rents,2122P03_CR00515,08280972
Sandwell Metropolitan Borough Council,http://www.sandwell.gov.uk/info/200202/performance_and_spending/1079/payments_over_500,01-Jun-2021,Housing & Communities,HOME FARM NURSERIES (PINVIN) LIMITED,Neighbourhoods,4437.18,Operational Services ,2122P03_CR00516,77003445
Sandwell Metropolitan Borough Council,http://www.sandwell.gov.uk/info/200202/performance_and_spending/1079/payments_over_500,01-Jun-2021,Housing & Communities,ACCORD HOUSING ASSOCIATION LTD                                                    02,Neighbourhoods,4635.00,Externally Purchased Professional Services ,2122P03_CR00517,65002859
Sandwell Metropolitan Borough Council,http://www.sandwell.gov.uk/info/200202/performance_and_spending/1079/payments_over_500,01-Jun-2021,Housing & Communities,ACCORD HOUSING ASSOCIATION LTD                                                    02,Neighbourhoods,4635.00,Externally Purchased Professional Services ,2122P03_CR00518,65002859
Sandwell Metropolitan Borough Council,http://www.sandwell.gov.uk/info/200202/performance_and_spending/1079/payments_over_500,01-Jun-2021,Housing & Communities,ACCORD HOUSING ASSOCIATION LTD                                                    02,Neighbourhoods,4635.00,Externally Purchased Professional Services ,2122P03_CR00519,65002859
Sandwell Metropolitan Borough Council,http://www.sandwell.gov.uk/info/200202/performance_and_spending/1079/payments_over_500,01-Jun-2021,Housing & Communities,ACCORD HOUSING ASSOCIATION LTD                                                    02,Neighbourhoods,4635.00,Externally Purchased Professional Services ,2122P03_CR00520,65002859
Sandwell Metropolitan Borough Council,http://www.sandwell.gov.uk/info/200202/performance_and_spending/1079/payments_over_500,01-Jun-2021,Housing & Communities,ACCORD HOUSING ASSOCIATION LTD                                                    02,Neighbourhoods,4635.00,Externally Purchased Professional Services ,2122P03_CR00521,65002859
Sandwell Metropolitan Borough Council,http://www.sandwell.gov.uk/info/200202/performance_and_spending/1079/payments_over_500,01-Jun-2021,Housing & Communities,RIGBY TAYLOR LTD,Neighbourhoods,5400.00,Materials & Consumables,2122P03_CR00522,01076172
Sandwell Metropolitan Borough Council,http://www.sandwell.gov.uk/info/200202/performance_and_spending/1079/payments_over_500,01-Jun-2021,Housing & Communities,TOTAL GAS AND POWER LIMITED,Housing & Communities,5825.39,"CIP - New Construction,Conversion, Enhancement & Reno",2122P03_CR00523,107605
Sandwell Metropolitan Borough Council,http://www.sandwell.gov.uk/info/200202/performance_and_spending/1079/payments_over_500,01-Jun-2021,Housing & Communities,ROOK'S NEST MANAGEMENT CONSULTANCY,Neighbourhoods,6702.50,Externally Purchased Professional Services ,2122P03_CR00524,136735
Sandwell Metropolitan Borough Council,http://www.sandwell.gov.uk/info/200202/performance_and_spending/1079/payments_over_500,01-Jun-2021,Housing & Communities,INSIGHT MEDIA INTERNET LIMITED,Neighbourhoods,7585.70,ICT ,2122P03_CR00525,132525
Sandwell Metropolitan Borough Council,http://www.sandwell.gov.uk/info/200202/performance_and_spending/1079/payments_over_500,22-Jun-2021,Housing & Communities,RCS PLANTS LTD,Neighbourhoods,8941.60,Equipment & Furniture ,2122P03_CR00526,130748
Sandwell Metropolitan Borough Council,http://www.sandwell.gov.uk/info/200202/performance_and_spending/1079/payments_over_500,01-Jun-2021,Housing & Communities,MACE LTD,Neighbourhoods,9060.00,Consultancy,2122P03_CR00527,30882
Sandwell Metropolitan Borough Council,http://www.sandwell.gov.uk/info/200202/performance_and_spending/1079/payments_over_500,01-Jun-2021,Housing & Communities,S.C.V.O.,Neighbourhoods,9150.00,Grant Payments,2122P03_CR00528,109813
Sandwell Metropolitan Borough Council,http://www.sandwell.gov.uk/info/200202/performance_and_spending/1079/payments_over_500,17-Jun-2021,Housing & Communities,ST BASILS,Neighbourhoods,9483.75,Externally Purchased Professional Services ,2122P03_CR00529,33497
Sandwell Metropolitan Borough Council,http://www.sandwell.gov.uk/info/200202/performance_and_spending/1079/payments_over_500,17-Jun-2021,Housing & Communities,SANDWELL & WEST BIRMINGHAM HOSPITALS NHS TRUST,Neighbourhoods,10397.06,Waste Disposal Charges,2122P03_CR00530,1385
Sandwell Metropolitan Borough Council,http://www.sandwell.gov.uk/info/200202/performance_and_spending/1079/payments_over_500,01-Jun-2021,Housing & Communities,PINSENT MASON LLP,Neighbourhoods,11735.10,Externally Purchased Professional Services ,2122P03_CR00531,47648
Sandwell Metropolitan Borough Council,http://www.sandwell.gov.uk/info/200202/performance_and_spending/1079/payments_over_500,01-Jun-2021,Housing & Communities,CERTAS ENERGY LIMITED,Neighbourhoods,12028.60,Fuel ,2122P03_CR00532,80421
Sandwell Metropolitan Borough Council,http://www.sandwell.gov.uk/info/200202/performance_and_spending/1079/payments_over_500,11-Jun-2021,Housing & Communities,CERTAS ENERGY LIMITED,Neighbourhoods,12222.75,Fuel ,2122P03_CR00533,80421
Sandwell Metropolitan Borough Council,http://www.sandwell.gov.uk/info/200202/performance_and_spending/1079/payments_over_500,18-Jun-2021,Housing & Communities,R W SERVICES CONTRACTORS LIMITED,Neighbourhoods,13683.61,Operational Services ,2122P03_CR00534,68320
Sandwell Metropolitan Borough Council,http://www.sandwell.gov.uk/info/200202/performance_and_spending/1079/payments_over_500,17-Jun-2021,Housing & Communities,BDW TRADING,Neighbourhoods,16168.48,Externally Purchased Professional Services ,2122P03_CR00535,152478
Sandwell Metropolitan Borough Council,http://www.sandwell.gov.uk/info/200202/performance_and_spending/1079/payments_over_500,01-Jun-2021,Housing & Communities,R W SERVICES CONTRACTORS LIMITED,Neighbourhoods,26467.56,Operational Services ,2122P03_CR00536,68320
Sandwell Metropolitan Borough Council,http://www.sandwell.gov.uk/info/200202/performance_and_spending/1079/payments_over_500,17-Jun-2021,Housing & Communities,SANDWELL LIFT PROJECT COMPANY (NO 3) LIMITED,Neighbourhoods,111833.08,SH Payments,2122P03_CR00537,113986
Sandwell Metropolitan Borough Council,http://www.sandwell.gov.uk/info/200202/performance_and_spending/1079/payments_over_500,15-Jun-2021,Housing & Communities,P CASEY LTD,Housing & Communities,132414.30,"CIP - New Construction,Conversion, Enhancement & Reno",2122P03_CR00538,149276
Sandwell Metropolitan Borough Council,http://www.sandwell.gov.uk/info/200202/performance_and_spending/1079/payments_over_500,10-Jun-2021,Housing & Communities,INTERCLASS PLC,Housing & Communities,246495.30,"CIP - New Construction,Conversion, Enhancement & Reno",2122P03_CR00539,77001959
Sandwell Metropolitan Borough Council,http://www.sandwell.gov.uk/info/200202/performance_and_spending/1079/payments_over_500,01-Jun-2021,Housing & Communities,STAFFORDSHIRE COUNTY COUNCIL,Neighbourhoods,386789.36,Waste Disposal Charges,2122P03_CR00540,01124861
Sandwell Metropolitan Borough Council,http://www.sandwell.gov.uk/info/200202/performance_and_spending/1079/payments_over_500,01-Jun-2021,Housing & Communities,WATES CONSTRUCTION LTD                                 01,Housing & Communities,1488494.72,"CIP - New Construction,Conversion, Enhancement & Reno",2122P03_CR00541,77000882
Sandwell Metropolitan Borough Council,http://www.sandwell.gov.uk/info/200202/performance_and_spending/1079/payments_over_500,03-Jun-2021,Housing & Communities,SERCO LIMITED,Neighbourhoods,1568876.94,Waste Disposal Charges,2122P03_CR00542,53771
Sandwell Metropolitan Borough Council,http://www.sandwell.gov.uk/info/200202/performance_and_spending/1079/payments_over_500,22-Jun-2021,Housing & Communities,WATES CONSTRUCTION LTD                                 01,Housing & Communities,1920177.92,"CIP - New Construction,Conversion, Enhancement & Reno",2122P03_CR00543,77000882
Sandwell Metropolitan Borough Council,http://www.sandwell.gov.uk/info/200202/performance_and_spending/1079/payments_over_500,30-Jun-2021,Housing & Communities,WATES CONSTRUCTION LTD                                 01,Housing & Communities,2113985.76,"CIP - New Construction,Conversion, Enhancement & Reno",2122P03_CR00544,77000882
Sandwell Metropolitan Borough Council,http://www.sandwell.gov.uk/info/200202/performance_and_spending/1079/payments_over_500,28-Jun-2021,Housing & Communities,REDACTED PERSONAL DATA,Neighbourhoods,500.00,Rents,2122P03_CR00545,REDACTED PERSONAL DATA
Sandwell Metropolitan Borough Council,http://www.sandwell.gov.uk/info/200202/performance_and_spending/1079/payments_over_500,28-Jun-2021,Housing & Communities,REDACTED PERSONAL DATA,Neighbourhoods,500.00,Rents,2122P03_CR00546,REDACTED PERSONAL DATA
Sandwell Metropolitan Borough Council,http://www.sandwell.gov.uk/info/200202/performance_and_spending/1079/payments_over_500,28-Jun-2021,Housing & Communities,REDACTED PERSONAL DATA,Neighbourhoods,500.00,Rents,2122P03_CR00547,REDACTED PERSONAL DATA
Sandwell Metropolitan Borough Council,http://www.sandwell.gov.uk/info/200202/performance_and_spending/1079/payments_over_500,28-Jun-2021,Housing & Communities,REDACTED PERSONAL DATA,Neighbourhoods,500.00,Rents,2122P03_CR00548,REDACTED PERSONAL DATA
Sandwell Metropolitan Borough Council,http://www.sandwell.gov.uk/info/200202/performance_and_spending/1079/payments_over_500,28-Jun-2021,Housing & Communities,REDACTED PERSONAL DATA,Neighbourhoods,500.00,Rents,2122P03_CR00549,REDACTED PERSONAL DATA
Sandwell Metropolitan Borough Council,http://www.sandwell.gov.uk/info/200202/performance_and_spending/1079/payments_over_500,28-Jun-2021,Housing & Communities,REDACTED PERSONAL DATA,Neighbourhoods,500.00,Rents,2122P03_CR00550,REDACTED PERSONAL DATA
Sandwell Metropolitan Borough Council,http://www.sandwell.gov.uk/info/200202/performance_and_spending/1079/payments_over_500,28-Jun-2021,Housing & Communities,REDACTED PERSONAL DATA,Neighbourhoods,500.00,Rents,2122P03_CR00551,REDACTED PERSONAL DATA
Sandwell Metropolitan Borough Council,http://www.sandwell.gov.uk/info/200202/performance_and_spending/1079/payments_over_500,28-Jun-2021,Housing & Communities,REDACTED PERSONAL DATA,Neighbourhoods,500.00,Rents,2122P03_CR00552,REDACTED PERSONAL DATA
Sandwell Metropolitan Borough Council,http://www.sandwell.gov.uk/info/200202/performance_and_spending/1079/payments_over_500,28-Jun-2021,Housing & Communities,REDACTED PERSONAL DATA,Neighbourhoods,500.00,Rents,2122P03_CR00553,REDACTED PERSONAL DATA
Sandwell Metropolitan Borough Council,http://www.sandwell.gov.uk/info/200202/performance_and_spending/1079/payments_over_500,28-Jun-2021,Housing & Communities,REDACTED PERSONAL DATA,Neighbourhoods,500.00,Rents,2122P03_CR00554,REDACTED PERSONAL DATA
Sandwell Metropolitan Borough Council,http://www.sandwell.gov.uk/info/200202/performance_and_spending/1079/payments_over_500,28-Jun-2021,Housing & Communities,REDACTED PERSONAL DATA,Neighbourhoods,500.00,Rents,2122P03_CR00555,REDACTED PERSONAL DATA
Sandwell Metropolitan Borough Council,http://www.sandwell.gov.uk/info/200202/performance_and_spending/1079/payments_over_500,28-Jun-2021,Housing & Communities,REDACTED PERSONAL DATA,Neighbourhoods,550.00,Rents,2122P03_CR00556,REDACTED PERSONAL DATA
Sandwell Metropolitan Borough Council,http://www.sandwell.gov.uk/info/200202/performance_and_spending/1079/payments_over_500,28-Jun-2021,Housing & Communities,REDACTED PERSONAL DATA,Neighbourhoods,550.00,Rents,2122P03_CR00557,REDACTED PERSONAL DATA
Sandwell Metropolitan Borough Council,http://www.sandwell.gov.uk/info/200202/performance_and_spending/1079/payments_over_500,28-Jun-2021,Housing & Communities,REDACTED PERSONAL DATA,Neighbourhoods,550.00,Rents,2122P03_CR00558,REDACTED PERSONAL DATA
Sandwell Metropolitan Borough Council,http://www.sandwell.gov.uk/info/200202/performance_and_spending/1079/payments_over_500,28-Jun-2021,Housing & Communities,REDACTED PERSONAL DATA,Neighbourhoods,550.00,Rents,2122P03_CR00559,REDACTED PERSONAL DATA
Sandwell Metropolitan Borough Council,http://www.sandwell.gov.uk/info/200202/performance_and_spending/1079/payments_over_500,28-Jun-2021,Housing & Communities,REDACTED PERSONAL DATA,Neighbourhoods,550.00,Rents,2122P03_CR00560,REDACTED PERSONAL DATA
Sandwell Metropolitan Borough Council,http://www.sandwell.gov.uk/info/200202/performance_and_spending/1079/payments_over_500,28-Jun-2021,Housing & Communities,REDACTED PERSONAL DATA,Neighbourhoods,1000.00,Rents,2122P03_CR00561,REDACTED PERSONAL DATA
Sandwell Metropolitan Borough Council,http://www.sandwell.gov.uk/info/200202/performance_and_spending/1079/payments_over_500,01-Jun-2021,Housing & Communities,S.C.V.O.,Neighbourhoods,5000.00,Grant Payments,2122P03_CR00562,109813
Sandwell Metropolitan Borough Council,http://www.sandwell.gov.uk/info/200202/performance_and_spending/1079/payments_over_500,01-Jun-2021,Housing Revenue Account Capital,LIFT & ENGINEERING SERVICES LTD,Housing Revenue Account Capital,562.88,"CIP - New Construction,Conversion, Enhancement & Reno",2122P03_CR00563,77003962
Sandwell Metropolitan Borough Council,http://www.sandwell.gov.uk/info/200202/performance_and_spending/1079/payments_over_500,01-Jun-2021,Housing Revenue Account Capital,TOTAL GAS AND POWER LIMITED,Housing Revenue Account Capital,620.98,"CIP - New Construction,Conversion, Enhancement & Reno",2122P03_CR00564,107605
Sandwell Metropolitan Borough Council,http://www.sandwell.gov.uk/info/200202/performance_and_spending/1079/payments_over_500,01-Jun-2021,Housing Revenue Account Capital,SELECT WINDOWS (HOME IMPROVEMENTS) LIMITED,Housing Revenue Account Capital,628.25,Contract Payments,2122P03_CR00565,42616
Sandwell Metropolitan Borough Council,http://www.sandwell.gov.uk/info/200202/performance_and_spending/1079/payments_over_500,07-Jun-2021,Housing Revenue Account Capital,LIFT & ENGINEERING SERVICES LTD,Housing Revenue Account Capital,651.76,"CIP - New Construction,Conversion, Enhancement & Reno",2122P03_CR00566,77003962
Sandwell Metropolitan Borough Council,http://www.sandwell.gov.uk/info/200202/performance_and_spending/1079/payments_over_500,01-Jun-2021,Housing Revenue Account Capital,SELECT WINDOWS (HOME IMPROVEMENTS) LIMITED,Housing Revenue Account Capital,675.00,Contract Payments,2122P03_CR00567,42616
Sandwell Metropolitan Borough Council,http://www.sandwell.gov.uk/info/200202/performance_and_spending/1079/payments_over_500,01-Jun-2021,Housing Revenue Account Capital,NICHOLLS COLTON & PARTNERS LTD,Housing Revenue Account Capital,765.00,"CIP - New Construction,Conversion, Enhancement & Reno",2122P03_CR00568,3215
Sandwell Metropolitan Borough Council,http://www.sandwell.gov.uk/info/200202/performance_and_spending/1079/payments_over_500,01-Jun-2021,Housing Revenue Account Capital,RIDGE & PARTNERS LLP,Housing Revenue Account Capital,860.00,Deferred Charges/Grant Payments,2122P03_CR00569,134994
Sandwell Metropolitan Borough Council,http://www.sandwell.gov.uk/info/200202/performance_and_spending/1079/payments_over_500,16-Jun-2021,Housing Revenue Account Capital,WESSEX LIFT CO LTD,Housing Revenue Account Capital,972.00,Building Maintenance & Improvements,2122P03_CR00570,01095737
Sandwell Metropolitan Borough Council,http://www.sandwell.gov.uk/info/200202/performance_and_spending/1079/payments_over_500,01-Jun-2021,Housing Revenue Account Capital,DOLPHIN LIFTS MIDLANDS LTD,Housing Revenue Account Capital,1221.60,Deferred Charges/Grant Payments,2122P03_CR00571,123852
Sandwell Metropolitan Borough Council,http://www.sandwell.gov.uk/info/200202/performance_and_spending/1079/payments_over_500,01-Jun-2021,Housing Revenue Account Capital,SELECT WINDOWS (HOME IMPROVEMENTS) LIMITED,Housing Revenue Account Capital,1469.25,Contract Payments,2122P03_CR00572,42616
Sandwell Metropolitan Borough Council,http://www.sandwell.gov.uk/info/200202/performance_and_spending/1079/payments_over_500,23-Jun-2021,Housing Revenue Account Capital,PR PROPERTY MAINTENANCE,Housing Revenue Account Capital,2613.45,Deferred Charges/Grant Payments,2122P03_CR00573,33836
Sandwell Metropolitan Borough Council,http://www.sandwell.gov.uk/info/200202/performance_and_spending/1079/payments_over_500,01-Jun-2021,Housing Revenue Account Capital,POWRED HEATING COMPONENTS LIMITED,Housing Revenue Account Capital,2814.73,Materials & Consumables,2122P03_CR00574,133978
Sandwell Metropolitan Borough Council,http://www.sandwell.gov.uk/info/200202/performance_and_spending/1079/payments_over_500,05-Jun-2021,Housing Revenue Account Capital,POWRED HEATING COMPONENTS LIMITED,Housing Revenue Account Capital,3114.08,Materials & Consumables,2122P03_CR00575,133978
Sandwell Metropolitan Borough Council,http://www.sandwell.gov.uk/info/200202/performance_and_spending/1079/payments_over_500,23-Jun-2021,Housing Revenue Account Capital,PR PROPERTY MAINTENANCE,Housing Revenue Account Capital,4216.89,Deferred Charges/Grant Payments,2122P03_CR00576,33836
Sandwell Metropolitan Borough Council,http://www.sandwell.gov.uk/info/200202/performance_and_spending/1079/payments_over_500,01-Jun-2021,Housing Revenue Account Capital,NICHOLLS COLTON & PARTNERS LTD,Housing Revenue Account Capital,5384.00,"CIP - New Construction,Conversion, Enhancement & Reno",2122P03_CR00577,3215
Sandwell Metropolitan Borough Council,http://www.sandwell.gov.uk/info/200202/performance_and_spending/1079/payments_over_500,01-Jun-2021,Housing Revenue Account Capital,HIGGS & SONS SOLICITORS,Housing Revenue Account Capital,5910.00,CIP - Acquisition of Land & Existing Buildings,2122P03_CR00578,120965
Sandwell Metropolitan Borough Council,http://www.sandwell.gov.uk/info/200202/performance_and_spending/1079/payments_over_500,01-Jun-2021,Housing Revenue Account Capital,WESSEX LIFT CO LTD,Housing Revenue Account Capital,6280.00,Building Maintenance & Improvements,2122P03_CR00579,01095737
Sandwell Metropolitan Borough Council,http://www.sandwell.gov.uk/info/200202/performance_and_spending/1079/payments_over_500,01-Jun-2021,Housing Revenue Account Capital,POWRED HEATING COMPONENTS LIMITED,Housing Revenue Account Capital,6644.67,Materials & Consumables,2122P03_CR00580,133978
Sandwell Metropolitan Borough Council,http://www.sandwell.gov.uk/info/200202/performance_and_spending/1079/payments_over_500,01-Jun-2021,Housing Revenue Account Capital,PR PROPERTY MAINTENANCE,Housing Revenue Account Capital,6671.62,Deferred Charges/Grant Payments,2122P03_CR00581,33836
Sandwell Metropolitan Borough Council,http://www.sandwell.gov.uk/info/200202/performance_and_spending/1079/payments_over_500,08-Jun-2021,Housing Revenue Account Capital,MILTON KEYNES SURVEYS LIMITED,Housing Revenue Account Capital,7225.00,"CIP - New Construction,Conversion, Enhancement & Reno",2122P03_CR00582,104892
Sandwell Metropolitan Borough Council,http://www.sandwell.gov.uk/info/200202/performance_and_spending/1079/payments_over_500,01-Jun-2021,Housing Revenue Account Capital,PR PROPERTY MAINTENANCE,Housing Revenue Account Capital,7980.40,Deferred Charges/Grant Payments,2122P03_CR00583,33836
Sandwell Metropolitan Borough Council,http://www.sandwell.gov.uk/info/200202/performance_and_spending/1079/payments_over_500,01-Jun-2021,Housing Revenue Account Capital,PR PROPERTY MAINTENANCE,Housing Revenue Account Capital,9480.27,Deferred Charges/Grant Payments,2122P03_CR00584,33836
Sandwell Metropolitan Borough Council,http://www.sandwell.gov.uk/info/200202/performance_and_spending/1079/payments_over_500,23-Jun-2021,Housing Revenue Account Capital,PR PROPERTY MAINTENANCE,Housing Revenue Account Capital,15030.52,Deferred Charges/Grant Payments,2122P03_CR00585,33836
Sandwell Metropolitan Borough Council,http://www.sandwell.gov.uk/info/200202/performance_and_spending/1079/payments_over_500,03-Jun-2021,Housing Revenue Account Capital,LOVELL PARTNERSHIPS  LTD,Housing Revenue Account Capital,18706.25,"CIP - New Construction,Conversion, Enhancement & Reno",2122P03_CR00586,77007398
Sandwell Metropolitan Borough Council,http://www.sandwell.gov.uk/info/200202/performance_and_spending/1079/payments_over_500,01-Jun-2021,Housing Revenue Account Capital,RMF LANDSCAPING LTD,Housing Revenue Account Capital,23687.04,"CIP - New Construction,Conversion, Enhancement & Reno",2122P03_CR00587,77008956
Sandwell Metropolitan Borough Council,http://www.sandwell.gov.uk/info/200202/performance_and_spending/1079/payments_over_500,03-Jun-2021,Housing Revenue Account Capital,PR PROPERTY MAINTENANCE,Housing Revenue Account Capital,36638.81,Deferred Charges/Grant Payments,2122P03_CR00588,33836
Sandwell Metropolitan Borough Council,http://www.sandwell.gov.uk/info/200202/performance_and_spending/1079/payments_over_500,03-Jun-2021,Housing Revenue Account Capital,LOVELL PARTNERSHIPS  LTD,Housing Revenue Account Capital,38179.31,"CIP - New Construction,Conversion, Enhancement & Reno",2122P03_CR00589,77007398
Sandwell Metropolitan Borough Council,http://www.sandwell.gov.uk/info/200202/performance_and_spending/1079/payments_over_500,23-Jun-2021,Housing Revenue Account Capital,PR PROPERTY MAINTENANCE,Housing Revenue Account Capital,39169.90,Deferred Charges/Grant Payments,2122P03_CR00590,33836
Sandwell Metropolitan Borough Council,http://www.sandwell.gov.uk/info/200202/performance_and_spending/1079/payments_over_500,01-Jun-2021,Housing Revenue Account Capital,ROWELEC LIMITED,Housing Revenue Account Capital,51188.09,"CIP - New Construction,Conversion, Enhancement & Reno",2122P03_CR00591,116267
Sandwell Metropolitan Borough Council,http://www.sandwell.gov.uk/info/200202/performance_and_spending/1079/payments_over_500,01-Jun-2021,Housing Revenue Account Capital,VINCI CONSTRUCTION LTD,Housing Revenue Account Capital,56923.62,"CIP - New Construction,Conversion, Enhancement & Reno",2122P03_CR00592,36361
Sandwell Metropolitan Borough Council,http://www.sandwell.gov.uk/info/200202/performance_and_spending/1079/payments_over_500,01-Jun-2021,Housing Revenue Account Capital,LOVELL PARTNERSHIPS  LTD,Housing Revenue Account Capital,78421.02,"CIP - New Construction,Conversion, Enhancement & Reno",2122P03_CR00593,77007398
Sandwell Metropolitan Borough Council,http://www.sandwell.gov.uk/info/200202/performance_and_spending/1079/payments_over_500,01-Jun-2021,Housing Revenue Account Capital,LOVELL PARTNERSHIPS  LTD,Housing Revenue Account Capital,83421.59,"CIP - New Construction,Conversion, Enhancement & Reno",2122P03_CR00594,77007398
Sandwell Metropolitan Borough Council,http://www.sandwell.gov.uk/info/200202/performance_and_spending/1079/payments_over_500,04-Jun-2021,Housing Revenue Account Capital,LOVELL PARTNERSHIPS  LTD,Housing Revenue Account Capital,91606.89,"CIP - New Construction,Conversion, Enhancement & Reno",2122P03_CR00595,77007398
Sandwell Metropolitan Borough Council,http://www.sandwell.gov.uk/info/200202/performance_and_spending/1079/payments_over_500,07-Jun-2021,Housing Revenue Account Capital,VINCI CONSTRUCTION LTD,Housing Revenue Account Capital,96624.93,"CIP - New Construction,Conversion, Enhancement & Reno",2122P03_CR00596,36361
Sandwell Metropolitan Borough Council,http://www.sandwell.gov.uk/info/200202/performance_and_spending/1079/payments_over_500,23-Jun-2021,Housing Revenue Account Capital,HIGGS & SONS SOLICITORS,Housing Revenue Account Capital,106543.00,CIP - Acquisition of Land & Existing Buildings,2122P03_CR00597,120965
Sandwell Metropolitan Borough Council,http://www.sandwell.gov.uk/info/200202/performance_and_spending/1079/payments_over_500,21-Jun-2021,Housing Revenue Account Capital,HIGGS & SONS SOLICITORS,Housing Revenue Account Capital,134868.00,CIP - Acquisition of Land & Existing Buildings,2122P03_CR00598,120965
Sandwell Metropolitan Borough Council,http://www.sandwell.gov.uk/info/200202/performance_and_spending/1079/payments_over_500,01-Jun-2021,Housing Revenue Account Capital,HIGGS & SONS SOLICITORS,Housing Revenue Account Capital,140018.00,CIP - Acquisition of Land & Existing Buildings,2122P03_CR00599,120965
Sandwell Metropolitan Borough Council,http://www.sandwell.gov.uk/info/200202/performance_and_spending/1079/payments_over_500,24-Jun-2021,Housing Revenue Account Capital,HIGGS & SONS SOLICITORS,Housing Revenue Account Capital,150318.00,CIP - Acquisition of Land & Existing Buildings,2122P03_CR00600,120965
Sandwell Metropolitan Borough Council,http://www.sandwell.gov.uk/info/200202/performance_and_spending/1079/payments_over_500,09-Jun-2021,Housing Revenue Account Capital,HIGGS & SONS SOLICITORS,Housing Revenue Account Capital,152893.00,CIP - Acquisition of Land & Existing Buildings,2122P03_CR00601,120965
Sandwell Metropolitan Borough Council,http://www.sandwell.gov.uk/info/200202/performance_and_spending/1079/payments_over_500,01-Jun-2021,Housing Revenue Account Capital,HIGGS & SONS SOLICITORS,Housing Revenue Account Capital,153408.00,CIP - Acquisition of Land & Existing Buildings,2122P03_CR00602,120965
Sandwell Metropolitan Borough Council,http://www.sandwell.gov.uk/info/200202/performance_and_spending/1079/payments_over_500,24-Jun-2021,Housing Revenue Account Capital,HIGGS & SONS SOLICITORS,Housing Revenue Account Capital,155468.00,CIP - Acquisition of Land & Existing Buildings,2122P03_CR00603,120965
Sandwell Metropolitan Borough Council,http://www.sandwell.gov.uk/info/200202/performance_and_spending/1079/payments_over_500,28-Jun-2021,Housing Revenue Account Capital,SEDDON CONSTRUCTION LIMITED,Housing Revenue Account Capital,155711.28,"CIP - New Construction,Conversion, Enhancement & Reno",2122P03_CR00604,132999
Sandwell Metropolitan Borough Council,http://www.sandwell.gov.uk/info/200202/performance_and_spending/1079/payments_over_500,01-Jun-2021,Housing Revenue Account Capital,HIGGS & SONS SOLICITORS,Housing Revenue Account Capital,162769.20,CIP - Acquisition of Land & Existing Buildings,2122P03_CR00605,120965
Sandwell Metropolitan Borough Council,http://www.sandwell.gov.uk/info/200202/performance_and_spending/1079/payments_over_500,14-Jun-2021,Housing Revenue Account Capital,HIGGS & SONS SOLICITORS,Housing Revenue Account Capital,164738.00,CIP - Acquisition of Land & Existing Buildings,2122P03_CR00606,120965
Sandwell Metropolitan Borough Council,http://www.sandwell.gov.uk/info/200202/performance_and_spending/1079/payments_over_500,01-Jun-2021,Housing Revenue Account Capital,HIGGS & SONS SOLICITORS,Housing Revenue Account Capital,168949.20,CIP - Acquisition of Land & Existing Buildings,2122P03_CR00607,120965
Sandwell Metropolitan Borough Council,http://www.sandwell.gov.uk/info/200202/performance_and_spending/1079/payments_over_500,07-Jun-2021,Housing Revenue Account Capital,HIGGS & SONS SOLICITORS,Housing Revenue Account Capital,186459.20,CIP - Acquisition of Land & Existing Buildings,2122P03_CR00608,120965
Sandwell Metropolitan Borough Council,http://www.sandwell.gov.uk/info/200202/performance_and_spending/1079/payments_over_500,07-Jun-2021,Housing Revenue Account Capital,HIGGS & SONS SOLICITORS,Housing Revenue Account Capital,196759.20,CIP - Acquisition of Land & Existing Buildings,2122P03_CR00609,120965
Sandwell Metropolitan Borough Council,http://www.sandwell.gov.uk/info/200202/performance_and_spending/1079/payments_over_500,14-Jun-2021,Housing Revenue Account Capital,HIGGS & SONS SOLICITORS,Housing Revenue Account Capital,198062.20,CIP - Acquisition of Land & Existing Buildings,2122P03_CR00610,120965
Sandwell Metropolitan Borough Council,http://www.sandwell.gov.uk/info/200202/performance_and_spending/1079/payments_over_500,02-Jun-2021,Housing Revenue Account Capital,SURE MAINTENANCE LIMITED,Housing Revenue Account Capital,269657.35,"CIP - New Construction,Conversion, Enhancement & Reno",2122P03_CR00611,93926
Sandwell Metropolitan Borough Council,http://www.sandwell.gov.uk/info/200202/performance_and_spending/1079/payments_over_500,01-Jun-2021,Housing Revenue Account Capital,LOVELL PARTNERSHIPS  LTD,Housing Revenue Account Capital,327882.10,"CIP - New Construction,Conversion, Enhancement & Reno",2122P03_CR00612,77007398
Sandwell Metropolitan Borough Council,http://www.sandwell.gov.uk/info/200202/performance_and_spending/1079/payments_over_500,15-Jun-2021,Housing Revenue Account Capital,SEDDON CONSTRUCTION LIMITED,Housing Revenue Account Capital,357043.64,"CIP - New Construction,Conversion, Enhancement & Reno",2122P03_CR00613,132999
Sandwell Metropolitan Borough Council,http://www.sandwell.gov.uk/info/200202/performance_and_spending/1079/payments_over_500,01-Jun-2021,Housing Revenue Account Capital,SPELLER METCALFE MALVERN LIMITED,Housing Revenue Account Capital,663824.92,"CIP - New Construction,Conversion, Enhancement & Reno",2122P03_CR00614,92473
Sandwell Metropolitan Borough Council,http://www.sandwell.gov.uk/info/200202/performance_and_spending/1079/payments_over_500,01-Jun-2021,Housing Revenue Account Capital,VINCI CONSTRUCTION LTD,Housing Revenue Account Capital,812350.48,"CIP - New Construction,Conversion, Enhancement & Reno",2122P03_CR00615,36361
Sandwell Metropolitan Borough Council,http://www.sandwell.gov.uk/info/200202/performance_and_spending/1079/payments_over_500,01-Jun-2021,Housing Revenue Account Capital,AXIS DESIGN ARCHITECTS LTD,Housing Revenue Account Capital,3758.51,Deferred Charges/Grant Payments,2122P03_CR00616,151579
Sandwell Metropolitan Borough Council,http://www.sandwell.gov.uk/info/200202/performance_and_spending/1079/payments_over_500,22-Jun-2021,Individual School Budgets With Inclusion,JOYFUL CHILDRENS NURSERY,Individual School Budgets With Inclusion,548.10,Grant Payments,2122P03_CR00617,150961
Sandwell Metropolitan Borough Council,http://www.sandwell.gov.uk/info/200202/performance_and_spending/1079/payments_over_500,22-Jun-2021,Individual School Budgets With Inclusion,REDACTED PERSONAL DATA,Individual School Budgets With Inclusion,562.44,Grant Payments,2122P03_CR00618,REDACTED PERSONAL DATA
Sandwell Metropolitan Borough Council,http://www.sandwell.gov.uk/info/200202/performance_and_spending/1079/payments_over_500,22-Jun-2021,Individual School Budgets With Inclusion,REDACTED PERSONAL DATA,Individual School Budgets With Inclusion,588.60,Grant Payments,2122P03_CR00619,REDACTED PERSONAL DATA
Sandwell Metropolitan Borough Council,http://www.sandwell.gov.uk/info/200202/performance_and_spending/1079/payments_over_500,22-Jun-2021,Individual School Budgets With Inclusion,REDACTED PERSONAL DATA,Individual School Budgets With Inclusion,588.60,Grant Payments,2122P03_CR00620,REDACTED PERSONAL DATA
Sandwell Metropolitan Borough Council,http://www.sandwell.gov.uk/info/200202/performance_and_spending/1079/payments_over_500,22-Jun-2021,Individual School Budgets With Inclusion,REDACTED PERSONAL DATA,Individual School Budgets With Inclusion,588.60,Grant Payments,2122P03_CR00621,REDACTED PERSONAL DATA
Sandwell Metropolitan Borough Council,http://www.sandwell.gov.uk/info/200202/performance_and_spending/1079/payments_over_500,22-Jun-2021,Individual School Budgets With Inclusion,MAC-E-MOOZ DAYCARE LTD,Individual School Budgets With Inclusion,615.60,Grant Payments,2122P03_CR00622,112058
Sandwell Metropolitan Borough Council,http://www.sandwell.gov.uk/info/200202/performance_and_spending/1079/payments_over_500,22-Jun-2021,Individual School Budgets With Inclusion,REDACTED PERSONAL DATA,Individual School Budgets With Inclusion,622.35,Grant Payments,2122P03_CR00623,REDACTED PERSONAL DATA
Sandwell Metropolitan Borough Council,http://www.sandwell.gov.uk/info/200202/performance_and_spending/1079/payments_over_500,22-Jun-2021,Individual School Budgets With Inclusion,REDACTED PERSONAL DATA,Individual School Budgets With Inclusion,622.35,Grant Payments,2122P03_CR00624,REDACTED PERSONAL DATA
Sandwell Metropolitan Borough Council,http://www.sandwell.gov.uk/info/200202/performance_and_spending/1079/payments_over_500,22-Jun-2021,Individual School Budgets With Inclusion,REDACTED PERSONAL DATA,Individual School Budgets With Inclusion,714.42,Grant Payments,2122P03_CR00625,REDACTED PERSONAL DATA
Sandwell Metropolitan Borough Council,http://www.sandwell.gov.uk/info/200202/performance_and_spending/1079/payments_over_500,22-Jun-2021,Individual School Budgets With Inclusion,REDACTED PERSONAL DATA,Individual School Budgets With Inclusion,784.80,Grant Payments,2122P03_CR00626,REDACTED PERSONAL DATA
Sandwell Metropolitan Borough Council,http://www.sandwell.gov.uk/info/200202/performance_and_spending/1079/payments_over_500,22-Jun-2021,Individual School Budgets With Inclusion,REDACTED PERSONAL DATA,Individual School Budgets With Inclusion,784.80,Grant Payments,2122P03_CR00627,REDACTED PERSONAL DATA
Sandwell Metropolitan Borough Council,http://www.sandwell.gov.uk/info/200202/performance_and_spending/1079/payments_over_500,22-Jun-2021,Individual School Budgets With Inclusion,REDACTED PERSONAL DATA,Individual School Budgets With Inclusion,784.80,Grant Payments,2122P03_CR00628,REDACTED PERSONAL DATA
Sandwell Metropolitan Borough Council,http://www.sandwell.gov.uk/info/200202/performance_and_spending/1079/payments_over_500,22-Jun-2021,Individual School Budgets With Inclusion,REDACTED PERSONAL DATA,Individual School Budgets With Inclusion,784.80,Grant Payments,2122P03_CR00629,REDACTED PERSONAL DATA
Sandwell Metropolitan Borough Council,http://www.sandwell.gov.uk/info/200202/performance_and_spending/1079/payments_over_500,22-Jun-2021,Individual School Budgets With Inclusion,REDACTED PERSONAL DATA,Individual School Budgets With Inclusion,784.80,Grant Payments,2122P03_CR00630,REDACTED PERSONAL DATA
Sandwell Metropolitan Borough Council,http://www.sandwell.gov.uk/info/200202/performance_and_spending/1079/payments_over_500,22-Jun-2021,Individual School Budgets With Inclusion,REDACTED PERSONAL DATA,Individual School Budgets With Inclusion,784.80,Grant Payments,2122P03_CR00631,REDACTED PERSONAL DATA
Sandwell Metropolitan Borough Council,http://www.sandwell.gov.uk/info/200202/performance_and_spending/1079/payments_over_500,22-Jun-2021,Individual School Budgets With Inclusion,REDACTED PERSONAL DATA,Individual School Budgets With Inclusion,784.80,Grant Payments,2122P03_CR00632,REDACTED PERSONAL DATA
Sandwell Metropolitan Borough Council,http://www.sandwell.gov.uk/info/200202/performance_and_spending/1079/payments_over_500,22-Jun-2021,Individual School Budgets With Inclusion,REDACTED PERSONAL DATA,Individual School Budgets With Inclusion,802.80,Grant Payments,2122P03_CR00633,REDACTED PERSONAL DATA
Sandwell Metropolitan Borough Council,http://www.sandwell.gov.uk/info/200202/performance_and_spending/1079/payments_over_500,22-Jun-2021,Individual School Budgets With Inclusion,REDACTED PERSONAL DATA,Individual School Budgets With Inclusion,829.80,Grant Payments,2122P03_CR00634,REDACTED PERSONAL DATA
Sandwell Metropolitan Borough Council,http://www.sandwell.gov.uk/info/200202/performance_and_spending/1079/payments_over_500,22-Jun-2021,Individual School Budgets With Inclusion,REDACTED PERSONAL DATA,Individual School Budgets With Inclusion,855.44,Grant Payments,2122P03_CR00635,REDACTED PERSONAL DATA
Sandwell Metropolitan Borough Council,http://www.sandwell.gov.uk/info/200202/performance_and_spending/1079/payments_over_500,22-Jun-2021,Individual School Budgets With Inclusion,REDACTED PERSONAL DATA,Individual School Budgets With Inclusion,941.76,Grant Payments,2122P03_CR00636,REDACTED PERSONAL DATA
Sandwell Metropolitan Borough Council,http://www.sandwell.gov.uk/info/200202/performance_and_spending/1079/payments_over_500,22-Jun-2021,Individual School Budgets With Inclusion,REDACTED PERSONAL DATA,Individual School Budgets With Inclusion,972.41,Grant Payments,2122P03_CR00637,REDACTED PERSONAL DATA
Sandwell Metropolitan Borough Council,http://www.sandwell.gov.uk/info/200202/performance_and_spending/1079/payments_over_500,22-Jun-2021,Individual School Budgets With Inclusion,REDACTED PERSONAL DATA,Individual School Budgets With Inclusion,981.00,Grant Payments,2122P03_CR00638,REDACTED PERSONAL DATA
Sandwell Metropolitan Borough Council,http://www.sandwell.gov.uk/info/200202/performance_and_spending/1079/payments_over_500,22-Jun-2021,Individual School Budgets With Inclusion,REDACTED PERSONAL DATA,Individual School Budgets With Inclusion,981.00,Grant Payments,2122P03_CR00639,REDACTED PERSONAL DATA
Sandwell Metropolitan Borough Council,http://www.sandwell.gov.uk/info/200202/performance_and_spending/1079/payments_over_500,22-Jun-2021,Individual School Budgets With Inclusion,REDACTED PERSONAL DATA,Individual School Budgets With Inclusion,1003.50,Grant Payments,2122P03_CR00640,REDACTED PERSONAL DATA
Sandwell Metropolitan Borough Council,http://www.sandwell.gov.uk/info/200202/performance_and_spending/1079/payments_over_500,22-Jun-2021,Individual School Budgets With Inclusion,CONFEDERATION OF BANGLADESHI ORGANISATIONS (CBO) LIMITED,Individual School Budgets With Inclusion,1037.25,Grant Payments,2122P03_CR00641,10034
Sandwell Metropolitan Borough Council,http://www.sandwell.gov.uk/info/200202/performance_and_spending/1079/payments_over_500,22-Jun-2021,Individual School Budgets With Inclusion,BLUEBERRY DAY NURSERY,Individual School Budgets With Inclusion,1177.20,Grant Payments,2122P03_CR00642,141884
Sandwell Metropolitan Borough Council,http://www.sandwell.gov.uk/info/200202/performance_and_spending/1079/payments_over_500,22-Jun-2021,Individual School Budgets With Inclusion,REDACTED PERSONAL DATA,Individual School Budgets With Inclusion,1177.20,Grant Payments,2122P03_CR00643,REDACTED PERSONAL DATA
Sandwell Metropolitan Borough Council,http://www.sandwell.gov.uk/info/200202/performance_and_spending/1079/payments_over_500,22-Jun-2021,Individual School Budgets With Inclusion,REDACTED PERSONAL DATA,Individual School Budgets With Inclusion,1190.70,Grant Payments,2122P03_CR00644,REDACTED PERSONAL DATA
Sandwell Metropolitan Borough Council,http://www.sandwell.gov.uk/info/200202/performance_and_spending/1079/payments_over_500,22-Jun-2021,Individual School Budgets With Inclusion,REDACTED PERSONAL DATA,Individual School Budgets With Inclusion,1203.21,Grant Payments,2122P03_CR00645,REDACTED PERSONAL DATA
Sandwell Metropolitan Borough Council,http://www.sandwell.gov.uk/info/200202/performance_and_spending/1079/payments_over_500,22-Jun-2021,Individual School Budgets With Inclusion,REDACTED PERSONAL DATA,Individual School Budgets With Inclusion,1373.40,Grant Payments,2122P03_CR00646,REDACTED PERSONAL DATA
Sandwell Metropolitan Borough Council,http://www.sandwell.gov.uk/info/200202/performance_and_spending/1079/payments_over_500,22-Jun-2021,Individual School Budgets With Inclusion,K L THAW CHILDMINDING,Individual School Budgets With Inclusion,1452.15,Grant Payments,2122P03_CR00647,104746
Sandwell Metropolitan Borough Council,http://www.sandwell.gov.uk/info/200202/performance_and_spending/1079/payments_over_500,22-Jun-2021,Individual School Budgets With Inclusion,REDACTED PERSONAL DATA,Individual School Budgets With Inclusion,1452.15,Grant Payments,2122P03_CR00648,REDACTED PERSONAL DATA
Sandwell Metropolitan Borough Council,http://www.sandwell.gov.uk/info/200202/performance_and_spending/1079/payments_over_500,22-Jun-2021,Individual School Budgets With Inclusion,LITTLE FRIENDS PRE SCHOOL,Individual School Budgets With Inclusion,1605.60,Grant Payments,2122P03_CR00649,10020
Sandwell Metropolitan Borough Council,http://www.sandwell.gov.uk/info/200202/performance_and_spending/1079/payments_over_500,22-Jun-2021,Individual School Budgets With Inclusion,REDACTED PERSONAL DATA,Individual School Budgets With Inclusion,1806.30,Grant Payments,2122P03_CR00650,REDACTED PERSONAL DATA
Sandwell Metropolitan Borough Council,http://www.sandwell.gov.uk/info/200202/performance_and_spending/1079/payments_over_500,22-Jun-2021,Individual School Budgets With Inclusion,REDACTED PERSONAL DATA,Individual School Budgets With Inclusion,1984.50,Grant Payments,2122P03_CR00651,REDACTED PERSONAL DATA
Sandwell Metropolitan Borough Council,http://www.sandwell.gov.uk/info/200202/performance_and_spending/1079/payments_over_500,22-Jun-2021,Individual School Budgets With Inclusion,BOOKWORMS DAYCARE BRICKHOUSE,Individual School Budgets With Inclusion,2223.72,Grant Payments,2122P03_CR00652,127727
Sandwell Metropolitan Borough Council,http://www.sandwell.gov.uk/info/200202/performance_and_spending/1079/payments_over_500,22-Jun-2021,Individual School Budgets With Inclusion,ST MICHAELS DAY NURSERY,Individual School Budgets With Inclusion,2281.95,Grant Payments,2122P03_CR00653,01698538
Sandwell Metropolitan Borough Council,http://www.sandwell.gov.uk/info/200202/performance_and_spending/1079/payments_over_500,22-Jun-2021,Individual School Budgets With Inclusion,PLAYHOUSE DAY NURSERY,Individual School Budgets With Inclusion,2381.40,Grant Payments,2122P03_CR00654,01586669
Sandwell Metropolitan Borough Council,http://www.sandwell.gov.uk/info/200202/performance_and_spending/1079/payments_over_500,22-Jun-2021,Individual School Budgets With Inclusion,TINY STEPS,Individual School Budgets With Inclusion,2408.40,Grant Payments,2122P03_CR00655,125778
Sandwell Metropolitan Borough Council,http://www.sandwell.gov.uk/info/200202/performance_and_spending/1079/payments_over_500,22-Jun-2021,Individual School Budgets With Inclusion,LITTLE LEGEND NURSERIES LTD,Individual School Budgets With Inclusion,2875.50,Grant Payments,2122P03_CR00656,117890
Sandwell Metropolitan Borough Council,http://www.sandwell.gov.uk/info/200202/performance_and_spending/1079/payments_over_500,22-Jun-2021,Individual School Budgets With Inclusion,CATHERINE HOUSE DAY NURSERY,Individual School Budgets With Inclusion,2976.75,Grant Payments,2122P03_CR00657,08587767
Sandwell Metropolitan Borough Council,http://www.sandwell.gov.uk/info/200202/performance_and_spending/1079/payments_over_500,22-Jun-2021,Individual School Budgets With Inclusion,TWO STEPS PRE-SCHOOL,Individual School Budgets With Inclusion,3010.50,Grant Payments,2122P03_CR00658,109186
Sandwell Metropolitan Borough Council,http://www.sandwell.gov.uk/info/200202/performance_and_spending/1079/payments_over_500,22-Jun-2021,Individual School Budgets With Inclusion,LITTLE VALERS PRE SCHOOL,Individual School Budgets With Inclusion,3139.20,Grant Payments,2122P03_CR00659,99107
Sandwell Metropolitan Borough Council,http://www.sandwell.gov.uk/info/200202/performance_and_spending/1079/payments_over_500,22-Jun-2021,Individual School Budgets With Inclusion,TIP TOP DAY NURSERY WEDNESBURY,Individual School Budgets With Inclusion,3139.20,Grant Payments,2122P03_CR00660,147082
Sandwell Metropolitan Borough Council,http://www.sandwell.gov.uk/info/200202/performance_and_spending/1079/payments_over_500,22-Jun-2021,Individual School Budgets With Inclusion,BLUEBELLS DAY NURSERY,Individual School Budgets With Inclusion,3572.10,Grant Payments,2122P03_CR00661,01721314
Sandwell Metropolitan Borough Council,http://www.sandwell.gov.uk/info/200202/performance_and_spending/1079/payments_over_500,22-Jun-2021,Individual School Budgets With Inclusion,KANGAROO POUCH CHARLEMONT,Individual School Budgets With Inclusion,3813.30,Grant Payments,2122P03_CR00662,117283
Sandwell Metropolitan Borough Council,http://www.sandwell.gov.uk/info/200202/performance_and_spending/1079/payments_over_500,22-Jun-2021,Individual School Budgets With Inclusion,AL KAHIR SCHOOL,Individual School Budgets With Inclusion,3813.30,Grant Payments,2122P03_CR00663,128728
Sandwell Metropolitan Borough Council,http://www.sandwell.gov.uk/info/200202/performance_and_spending/1079/payments_over_500,22-Jun-2021,Individual School Budgets With Inclusion,LITTLE ACADEMY NURSERY,Individual School Budgets With Inclusion,4214.70,Grant Payments,2122P03_CR00664,81904
Sandwell Metropolitan Borough Council,http://www.sandwell.gov.uk/info/200202/performance_and_spending/1079/payments_over_500,22-Jun-2021,Individual School Budgets With Inclusion,MOORLANDS LITTLE LEARNERS PLAYGROUP,Individual School Budgets With Inclusion,4365.90,Grant Payments,2122P03_CR00665,46390
Sandwell Metropolitan Borough Council,http://www.sandwell.gov.uk/info/200202/performance_and_spending/1079/payments_over_500,22-Jun-2021,Individual School Budgets With Inclusion,ROOTS & SHOOTS PLAYGROUP,Individual School Budgets With Inclusion,4492.80,Grant Payments,2122P03_CR00666,75502
Sandwell Metropolitan Borough Council,http://www.sandwell.gov.uk/info/200202/performance_and_spending/1079/payments_over_500,22-Jun-2021,Individual School Budgets With Inclusion,FATIMA DAY NURSERY,Individual School Budgets With Inclusion,4564.35,Grant Payments,2122P03_CR00667,131343
Sandwell Metropolitan Borough Council,http://www.sandwell.gov.uk/info/200202/performance_and_spending/1079/payments_over_500,22-Jun-2021,Individual School Budgets With Inclusion,STEPPING STONES NURSERY,Individual School Budgets With Inclusion,4564.35,Grant Payments,2122P03_CR00668,50029
Sandwell Metropolitan Borough Council,http://www.sandwell.gov.uk/info/200202/performance_and_spending/1079/payments_over_500,22-Jun-2021,Individual School Budgets With Inclusion,LITTLE ANGELS DAY NURSERY LIMITED,Individual School Budgets With Inclusion,4816.80,Grant Payments,2122P03_CR00669,10207
Sandwell Metropolitan Borough Council,http://www.sandwell.gov.uk/info/200202/performance_and_spending/1079/payments_over_500,22-Jun-2021,Individual School Budgets With Inclusion,N & K VARMA LIMITED T/A (KIDDIES PLAYHOUSE TIPTON),Individual School Budgets With Inclusion,4816.80,Grant Payments,2122P03_CR00670,26124
Sandwell Metropolitan Borough Council,http://www.sandwell.gov.uk/info/200202/performance_and_spending/1079/payments_over_500,22-Jun-2021,Individual School Budgets With Inclusion,SADWICA DAY NURSERY,Individual School Budgets With Inclusion,5130.00,Grant Payments,2122P03_CR00671,01667892
Sandwell Metropolitan Borough Council,http://www.sandwell.gov.uk/info/200202/performance_and_spending/1079/payments_over_500,22-Jun-2021,Individual School Budgets With Inclusion,LITTLE STEPPERS,Individual School Budgets With Inclusion,5186.25,Grant Payments,2122P03_CR00672,120240
Sandwell Metropolitan Borough Council,http://www.sandwell.gov.uk/info/200202/performance_and_spending/1079/payments_over_500,22-Jun-2021,Individual School Budgets With Inclusion,LITTLE SAPLINGS CHILDCARE CENTRES,Individual School Budgets With Inclusion,5218.20,Grant Payments,2122P03_CR00673,131043
Sandwell Metropolitan Borough Council,http://www.sandwell.gov.uk/info/200202/performance_and_spending/1079/payments_over_500,22-Jun-2021,Individual School Budgets With Inclusion,KANGAROO POUCH AT TIVIDALE,Individual School Budgets With Inclusion,5755.05,Grant Payments,2122P03_CR00674,113715
Sandwell Metropolitan Borough Council,http://www.sandwell.gov.uk/info/200202/performance_and_spending/1079/payments_over_500,22-Jun-2021,Individual School Budgets With Inclusion,MINI MONKEYS LTD,Individual School Budgets With Inclusion,5768.28,Grant Payments,2122P03_CR00675,114818
Sandwell Metropolitan Borough Council,http://www.sandwell.gov.uk/info/200202/performance_and_spending/1079/payments_over_500,22-Jun-2021,Individual School Budgets With Inclusion,HAPPY DAYS PRE SCHOOL,Individual School Budgets With Inclusion,5820.30,Grant Payments,2122P03_CR00676,10017
Sandwell Metropolitan Borough Council,http://www.sandwell.gov.uk/info/200202/performance_and_spending/1079/payments_over_500,22-Jun-2021,Individual School Budgets With Inclusion,KANGAROO POUCH LIMITED,Individual School Budgets With Inclusion,5820.30,Grant Payments,2122P03_CR00677,106981
Sandwell Metropolitan Borough Council,http://www.sandwell.gov.uk/info/200202/performance_and_spending/1079/payments_over_500,22-Jun-2021,Individual School Budgets With Inclusion,PITTA PATTA DAYCARE,Individual School Budgets With Inclusion,6221.70,Grant Payments,2122P03_CR00678,114742
Sandwell Metropolitan Borough Council,http://www.sandwell.gov.uk/info/200202/performance_and_spending/1079/payments_over_500,22-Jun-2021,Individual School Budgets With Inclusion,UNITED KIDS CHILDCARE,Individual School Budgets With Inclusion,6422.40,Grant Payments,2122P03_CR00679,134806
Sandwell Metropolitan Borough Council,http://www.sandwell.gov.uk/info/200202/performance_and_spending/1079/payments_over_500,22-Jun-2021,Individual School Budgets With Inclusion,HAPPY DAYS NURSERY (GREETS GREEN),Individual School Budgets With Inclusion,6566.40,Grant Payments,2122P03_CR00680,125840
Sandwell Metropolitan Borough Council,http://www.sandwell.gov.uk/info/200202/performance_and_spending/1079/payments_over_500,22-Jun-2021,Individual School Budgets With Inclusion,DAFFODILS NURSERY LTD,Individual School Budgets With Inclusion,6771.60,Grant Payments,2122P03_CR00681,120066
Sandwell Metropolitan Borough Council,http://www.sandwell.gov.uk/info/200202/performance_and_spending/1079/payments_over_500,22-Jun-2021,Individual School Budgets With Inclusion,CAP DAY NURSERY,Individual School Budgets With Inclusion,7260.75,Grant Payments,2122P03_CR00682,51154
Sandwell Metropolitan Borough Council,http://www.sandwell.gov.uk/info/200202/performance_and_spending/1079/payments_over_500,22-Jun-2021,Individual School Budgets With Inclusion,BANANA MOON DAY NURSERY,Individual School Budgets With Inclusion,7425.90,Grant Payments,2122P03_CR00683,124220
Sandwell Metropolitan Borough Council,http://www.sandwell.gov.uk/info/200202/performance_and_spending/1079/payments_over_500,22-Jun-2021,Individual School Budgets With Inclusion,FIRST STEPS OLDBURY,Individual School Budgets With Inclusion,7541.10,Grant Payments,2122P03_CR00684,118886
Sandwell Metropolitan Borough Council,http://www.sandwell.gov.uk/info/200202/performance_and_spending/1079/payments_over_500,22-Jun-2021,Individual School Budgets With Inclusion,FIRST STEPS DAY NURSERY,Individual School Budgets With Inclusion,7626.60,Grant Payments,2122P03_CR00685,51155
Sandwell Metropolitan Borough Council,http://www.sandwell.gov.uk/info/200202/performance_and_spending/1079/payments_over_500,22-Jun-2021,Individual School Budgets With Inclusion,MINNS LIMITED,Individual School Budgets With Inclusion,7626.60,Grant Payments,2122P03_CR00686,120067
Sandwell Metropolitan Borough Council,http://www.sandwell.gov.uk/info/200202/performance_and_spending/1079/payments_over_500,22-Jun-2021,Individual School Budgets With Inclusion,PERRYFIELDS PRE SCHOOL,Individual School Budgets With Inclusion,7756.44,Grant Payments,2122P03_CR00687,18879
Sandwell Metropolitan Borough Council,http://www.sandwell.gov.uk/info/200202/performance_and_spending/1079/payments_over_500,22-Jun-2021,Individual School Budgets With Inclusion,KANGAROO POUCH AT GREAT BRIDGE,Individual School Budgets With Inclusion,7938.00,Grant Payments,2122P03_CR00688,129771
Sandwell Metropolitan Borough Council,http://www.sandwell.gov.uk/info/200202/performance_and_spending/1079/payments_over_500,22-Jun-2021,Individual School Budgets With Inclusion,5 STAR DAY NURSERY LIMITED,Individual School Budgets With Inclusion,8044.20,Grant Payments,2122P03_CR00689,105382
Sandwell Metropolitan Borough Council,http://www.sandwell.gov.uk/info/200202/performance_and_spending/1079/payments_over_500,22-Jun-2021,Individual School Budgets With Inclusion,LITTLE LEARNERS LTD,Individual School Budgets With Inclusion,8208.00,Grant Payments,2122P03_CR00690,01424133
Sandwell Metropolitan Borough Council,http://www.sandwell.gov.uk/info/200202/performance_and_spending/1079/payments_over_500,22-Jun-2021,Individual School Budgets With Inclusion,FIREFLIES NURSERY LIMITED,Individual School Budgets With Inclusion,8228.70,Grant Payments,2122P03_CR00691,124120
Sandwell Metropolitan Borough Council,http://www.sandwell.gov.uk/info/200202/performance_and_spending/1079/payments_over_500,22-Jun-2021,Individual School Budgets With Inclusion,CONIFERS DAY NURSERY LTD,Individual School Budgets With Inclusion,8334.90,Grant Payments,2122P03_CR00692,131957
Sandwell Metropolitan Borough Council,http://www.sandwell.gov.uk/info/200202/performance_and_spending/1079/payments_over_500,22-Jun-2021,Individual School Budgets With Inclusion,SPON LANE DAY NURSERY LIMITED,Individual School Budgets With Inclusion,8413.20,Grant Payments,2122P03_CR00693,127024
Sandwell Metropolitan Borough Council,http://www.sandwell.gov.uk/info/200202/performance_and_spending/1079/payments_over_500,22-Jun-2021,Individual School Budgets With Inclusion,TIPTON EXPLORERS NURSERY,Individual School Budgets With Inclusion,8429.40,Grant Payments,2122P03_CR00694,132351
Sandwell Metropolitan Borough Council,http://www.sandwell.gov.uk/info/200202/performance_and_spending/1079/payments_over_500,22-Jun-2021,Individual School Budgets With Inclusion,LILLIPUT LODGE CHILDRENS DAY NURSERY,Individual School Budgets With Inclusion,8533.35,Grant Payments,2122P03_CR00695,2980
Sandwell Metropolitan Borough Council,http://www.sandwell.gov.uk/info/200202/performance_and_spending/1079/payments_over_500,22-Jun-2021,Individual School Budgets With Inclusion,TIPTON NURSERY,Individual School Budgets With Inclusion,8618.40,Grant Payments,2122P03_CR00696,89881
Sandwell Metropolitan Borough Council,http://www.sandwell.gov.uk/info/200202/performance_and_spending/1079/payments_over_500,22-Jun-2021,Individual School Budgets With Inclusion,LOLA BELLES PRIVATE DAY NURSERY,Individual School Budgets With Inclusion,8630.10,Grant Payments,2122P03_CR00697,89271
Sandwell Metropolitan Borough Council,http://www.sandwell.gov.uk/info/200202/performance_and_spending/1079/payments_over_500,22-Jun-2021,Individual School Budgets With Inclusion,BLOXCIDGE HOUSE DAY NURSERY,Individual School Budgets With Inclusion,8731.80,Grant Payments,2122P03_CR00698,82862
Sandwell Metropolitan Borough Council,http://www.sandwell.gov.uk/info/200202/performance_and_spending/1079/payments_over_500,22-Jun-2021,Individual School Budgets With Inclusion,THE FAMILY NURSERY COMPANY LTD,Individual School Budgets With Inclusion,8830.80,Grant Payments,2122P03_CR00699,89879
Sandwell Metropolitan Borough Council,http://www.sandwell.gov.uk/info/200202/performance_and_spending/1079/payments_over_500,22-Jun-2021,Individual School Budgets With Inclusion,BUSY BEE NURSERY,Individual School Budgets With Inclusion,9031.50,Grant Payments,2122P03_CR00700,01222577
Sandwell Metropolitan Borough Council,http://www.sandwell.gov.uk/info/200202/performance_and_spending/1079/payments_over_500,22-Jun-2021,Individual School Budgets With Inclusion,THE TODDLER HOUSE LIMITED,Individual School Budgets With Inclusion,9432.90,Grant Payments,2122P03_CR00701,122166
Sandwell Metropolitan Borough Council,http://www.sandwell.gov.uk/info/200202/performance_and_spending/1079/payments_over_500,22-Jun-2021,Individual School Budgets With Inclusion,ROWLEY VILLAGE DAY NURSERY,Individual School Budgets With Inclusion,9525.60,Grant Payments,2122P03_CR00702,24228
Sandwell Metropolitan Borough Council,http://www.sandwell.gov.uk/info/200202/performance_and_spending/1079/payments_over_500,22-Jun-2021,Individual School Budgets With Inclusion,TIDDLYWINKS KIDDYS NURSERY LIMITED,Individual School Budgets With Inclusion,9525.60,Grant Payments,2122P03_CR00703,110667
Sandwell Metropolitan Borough Council,http://www.sandwell.gov.uk/info/200202/performance_and_spending/1079/payments_over_500,22-Jun-2021,Individual School Budgets With Inclusion,SANTOS DAY NURSERIES,Individual School Budgets With Inclusion,9613.80,Grant Payments,2122P03_CR00704,129262
Sandwell Metropolitan Borough Council,http://www.sandwell.gov.uk/info/200202/performance_and_spending/1079/payments_over_500,22-Jun-2021,Individual School Budgets With Inclusion,FERNDALE PRIMARY SCHOOL                                    01,Individual School Budgets With Inclusion,9653.04,Grant Payments,2122P03_CR00705,11562
Sandwell Metropolitan Borough Council,http://www.sandwell.gov.uk/info/200202/performance_and_spending/1079/payments_over_500,22-Jun-2021,Individual School Budgets With Inclusion,SUNNY SKIES DAY NURSERY,Individual School Budgets With Inclusion,9834.30,Grant Payments,2122P03_CR00706,82726
Sandwell Metropolitan Borough Council,http://www.sandwell.gov.uk/info/200202/performance_and_spending/1079/payments_over_500,22-Jun-2021,Individual School Budgets With Inclusion,5 STAR DAY NURSERY - OLDBURY,Individual School Budgets With Inclusion,9922.50,Grant Payments,2122P03_CR00707,120730
Sandwell Metropolitan Borough Council,http://www.sandwell.gov.uk/info/200202/performance_and_spending/1079/payments_over_500,22-Jun-2021,Individual School Budgets With Inclusion,HUMPTY DUMPTYS DAY NURSERY,Individual School Budgets With Inclusion,10035.00,Grant Payments,2122P03_CR00708,08510771
Sandwell Metropolitan Borough Council,http://www.sandwell.gov.uk/info/200202/performance_and_spending/1079/payments_over_500,22-Jun-2021,Individual School Budgets With Inclusion,OUR LADY AND ST HUBERTS CATHOLIC PRIMARY SCHOOL                                      02,Individual School Budgets With Inclusion,10120.95,Grant Payments,2122P03_CR00709,61053
Sandwell Metropolitan Borough Council,http://www.sandwell.gov.uk/info/200202/performance_and_spending/1079/payments_over_500,22-Jun-2021,Individual School Budgets With Inclusion,SMARTY PANTS @ LIGHTWOODS HOUSE LTD,Individual School Budgets With Inclusion,10319.40,Grant Payments,2122P03_CR00710,130645
Sandwell Metropolitan Borough Council,http://www.sandwell.gov.uk/info/200202/performance_and_spending/1079/payments_over_500,22-Jun-2021,Individual School Budgets With Inclusion,GNG NURSERY,Individual School Budgets With Inclusion,10637.10,Grant Payments,2122P03_CR00711,114805
Sandwell Metropolitan Borough Council,http://www.sandwell.gov.uk/info/200202/performance_and_spending/1079/payments_over_500,22-Jun-2021,Individual School Budgets With Inclusion,RAK DAY CARE LTD T/A HAPPY VALLEY PRE SCHOOL LTD,Individual School Budgets With Inclusion,10637.10,Grant Payments,2122P03_CR00712,01572212
Sandwell Metropolitan Borough Council,http://www.sandwell.gov.uk/info/200202/performance_and_spending/1079/payments_over_500,22-Jun-2021,Individual School Budgets With Inclusion,UNITED KIDS LIMITED,Individual School Budgets With Inclusion,10716.30,Grant Payments,2122P03_CR00713,136360
Sandwell Metropolitan Borough Council,http://www.sandwell.gov.uk/info/200202/performance_and_spending/1079/payments_over_500,22-Jun-2021,Individual School Budgets With Inclusion,ABC DAY NURSERY & PRE SCHOOL LTD,Individual School Budgets With Inclusion,10987.20,Grant Payments,2122P03_CR00714,01472823
Sandwell Metropolitan Borough Council,http://www.sandwell.gov.uk/info/200202/performance_and_spending/1079/payments_over_500,22-Jun-2021,Individual School Budgets With Inclusion,THE WONDER YEARS DAY NURSERY LIMITED,Individual School Budgets With Inclusion,11172.30,Grant Payments,2122P03_CR00715,01647249
Sandwell Metropolitan Borough Council,http://www.sandwell.gov.uk/info/200202/performance_and_spending/1079/payments_over_500,22-Jun-2021,Individual School Budgets With Inclusion,BOOKWORMS DAYCARE LIMITED,Individual School Budgets With Inclusion,11311.65,Grant Payments,2122P03_CR00716,114741
Sandwell Metropolitan Borough Council,http://www.sandwell.gov.uk/info/200202/performance_and_spending/1079/payments_over_500,22-Jun-2021,Individual School Budgets With Inclusion,TINY TOEZ LIMITED,Individual School Budgets With Inclusion,11575.80,Grant Payments,2122P03_CR00717,23618
Sandwell Metropolitan Borough Council,http://www.sandwell.gov.uk/info/200202/performance_and_spending/1079/payments_over_500,22-Jun-2021,Individual School Budgets With Inclusion,LITTLE WENDY HOUSE DAY NURSERY,Individual School Budgets With Inclusion,12242.70,Grant Payments,2122P03_CR00718,91544
Sandwell Metropolitan Borough Council,http://www.sandwell.gov.uk/info/200202/performance_and_spending/1079/payments_over_500,22-Jun-2021,Individual School Budgets With Inclusion,REDACTED PERSONAL DATA,Individual School Budgets With Inclusion,12502.35,Grant Payments,2122P03_CR00719,REDACTED PERSONAL DATA
Sandwell Metropolitan Borough Council,http://www.sandwell.gov.uk/info/200202/performance_and_spending/1079/payments_over_500,22-Jun-2021,Individual School Budgets With Inclusion,TIMBERTREE NEIGHBOURHOOD NURSERY,Individual School Budgets With Inclusion,12700.80,Grant Payments,2122P03_CR00720,135664
Sandwell Metropolitan Borough Council,http://www.sandwell.gov.uk/info/200202/performance_and_spending/1079/payments_over_500,22-Jun-2021,Individual School Budgets With Inclusion,BRIGHT LIGHTS DAY NURSERY,Individual School Budgets With Inclusion,12722.40,Grant Payments,2122P03_CR00721,89877
Sandwell Metropolitan Borough Council,http://www.sandwell.gov.uk/info/200202/performance_and_spending/1079/payments_over_500,22-Jun-2021,Individual School Budgets With Inclusion,THE PATCH DAY NURSERY,Individual School Budgets With Inclusion,12871.56,Grant Payments,2122P03_CR00722,126020
Sandwell Metropolitan Borough Council,http://www.sandwell.gov.uk/info/200202/performance_and_spending/1079/payments_over_500,22-Jun-2021,Individual School Budgets With Inclusion,RARE WOOD LIMITED,Individual School Budgets With Inclusion,12927.60,Grant Payments,2122P03_CR00723,20167
Sandwell Metropolitan Borough Council,http://www.sandwell.gov.uk/info/200202/performance_and_spending/1079/payments_over_500,22-Jun-2021,Individual School Budgets With Inclusion,SUMMERHILL LITTLE TREASURES,Individual School Budgets With Inclusion,13446.90,Grant Payments,2122P03_CR00724,89880
Sandwell Metropolitan Borough Council,http://www.sandwell.gov.uk/info/200202/performance_and_spending/1079/payments_over_500,22-Jun-2021,Individual School Budgets With Inclusion,SMARTY PANTS PRIVATE DAY NURSERY LTD,Individual School Budgets With Inclusion,13446.90,Grant Payments,2122P03_CR00725,74037
Sandwell Metropolitan Borough Council,http://www.sandwell.gov.uk/info/200202/performance_and_spending/1079/payments_over_500,22-Jun-2021,Individual School Budgets With Inclusion,LITTLE EXPLORERS (WEST MIDLANDS) LTD,Individual School Budgets With Inclusion,14605.92,Grant Payments,2122P03_CR00726,114804
Sandwell Metropolitan Borough Council,http://www.sandwell.gov.uk/info/200202/performance_and_spending/1079/payments_over_500,22-Jun-2021,Individual School Budgets With Inclusion,SANDWELL NHS TRUST DAY NURSERY,Individual School Budgets With Inclusion,14718.00,Grant Payments,2122P03_CR00727,40788
Sandwell Metropolitan Borough Council,http://www.sandwell.gov.uk/info/200202/performance_and_spending/1079/payments_over_500,22-Jun-2021,Individual School Budgets With Inclusion,TIPTON TODDLERS DAY NURSERY,Individual School Budgets With Inclusion,14778.21,Grant Payments,2122P03_CR00728,4397
Sandwell Metropolitan Borough Council,http://www.sandwell.gov.uk/info/200202/performance_and_spending/1079/payments_over_500,22-Jun-2021,Individual School Budgets With Inclusion,ST HUBERTS PRE-SCHOOL PLAYGROUP 2,Individual School Budgets With Inclusion,17662.05,Grant Payments,2122P03_CR00729,123074
Sandwell Metropolitan Borough Council,http://www.sandwell.gov.uk/info/200202/performance_and_spending/1079/payments_over_500,22-Jun-2021,Individual School Budgets With Inclusion,FAIRYTALES NURSERY LTD,Individual School Budgets With Inclusion,18257.40,Grant Payments,2122P03_CR00730,106247
Sandwell Metropolitan Borough Council,http://www.sandwell.gov.uk/info/200202/performance_and_spending/1079/payments_over_500,22-Jun-2021,Individual School Budgets With Inclusion,TINY WOODS PRE SCHOOL,Individual School Budgets With Inclusion,18639.00,Grant Payments,2122P03_CR00731,91788
Sandwell Metropolitan Borough Council,http://www.sandwell.gov.uk/info/200202/performance_and_spending/1079/payments_over_500,22-Jun-2021,Individual School Budgets With Inclusion,TICK TOCK DAY NURSERY LTD,Individual School Budgets With Inclusion,21876.30,Grant Payments,2122P03_CR00732,9391
Sandwell Metropolitan Borough Council,http://www.sandwell.gov.uk/info/200202/performance_and_spending/1079/payments_over_500,22-Jun-2021,Individual School Budgets With Inclusion,WEST BROMWICH & DISTRICT Y.M.C.A. COMMUNITY ENTERPRISES,Individual School Budgets With Inclusion,21956.40,Grant Payments,2122P03_CR00733,01088376
Sandwell Metropolitan Borough Council,http://www.sandwell.gov.uk/info/200202/performance_and_spending/1079/payments_over_500,22-Jun-2021,Individual School Budgets With Inclusion,WONDERLAND CHILDRENS DAY NURSERY (UK) LTD,Individual School Budgets With Inclusion,22879.80,Grant Payments,2122P03_CR00734,50852
Sandwell Metropolitan Borough Council,http://www.sandwell.gov.uk/info/200202/performance_and_spending/1079/payments_over_500,22-Jun-2021,Individual School Budgets With Inclusion,WIGGLES & GIGGLES LTD,Individual School Budgets With Inclusion,22955.40,Grant Payments,2122P03_CR00735,01674799
Sandwell Metropolitan Borough Council,http://www.sandwell.gov.uk/info/200202/performance_and_spending/1079/payments_over_500,22-Jun-2021,Individual School Budgets With Inclusion,UNICORN DAY NURSERY,Individual School Budgets With Inclusion,22971.60,Grant Payments,2122P03_CR00736,91543
Sandwell Metropolitan Borough Council,http://www.sandwell.gov.uk/info/200202/performance_and_spending/1079/payments_over_500,22-Jun-2021,Individual School Budgets With Inclusion,LAVENDER FARM DAY NURSERY,Individual School Budgets With Inclusion,28098.00,Grant Payments,2122P03_CR00737,65596
Sandwell Metropolitan Borough Council,http://www.sandwell.gov.uk/info/200202/performance_and_spending/1079/payments_over_500,01-Jun-2021,Individual School Budgets With Inclusion,ARC PRO-TECT PEST SOLUTIONS,Individual School Budgets With Inclusion,500.00,Building Maintenance & Improvements,2122P03_CR00738,151984
Sandwell Metropolitan Borough Council,http://www.sandwell.gov.uk/info/200202/performance_and_spending/1079/payments_over_500,01-Jun-2021,Individual School Budgets With Inclusion,STARTRIGHT TRAINING,Individual School Budgets With Inclusion,504.00,Learning Resources,2122P03_CR00739,84863
